Workbook

Sheet INTRO
C1: The current version should be used in countries non-endemic for onchocerciasis
B2: Joint request for selected PC medicines
B4: As part of global efforts to accelerate expansion of preventive chemotherapy (PC) for control and elimination of lymphatic filariasis, schistosomiasis and soil-transmitted helminthiases, the World Health Organization (WHO) facilitates the supply of albendazole 400 mg tablets (GSK) to national lymphatic filariasis elimination programmes and national soil-transmitted helminth control programmes; diethylcarbamazine citrate 100 mg tablets (Eisai) to national lymphatic filariasis elimination programmes; mebendazole 500 mg tablets (J&J) for national soil-transmitted helminth control programmes; and praziquantel 600 mg tablets (Merck KGaA) for school-age children to national schistosomiasis control programmes. WHO also collaborates to supply ivermectin 3 mg tablets (Merck) for onchocerciasis and lymphatic filariasis donation programmes. This Excel-based tool is designed to assist countries in quantifying the number of tablets of relevant PC medicines required to reach the planned target population and districts for the year of request. Output of the tool is a joint request for PC medicines, which can be printed, signed and submitted to WHO to request these medicines.
B6: Structure of the application (worksheets):
B8: INTRO | C8: This worksheet includes guides on how to complete the joint request for selected PC medicines and information about the status of PC for endemic diseases in the country.
B9: COUNTRY_INFO | C9: This worksheet includes information about administrative structure of the country, population by age group, status of endemicity for each disease, population requiring PC and planned interventions.
B10: DEC, ALB_MBD and PZQ | C10: These worksheets include information about endemic districts targeted for treatment with specified PC medicines, treatment plan, and number of tablets required and requested.
B11: SUMMARY | C11: This worksheet includes summary of number of tablets requested, information about stock, and date for submission of requested medicines. Before generating the report (run macros) please select the medicine for which the report is needed. Follow the same rule to see the number of people to be treated for the specific disease. This worksheet should be printed and submitted as a joint request for selected PC medicines (see the instruction for submission in the SUMMARY worksheet).
B13: Instruction for data entry
B15: Most of the cells in the above-mentioned worksheets include formula that are calculated automatically according to the treatment policy recommended by WHO for each disease. See the link http://www.who.int/neglected_diseases/preventive_chemotherapy/pct_manual/en/index.html
B17: Please enter your data into the cells according to their colour code:
C19: White - cell is not protected. Please enter the value of the requested indicator.
C21: Yellow - cell is protected and includes name of indicator. No data entry required.
C23: Orange - cell is not protected and includes a drop-down menu. Please select the value from the drop-down list.
C26: Green - cell is not protected and includes formula. Please change the value only if your data are different from those that are calculated automatically.
C29: Blue - cell is protected and includes formula. No data entry required.
B31: Country data
B33: COUNTRY | E33: Rwanda
B35: Year for request of the medicine | E35: 2018
B37: Is country endemic for lymphatic filariasis (LF)? | E37: Non-endemic
B39: Is country endemic for onchocerciasis (ONCHO)? | E39: Non-endemic
B41: Is country endemic for soil-transmitted helminthiases (STH)? | E41: Endemic
B43: Is country endemic for schistosomiasis (SCH)? | E43: Endemic
B45: How many administrative units in the country? | E45: 30
B47: If demographical data at the second administrative level are not available by age group, please enter the proportion (%) of population by age group in the country. If data are available, please leave these cells blank.
B48: Preschool-age children (PreSAC) - aged 1-4 years | E48: 0.117
B49: School-age children (SAC) - aged 5-14 years | E49: 0.288
B50: Adults - aged 15 years and older | E50: 0.566

Sheet COUNTRY_INFO
A1: COUNTRY INFORMATION
A2: Administrative structure, population by age group, status of endemicity and planned interventions
A4: TOTAL | D4: =SUM(D$9:D$1000) -> 12266868 | E4: =SUM(E$9:E$1000) -> 1457145.122 | F4: =SUM(F$9:F$1000) -> 3523503.602 | G4: =SUM(G$9:G$1000) -> 6906877.476 | K4: =SUM(K$9:K$1000) -> 0 | L4: =SUM(L$9:L$1000) -> 3902805.975 | M4: =SUM(M$9:M$1000) -> 2433861.84
A6: Country administrative structure | D6: Population | H6: Endemicity | K6: Population requiring PC | N6: Number of treatment rounds planned for the year | Q6: Epidemiological surveys planned for the year
A7: Country | B7: Province/State | C7: District | D7: Total | E7: PreSAC | F7: SAC | G7: Adults | H7: LF | I7: STH | J7: SCH | K7: LF | L7: STH | M7: SCH | N7: LF | O7: STH | P7: SCH | Q7: LF | R7: STH | S7: SCH | T7: IU_ID | U7: IU_Name
A9: =IF(INTRO!$E$33<>0,INTRO!$E$33, " ") -> Rwanda | B9: East | C9: Bugesera | D9: 422173 | E9: 55835.34875 | F9: 119707.6038 | G9: 233070.2815 | H9: 0 | I9: 1 | J9: 2 | K9: =IF(INTRO!$E$37="Endemic",IF($H9>0,IF($H9=4,"Unknown",IF($H9=99,"Stopped",$D9)),0),"Not required") -> Not required | L9: =IF(INTRO!$E$41="Endemic", IF(AND($I9>1, $I9<5), IF($I9=4, "Unknown", E9+F9), 0),"Not required") -> 0 | M9: =IF(INTRO!$E$43="Endemic", IF(AND($J9>0,$J9<5), IF($J9=4,"Unknown", IF($J9=1, $F9*0.33, IF($J9=2, $F9*0.5+$G9*0.2, SUM(F9:G9)))), 0),"Not required") -> 106467.8582 | N9: 0 | O9: 2 | P9: 1 | T9: 38111 | U9: Bugesera
A10: =IF(INTRO!$E$33<>0,INTRO!$E$33, " ") -> Rwanda | B10: North | C10: Burera | D10: 392623 | E10: 42485.87439 | F10: 127851.0109 | G10: 212035.9842 | H10: 0 | I10: 3 | J10: 2 | K10: =IF(INTRO!$E$37="Endemic",IF($H10>0,IF($H10=4,"Unknown",IF($H10=99,"Stopped",$D10)),0),"Not required") -> Not required | L10: =IF(INTRO!$E$41="Endemic", IF(AND($I10>1, $I10<5), IF($I10=4, "Unknown", E10+F10), 0),"Not required") -> 170336.8853 | M10: =IF(INTRO!$E$43="Endemic", IF(AND($J10>0,$J10<5), IF($J10=4,"Unknown", IF($J10=1, $F10*0.33, IF($J10=2, $F10*0.5+$G10*0.2, SUM(F10:G10)))), 0),"Not required") -> 106332.7023 | N10: 0 | O10: 2 | P10: 1 | T10: 38121 | U10: Burera
A11: =IF(INTRO!$E$33<>0,INTRO!$E$33, " ") -> Rwanda | B11: North | C11: Gakenke | D11: 394549 | E11: 41508.44646 | F11: 116223.6501 | G11: 227703.4777 | H11: 0 | I11: 3 | J11: 2 | K11: =IF(INTRO!$E$37="Endemic",IF($H11>0,IF($H11=4,"Unknown",IF($H11=99,"Stopped",$D11)),0),"Not required") -> Not required | L11: =IF(INTRO!$E$41="Endemic", IF(AND($I11>1, $I11<5), IF($I11=4, "Unknown", E11+F11), 0),"Not required") -> 157732.0965 | M11: =IF(INTRO!$E$43="Endemic", IF(AND($J11>0,$J11<5), IF($J11=4,"Unknown", IF($J11=1, $F11*0.33, IF($J11=2, $F11*0.5+$G11*0.2, SUM(F11:G11)))), 0),"Not required") -> 103652.5206 | N11: 0 | O11: 2 | P11: 1 | T11: 38122 | U11: Gakenke
A12: =IF(INTRO!$E$33<>0,INTRO!$E$33, " ") -> Rwanda | B12: Kigali | C12: Gasabo | D12: 617732 | E12: 69939.7951 | F12: 134928.1003 | G12: 394262.3848 | H12: 0 | I12: 1 | J12: 1 | K12: =IF(INTRO!$E$37="Endemic",IF($H12>0,IF($H12=4,"Unknown",IF($H12=99,"Stopped",$D12)),0),"Not required") -> Not required | L12: =IF(INTRO!$E$41="Endemic", IF(AND($I12>1, $I12<5), IF($I12=4, "Unknown", E12+F12), 0),"Not required") -> 0 | M12: =IF(INTRO!$E$43="Endemic", IF(AND($J12>0,$J12<5), IF($J12=4,"Unknown", IF($J12=1, $F12*0.33, IF($J12=2, $F12*0.5+$G12*0.2, SUM(F12:G12)))), 0),"Not required") -> 44526.27309 | N12: 0 | O12: 2 | P12: 0 | T12: 38118 | U12: Gasabo
A13: =IF(INTRO!$E$33<>0,INTRO!$E$33, " ") -> Rwanda | B13: East | C13: Gatsibo | D13: 505117 | E13: 62756.62209 | F13: 155373.2498 | G13: 273294.9672 | H13: 0 | I13: 2 | J13: 2 | K13: =IF(INTRO!$E$37="Endemic",IF($H13>0,IF($H13=4,"Unknown",IF($H13=99,"Stopped",$D13)),0),"Not required") -> Not required | L13: =IF(INTRO!$E$41="Endemic", IF(AND($I13>1, $I13<5), IF($I13=4, "Unknown", E13+F13), 0),"Not required") -> 218129.8719 | M13: =IF(INTRO!$E$43="Endemic", IF(AND($J13>0,$J13<5), IF($J13=4,"Unknown", IF($J13=1, $F13*0.33, IF($J13=2, $F13*0.5+$G13*0.2, SUM(F13:G13)))), 0),"Not required") -> 132345.6184 | N13: 0 | O13: 2 | P13: 1 | T13: 38112 | U13: Gatsibo
A14: =IF(INTRO!$E$33<>0,INTRO!$E$33, " ") -> Rwanda | B14: North | C14: Gicumbi | D14: 461474 | E14: 48549.20105 | F14: 142873.3631 | G14: 258466.6989 | H14: 0 | I14: 3 | J14: 2 | K14: =IF(INTRO!$E$37="Endemic",IF($H14>0,IF($H14=4,"Unknown",IF($H14=99,"Stopped",$D14)),0),"Not required") -> Not required | L14: =IF(INTRO!$E$41="Endemic", IF(AND($I14>1, $I14<5), IF($I14=4, "Unknown", E14+F14), 0),"Not required") -> 191422.5641 | M14: =IF(INTRO!$E$43="Endemic", IF(AND($J14>0,$J14<5), IF($J14=4,"Unknown", IF($J14=1, $F14*0.33, IF($J14=2, $F14*0.5+$G14*0.2, SUM(F14:G14)))), 0),"Not required") -> 123130.0213 | N14: 0 | O14: 2 | P14: 1 | T14: 38123 | U14: Gicumbi
A15: =IF(INTRO!$E$33<>0,INTRO!$E$33, " ") -> Rwanda | B15: South | C15: Gisagara | D15: 376202 | E15: 49755.56343 | F15: 107803.7208 | G15: 207691.7837 | H15: 0 | I15: 2 | J15: 2 | K15: =IF(INTRO!$E$37="Endemic",IF($H15>0,IF($H15=4,"Unknown",IF($H15=99,"Stopped",$D15)),0),"Not required") -> Not required | L15: =IF(INTRO!$E$41="Endemic", IF(AND($I15>1, $I15<5), IF($I15=4, "Unknown", E15+F15), 0),"Not required") -> 157559.2842 | M15: =IF(INTRO!$E$43="Endemic", IF(AND($J15>0,$J15<5), IF($J15=4,"Unknown", IF($J15=1, $F15*0.33, IF($J15=2, $F15*0.5+$G15*0.2, SUM(F15:G15)))), 0),"Not required") -> 95440.21713 | N15: 0 | O15: 2 | P15: 1 | T15: 38126 | U15: Gisagara
A16: =IF(INTRO!$E$33<>0,INTRO!$E$33, " ") -> Rwanda | B16: South | C16: Huye | D16: 383076 | E16: 43371.94172 | F16: 100945.3157 | G16: 228758.2059 | H16: 0 | I16: 3 | J16: 1 | K16: =IF(INTRO!$E$37="Endemic",IF($H16>0,IF($H16=4,"Unknown",IF($H16=99,"Stopped",$D16)),0),"Not required") -> Not required | L16: =IF(INTRO!$E$41="Endemic", IF(AND($I16>1, $I16<5), IF($I16=4, "Unknown", E16+F16), 0),"Not required") -> 144317.2574 | M16: =IF(INTRO!$E$43="Endemic", IF(AND($J16>0,$J16<5), IF($J16=4,"Unknown", IF($J16=1, $F16*0.33, IF($J16=2, $F16*0.5+$G16*0.2, SUM(F16:G16)))), 0),"Not required") -> 33311.95418 | N16: 0 | O16: 2 | P16: 0 | T16: 38127 | U16: Huye
A17: =IF(INTRO!$E$33<>0,INTRO!$E$33, " ") -> Rwanda | B17: South | C17: Kamonyi | D17: 397195 | E17: 45368.36848 | F17: 111431.0805 | G17: 219678.4158 | H17: 0 | I17: 2 | J17: 2 | K17: =IF(INTRO!$E$37="Endemic",IF($H17>0,IF($H17=4,"Unknown",IF($H17=99,"Stopped",$D17)),0),"Not required") -> Not required | L17: =IF(INTRO!$E$41="Endemic", IF(AND($I17>1, $I17<5), IF($I17=4, "Unknown", E17+F17), 0),"Not required") -> 156799.4489 | M17: =IF(INTRO!$E$43="Endemic", IF(AND($J17>0,$J17<5), IF($J17=4,"Unknown", IF($J17=1, $F17*0.33, IF($J17=2, $F17*0.5+$G17*0.2, SUM(F17:G17)))), 0),"Not required") -> 99651.22339 | N17: 0 | O17: 2 | P17: 1 | T17: 38128 | U17: Kamonyi
A18: =IF(INTRO!$E$33<>0,INTRO!$E$33, " ") -> Rwanda | B18: West | C18: Karongi | D18: 387054 | E18: 44985.72878 | F18: 115178.978 | G18: 216396.8678 | H18: 0 | I18: 3 | J18: 1 | K18: =IF(INTRO!$E$37="Endemic",IF($H18>0,IF($H18=4,"Unknown",IF($H18=99,"Stopped",$D18)),0),"Not required") -> Not required | L18: =IF(INTRO!$E$41="Endemic", IF(AND($I18>1, $I18<5), IF($I18=4, "Unknown", E18+F18), 0),"Not required") -> 160164.7068 | M18: =IF(INTRO!$E$43="Endemic", IF(AND($J18>0,$J18<5), IF($J18=4,"Unknown", IF($J18=1, $F18*0.33, IF($J18=2, $F18*0.5+$G18*0.2, SUM(F18:G18)))), 0),"Not required") -> 38009.06274 | N18: 0 | O18: 2 | P18: 0 | T18: 38134 | U18: Karongi
A19: =IF(INTRO!$E$33<>0,INTRO!$E$33, " ") -> Rwanda | B19: East | C19: Kayonza | D19: 401458 | E19: 50280.14702 | F19: 120672.3528 | G19: 218416.9586 | H19: 0 | I19: 2 | J19: 2 | K19: =IF(INTRO!$E$37="Endemic",IF($H19>0,IF($H19=4,"Unknown",IF($H19=99,"Stopped",$D19)),0),"Not required") -> Not required | L19: =IF(INTRO!$E$41="Endemic", IF(AND($I19>1, $I19<5), IF($I19=4, "Unknown", E19+F19), 0),"Not required") -> 170952.4999 | M19: =IF(INTRO!$E$43="Endemic", IF(AND($J19>0,$J19<5), IF($J19=4,"Unknown", IF($J19=1, $F19*0.33, IF($J19=2, $F19*0.5+$G19*0.2, SUM(F19:G19)))), 0),"Not required") -> 104019.5682 | N19: 0 | O19: 2 | P19: 1 | T19: 38113 | U19: Kayonza
A20: =IF(INTRO!$E$33<>0,INTRO!$E$33, " ") -> Rwanda | B20: Kigali | C20: Kicukiro | D20: 371605 | E20: 43562.46797 | F20: 106858.3616 | G20: 211110.4217 | H20: 0 | I20: 1 | J20: 1 | K20: =IF(INTRO!$E$37="Endemic",IF($H20>0,IF($H20=4,"Unknown",IF($H20=99,"Stopped",$D20)),0),"Not required") -> Not required | L20: =IF(INTRO!$E$41="Endemic", IF(AND($I20>1, $I20<5), IF($I20=4, "Unknown", E20+F20), 0),"Not required") -> 0 | M20: =IF(INTRO!$E$43="Endemic", IF(AND($J20>0,$J20<5), IF($J20=4,"Unknown", IF($J20=1, $F20*0.33, IF($J20=2, $F20*0.5+$G20*0.2, SUM(F20:G20)))), 0),"Not required") -> 35263.25933 | N20: 0 | O20: 2 | P20: 0 | T20: 38119 | U20: Kicukiro
A21: =IF(INTRO!$E$33<>0,INTRO!$E$33, " ") -> Rwanda | B21: East | C21: Kirehe | D21: 397039 | E21: 49726.58723 | F21: 120139.4347 | G21: 216410.1076 | H21: 0 | I21: 2 | J21: 1 | K21: =IF(INTRO!$E$37="Endemic",IF($H21>0,IF($H21=4,"Unknown",IF($H21=99,"Stopped",$D21)),0),"Not required") -> Not required | L21: =IF(INTRO!$E$41="Endemic", IF(AND($I21>1, $I21<5), IF($I21=4, "Unknown", E21+F21), 0),"Not required") -> 169866.022 | M21: =IF(INTRO!$E$43="Endemic", IF(AND($J21>0,$J21<5), IF($J21=4,"Unknown", IF($J21=1, $F21*0.33, IF($J21=2, $F21*0.5+$G21*0.2, SUM(F21:G21)))), 0),"Not required") -> 39646.01346 | N21: 0 | O21: 2 | P21: 0 | T21: 38114 | U21: Kirehe
A22: =IF(INTRO!$E$33<>0,INTRO!$E$33, " ") -> Rwanda | B22: South | C22: Muhanga | D22: 372278 | E22: 38419.32628 | F22: 104067.8838 | G22: 212238.8024 | H22: 0 | I22: 2 | J22: 1 | K22: =IF(INTRO!$E$37="Endemic",IF($H22>0,IF($H22=4,"Unknown",IF($H22=99,"Stopped",$D22)),0),"Not required") -> Not required | L22: =IF(INTRO!$E$41="Endemic", IF(AND($I22>1, $I22<5), IF($I22=4, "Unknown", E22+F22), 0),"Not required") -> 142487.2101 | M22: =IF(INTRO!$E$43="Endemic", IF(AND($J22>0,$J22<5), IF($J22=4,"Unknown", IF($J22=1, $F22*0.33, IF($J22=2, $F22*0.5+$G22*0.2, SUM(F22:G22)))), 0),"Not required") -> 34342.40165 | N22: 0 | O22: 2 | P22: 0 | T22: 38129 | U22: Muhanga
A23: =IF(INTRO!$E$33<>0,INTRO!$E$33, " ") -> Rwanda | B23: North | C23: Musanze | D23: 429582 | E23: 47346.23045 | F23: 126973.9817 | G23: 244048.297 | H23: 0 | I23: 3 | J23: 2 | K23: =IF(INTRO!$E$37="Endemic",IF($H23>0,IF($H23=4,"Unknown",IF($H23=99,"Stopped",$D23)),0),"Not required") -> Not required | L23: =IF(INTRO!$E$41="Endemic", IF(AND($I23>1, $I23<5), IF($I23=4, "Unknown", E23+F23), 0),"Not required") -> 174320.2121 | M23: =IF(INTRO!$E$43="Endemic", IF(AND($J23>0,$J23<5), IF($J23=4,"Unknown", IF($J23=1, $F23*0.33, IF($J23=2, $F23*0.5+$G23*0.2, SUM(F23:G23)))), 0),"Not required") -> 112296.6502 | N23: 0 | O23: 2 | P23: 1 | T23: 38124 | U23: Musanze
A24: =IF(INTRO!$E$33<>0,INTRO!$E$33, " ") -> Rwanda | B24: East | C24: Ngoma | D24: 393026 | E24: 63400.53149 | F24: 111049.3781 | G24: 207134.6557 | H24: 0 | I24: 2 | J24: 2 | K24: =IF(INTRO!$E$37="Endemic",IF($H24>0,IF($H24=4,"Unknown",IF($H24=99,"Stopped",$D24)),0),"Not required") -> Not required | L24: =IF(INTRO!$E$41="Endemic", IF(AND($I24>1, $I24<5), IF($I24=4, "Unknown", E24+F24), 0),"Not required") -> 174449.9096 | M24: =IF(INTRO!$E$43="Endemic", IF(AND($J24>0,$J24<5), IF($J24=4,"Unknown", IF($J24=1, $F24*0.33, IF($J24=2, $F24*0.5+$G24*0.2, SUM(F24:G24)))), 0),"Not required") -> 96951.6202 | N24: 0 | O24: 2 | P24: 1 | T24: 38115 | U24: Ngoma
A25: =IF(INTRO!$E$33<>0,INTRO!$E$33, " ") -> Rwanda | B25: West | C25: Ngororero | D25: 389275 | E25: 46804.14216 | F25: 120130.6315 | G25: 211008.6742 | H25: 0 | I25: 3 | J25: 2 | K25: =IF(INTRO!$E$37="Endemic",IF($H25>0,IF($H25=4,"Unknown",IF($H25=99,"Stopped",$D25)),0),"Not required") -> Not required | L25: =IF(INTRO!$E$41="Endemic", IF(AND($I25>1, $I25<5), IF($I25=4, "Unknown", E25+F25), 0),"Not required") -> 166934.7737 | M25: =IF(INTRO!$E$43="Endemic", IF(AND($J25>0,$J25<5), IF($J25=4,"Unknown", IF($J25=1, $F25*0.33, IF($J25=2, $F25*0.5+$G25*0.2, SUM(F25:G25)))), 0),"Not required") -> 102267.0506 | N25: 0 | O25: 2 | P25: 1 | T25: 38136 | U25: Ngororero
A26: =IF(INTRO!$E$33<>0,INTRO!$E$33, " ") -> Rwanda | B26: West | C26: Nyabihu | D26: 343815 | E26: 40649.10661 | F26: 108512.4456 | G26: 184987.8835 | H26: 0 | I26: 3 | J26: 1 | K26: =IF(INTRO!$E$37="Endemic",IF($H26>0,IF($H26=4,"Unknown",IF($H26=99,"Stopped",$D26)),0),"Not required") -> Not required | L26: =IF(INTRO!$E$41="Endemic", IF(AND($I26>1, $I26<5), IF($I26=4, "Unknown", E26+F26), 0),"Not required") -> 149161.5522 | M26: =IF(INTRO!$E$43="Endemic", IF(AND($J26>0,$J26<5), IF($J26=4,"Unknown", IF($J26=1, $F26*0.33, IF($J26=2, $F26*0.5+$G26*0.2, SUM(F26:G26)))), 0),"Not required") -> 35809.10705 | N26: 0 | O26: 2 | P26: 0 | T26: 38137 | U26: Nyabihu
A27: =IF(INTRO!$E$33<>0,INTRO!$E$33, " ") -> Rwanda | B27: East | C27: Nyagatare | D27: 543420 | E27: 68059.80378 | F27: 167699.3565 | G27: 291840.4386 | H27: 0 | I27: 2 | J27: 2 | K27: =IF(INTRO!$E$37="Endemic",IF($H27>0,IF($H27=4,"Unknown",IF($H27=99,"Stopped",$D27)),0),"Not required") -> Not required | L27: =IF(INTRO!$E$41="Endemic", IF(AND($I27>1, $I27<5), IF($I27=4, "Unknown", E27+F27), 0),"Not required") -> 235759.1603 | M27: =IF(INTRO!$E$43="Endemic", IF(AND($J27>0,$J27<5), IF($J27=4,"Unknown", IF($J27=1, $F27*0.33, IF($J27=2, $F27*0.5+$G27*0.2, SUM(F27:G27)))), 0),"Not required") -> 142217.766 | N27: 0 | O27: 2 | P27: 1 | T27: 38116 | U27: Nyagatare
A28: =IF(INTRO!$E$33<>0,INTRO!$E$33, " ") -> Rwanda | B28: South | C28: Nyamagabe | D28: 398348 | E28: 53995.27568 | F28: 116915.3903 | G28: 261497.7814 | H28: 0 | I28: 3 | J28: 1 | K28: =IF(INTRO!$E$37="Endemic",IF($H28>0,IF($H28=4,"Unknown",IF($H28=99,"Stopped",$D28)),0),"Not required") -> Not required | L28: =IF(INTRO!$E$41="Endemic", IF(AND($I28>1, $I28<5), IF($I28=4, "Unknown", E28+F28), 0),"Not required") -> 170910.666 | M28: =IF(INTRO!$E$43="Endemic", IF(AND($J28>0,$J28<5), IF($J28=4,"Unknown", IF($J28=1, $F28*0.33, IF($J28=2, $F28*0.5+$G28*0.2, SUM(F28:G28)))), 0),"Not required") -> 38582.0788 | N28: 0 | O28: 2 | P28: 0 | T28: 38130 | U28: Nyamagabe
A29: =IF(INTRO!$E$33<>0,INTRO!$E$33, " ") -> Rwanda | B29: West | C29: Nyamasheke | D29: 445375 | E29: 44702.02566 | F29: 122531.4453 | G29: 211137.2462 | H29: 0 | I29: 3 | J29: 2 | K29: =IF(INTRO!$E$37="Endemic",IF($H29>0,IF($H29=4,"Unknown",IF($H29=99,"Stopped",$D29)),0),"Not required") -> Not required | L29: =IF(INTRO!$E$41="Endemic", IF(AND($I29>1, $I29<5), IF($I29=4, "Unknown", E29+F29), 0),"Not required") -> 167233.471 | M29: =IF(INTRO!$E$43="Endemic", IF(AND($J29>0,$J29<5), IF($J29=4,"Unknown", IF($J29=1, $F29*0.33, IF($J29=2, $F29*0.5+$G29*0.2, SUM(F29:G29)))), 0),"Not required") -> 103493.1719 | N29: 0 | O29: 2 | P29: 1 | T29: 38138 | U29: Nyamasheke
A30: =IF(INTRO!$E$33<>0,INTRO!$E$33, " ") -> Rwanda | B30: South | C30: Nyanza | D30: 377617 | E30: 45402.45689 | F30: 100263.759 | G30: 221336.9773 | H30: 0 | I30: 1 | J30: 2 | K30: =IF(INTRO!$E$37="Endemic",IF($H30>0,IF($H30=4,"Unknown",IF($H30=99,"Stopped",$D30)),0),"Not required") -> Not required | L30: =IF(INTRO!$E$41="Endemic", IF(AND($I30>1, $I30<5), IF($I30=4, "Unknown", E30+F30), 0),"Not required") -> 0 | M30: =IF(INTRO!$E$43="Endemic", IF(AND($J30>0,$J30<5), IF($J30=4,"Unknown", IF($J30=1, $F30*0.33, IF($J30=2, $F30*0.5+$G30*0.2, SUM(F30:G30)))), 0),"Not required") -> 94399.27495 | N30: 0 | O30: 2 | P30: 1 | T30: 38131 | U30: Nyanza
A31: =IF(INTRO!$E$33<>0,INTRO!$E$33, " ") -> Rwanda | B31: Kigali | C31: Nyarugenge | D31: 331940 | E31: 34589.05017 | F31: 72836.55756 | G31: 215848.9765 | H31: 0 | I31: 1 | J31: 1 | K31: =IF(INTRO!$E$37="Endemic",IF($H31>0,IF($H31=4,"Unknown",IF($H31=99,"Stopped",$D31)),0),"Not required") -> Not required | L31: =IF(INTRO!$E$41="Endemic", IF(AND($I31>1, $I31<5), IF($I31=4, "Unknown", E31+F31), 0),"Not required") -> 0 | M31: =IF(INTRO!$E$43="Endemic", IF(AND($J31>0,$J31<5), IF($J31=4,"Unknown", IF($J31=1, $F31*0.33, IF($J31=2, $F31*0.5+$G31*0.2, SUM(F31:G31)))), 0),"Not required") -> 24036.06399 | N31: 0 | O31: 2 | P31: 1 | T31: 38120 | U31: Nyarugenge
A32: =IF(INTRO!$E$33<>0,INTRO!$E$33, " ") -> Rwanda | B32: South | C32: Nyaruguru | D32: 343340 | E32: 40249.10363 | F32: 110083.0185 | G32: 183701.0371 | H32: 0 | I32: 3 | J32: 1 | K32: =IF(INTRO!$E$37="Endemic",IF($H32>0,IF($H32=4,"Unknown",IF($H32=99,"Stopped",$D32)),0),"Not required") -> Not required | L32: =IF(INTRO!$E$41="Endemic", IF(AND($I32>1, $I32<5), IF($I32=4, "Unknown", E32+F32), 0),"Not required") -> 150332.1221 | M32: =IF(INTRO!$E$43="Endemic", IF(AND($J32>0,$J32<5), IF($J32=4,"Unknown", IF($J32=1, $F32*0.33, IF($J32=2, $F32*0.5+$G32*0.2, SUM(F32:G32)))), 0),"Not required") -> 36327.3961 | N32: 0 | O32: 2 | P32: 0 | T32: 38132 | U32: Nyaruguru
A33: =IF(INTRO!$E$33<>0,INTRO!$E$33, " ") -> Rwanda | B33: West | C33: Rubavu | D33: 470870 | E33: 60388.98857 | F33: 127383.0228 | G33: 268447.9257 | H33: 0 | I33: 3 | J33: 2 | K33: =IF(INTRO!$E$37="Endemic",IF($H33>0,IF($H33=4,"Unknown",IF($H33=99,"Stopped",$D33)),0),"Not required") -> Not required | L33: =IF(INTRO!$E$41="Endemic", IF(AND($I33>1, $I33<5), IF($I33=4, "Unknown", E33+F33), 0),"Not required") -> 187772.0113 | M33: =IF(INTRO!$E$43="Endemic", IF(AND($J33>0,$J33<5), IF($J33=4,"Unknown", IF($J33=1, $F33*0.33, IF($J33=2, $F33*0.5+$G33*0.2, SUM(F33:G33)))), 0),"Not required") -> 117381.0965 | N33: 0 | O33: 2 | P33: 1 | T33: 38139 | U33: Rubavu
A34: =IF(INTRO!$E$33<>0,INTRO!$E$33, " ") -> Rwanda | B34: South | C34: Ruhango | D34: 373145 | E34: 43369.23718 | F34: 107301.4748 | G34: 203012.8947 | H34: 0 | I34: 1 | J34: 1 | K34: =IF(INTRO!$E$37="Endemic",IF($H34>0,IF($H34=4,"Unknown",IF($H34=99,"Stopped",$D34)),0),"Not required") -> Not required | L34: =IF(INTRO!$E$41="Endemic", IF(AND($I34>1, $I34<5), IF($I34=4, "Unknown", E34+F34), 0),"Not required") -> 0 | M34: =IF(INTRO!$E$43="Endemic", IF(AND($J34>0,$J34<5), IF($J34=4,"Unknown", IF($J34=1, $F34*0.33, IF($J34=2, $F34*0.5+$G34*0.2, SUM(F34:G34)))), 0),"Not required") -> 35409.48667 | N34: 0 | O34: 2 | P34: 1 | T34: 38133 | U34: Ruhango
A35: =IF(INTRO!$E$33<>0,INTRO!$E$33, " ") -> Rwanda | B35: North | C35: Rulindo | D35: 335579 | E35: 35304.527 | F35: 96835.27405 | G35: 194679.2489 | H35: 0 | I35: 3 | J35: 2 | K35: =IF(INTRO!$E$37="Endemic",IF($H35>0,IF($H35=4,"Unknown",IF($H35=99,"Stopped",$D35)),0),"Not required") -> Not required | L35: =IF(INTRO!$E$41="Endemic", IF(AND($I35>1, $I35<5), IF($I35=4, "Unknown", E35+F35), 0),"Not required") -> 132139.8011 | M35: =IF(INTRO!$E$43="Endemic", IF(AND($J35>0,$J35<5), IF($J35=4,"Unknown", IF($J35=1, $F35*0.33, IF($J35=2, $F35*0.5+$G35*0.2, SUM(F35:G35)))), 0),"Not required") -> 87353.4868 | N35: 0 | O35: 2 | P35: 1 | T35: 38125 | U35: Rulindo
A36: =IF(INTRO!$E$33<>0,INTRO!$E$33, " ") -> Rwanda | B36: West | C36: Rusizi | D36: 467601 | E36: 57626.94348 | F36: 133994.3564 | G36: 262366.5719 | H36: 0 | I36: 3 | J36: 2 | K36: =IF(INTRO!$E$37="Endemic",IF($H36>0,IF($H36=4,"Unknown",IF($H36=99,"Stopped",$D36)),0),"Not required") -> Not required | L36: =IF(INTRO!$E$41="Endemic", IF(AND($I36>1, $I36<5), IF($I36=4, "Unknown", E36+F36), 0),"Not required") -> 191621.2999 | M36: =IF(INTRO!$E$43="Endemic", IF(AND($J36>0,$J36<5), IF($J36=4,"Unknown", IF($J36=1, $F36*0.33, IF($J36=2, $F36*0.5+$G36*0.2, SUM(F36:G36)))), 0),"Not required") -> 119470.4926 | N36: 0 | O36: 2 | P36: 1 | T36: 38140 | U36: Rusizi
A37: =IF(INTRO!$E$33<>0,INTRO!$E$33, " ") -> Rwanda | B37: West | C37: Rutsiro | D37: 378709 | E37: 44015.80671 | F37: 118387.3422 | G37: 204901.1692 | H37: 0 | I37: 3 | J37: 2 | K37: =IF(INTRO!$E$37="Endemic",IF($H37>0,IF($H37=4,"Unknown",IF($H37=99,"Stopped",$D37)),0),"Not required") -> Not required | L37: =IF(INTRO!$E$41="Endemic", IF(AND($I37>1, $I37<5), IF($I37=4, "Unknown", E37+F37), 0),"Not required") -> 162403.1489 | M37: =IF(INTRO!$E$43="Endemic", IF(AND($J37>0,$J37<5), IF($J37=4,"Unknown", IF($J37=1, $F37*0.33, IF($J37=2, $F37*0.5+$G37*0.2, SUM(F37:G37)))), 0),"Not required") -> 100173.9049 | N37: 0 | O37: 2 | P37: 1 | T37: 38141 | U37: Rutsiro
A38: =IF(INTRO!$E$33<>0,INTRO!$E$33, " ") -> Rwanda | B38: East | C38: Rwamagana | D38: 365651 | E38: 44696.47399 | F38: 98552.06151 | G38: 211392.3401 | H38: 0 | I38: 1 | J38: 2 | K38: =IF(INTRO!$E$37="Endemic",IF($H38>0,IF($H38=4,"Unknown",IF($H38=99,"Stopped",$D38)),0),"Not required") -> Not required | L38: =IF(INTRO!$E$41="Endemic", IF(AND($I38>1, $I38<5), IF($I38=4, "Unknown", E38+F38), 0),"Not required") -> 0 | M38: =IF(INTRO!$E$43="Endemic", IF(AND($J38>0,$J38<5), IF($J38=4,"Unknown", IF($J38=1, $F38*0.33, IF($J38=2, $F38*0.5+$G38*0.2, SUM(F38:G38)))), 0),"Not required") -> 91554.49878 | N38: 0 | O38: 2 | P38: 1 | T38: 38117 | U38: Rwamagana

Sheet DEC
A1: Diethylcarbamazine citrate (DEC)
A2: Administrative structure, eligible population by age group, treatment plan and information about tablets
A4: TOTAL | D4: =SUM(D$9:D$1000) -> 0 | E4: =SUM(E$9:E$1000) -> 0 | F4: =SUM(F$9:F$1000) -> 0 | G4: =SUM(G$9:G$1000) -> 0 | I4: =SUM(I$9:I$1000) -> 0 | J4: =SUM(J$9:J$1000) -> 0 | K4: =SUM(K$9:K$1000) -> 0 | L4: =SUM(L$9:L$1000) -> 0 | M4: =SUM(M$9:M$1000) -> 0
A6: Country administrative structure | D6: Population requiring treatment with DEC | H6: Treatment plan | I6: Target population | J6: Diethylcarbamazine citrate (DEC)
A7: Country | B7: Province/State | C7: District | D7: PreSAC | E7: SAC | F7: Adults | G7: Total | H7: LF | I7: LF | J7: Total required | K7: Remaining in stock | L7: Tablets to be procured | M7: Bottle (100 mg) 1000 tablets
A9: =IF(INTRO!$E$37="Non-endemic"," ", IF(COUNTRY_INFO!A9=0," ",COUNTRY_INFO!A9)) ->  | B9: =IF(INTRO!$E$37="Non-endemic"," ", IF(COUNTRY_INFO!B9=0," ",COUNTRY_INFO!B9)) ->  | C9: =IF(INTRO!$E$37="Non-endemic"," ", IF(COUNTRY_INFO!C9=0," ",COUNTRY_INFO!C9)) ->  | D9: =IF(INTRO!$E$37="Non-endemic",0,IF(COUNTRY_INFO!$H9=1,COUNTRY_INFO!E9,0)) -> 0 | E9: =IF(INTRO!$E$37="Non-endemic",0,IF(COUNTRY_INFO!$H9=1,COUNTRY_INFO!F9,0)) -> 0 | F9: =IF(INTRO!$E$37="Non-endemic",0,IF(COUNTRY_INFO!$H9=1,COUNTRY_INFO!G9,0)) -> 0 | G9: =SUM(D9:F9) -> 0 | H9: =IF(INTRO!$E$37="Non-endemic","Not required",COUNTRY_INFO!N9) -> Not required | I9: =IF(H9=1,G9,0) -> 0 | J9: =IF(I9>0,I9*2.5,0) -> 0 | L9: =IF($J9>$K9,$J9-$K9,0) -> 0 | M9: =ROUNDUP($J9/1000,0) -> 0
A10: =IF(INTRO!$E$37="Non-endemic"," ", IF(COUNTRY_INFO!A10=0," ",COUNTRY_INFO!A10)) ->  | B10: =IF(INTRO!$E$37="Non-endemic"," ", IF(COUNTRY_INFO!B10=0," ",COUNTRY_INFO!B10)) ->  | C10: =IF(INTRO!$E$37="Non-endemic"," ", IF(COUNTRY_INFO!C10=0," ",COUNTRY_INFO!C10)) ->  | D10: =IF(INTRO!$E$37="Non-endemic",0,IF(COUNTRY_INFO!$H10=1,COUNTRY_INFO!E10,0)) -> 0 | E10: =IF(INTRO!$E$37="Non-endemic",0,IF(COUNTRY_INFO!$H10=1,COUNTRY_INFO!F10,0)) -> 0 | F10: =IF(INTRO!$E$37="Non-endemic",0,IF(COUNTRY_INFO!$H10=1,COUNTRY_INFO!G10,0)) -> 0 | G10: =SUM(D10:F10) -> 0 | H10: =IF(INTRO!$E$37="Non-endemic","Not required",COUNTRY_INFO!N10) -> Not required | I10: =IF(H10=1,G10,0) -> 0 | J10: =IF(I10>0,I10*2.5,0) -> 0 | L10: 0 | M10: 0
A11: =IF(INTRO!$E$37="Non-endemic"," ", IF(COUNTRY_INFO!A11=0," ",COUNTRY_INFO!A11)) ->  | B11: =IF(INTRO!$E$37="Non-endemic"," ", IF(COUNTRY_INFO!B11=0," ",COUNTRY_INFO!B11)) ->  | C11: =IF(INTRO!$E$37="Non-endemic"," ", IF(COUNTRY_INFO!C11=0," ",COUNTRY_INFO!C11)) ->  | D11: =IF(INTRO!$E$37="Non-endemic",0,IF(COUNTRY_INFO!$H11=1,COUNTRY_INFO!E11,0)) -> 0 | E11: =IF(INTRO!$E$37="Non-endemic",0,IF(COUNTRY_INFO!$H11=1,COUNTRY_INFO!F11,0)) -> 0 | F11: =IF(INTRO!$E$37="Non-endemic",0,IF(COUNTRY_INFO!$H11=1,COUNTRY_INFO!G11,0)) -> 0 | G11: 0 | H11: =IF(INTRO!$E$37="Non-endemic","Not required",COUNTRY_INFO!N11) -> Not required | I11: 0 | J11: 0 | L11: 0 | M11: 0
A12: =IF(INTRO!$E$37="Non-endemic"," ", IF(COUNTRY_INFO!A12=0," ",COUNTRY_INFO!A12)) ->  | B12: =IF(INTRO!$E$37="Non-endemic"," ", IF(COUNTRY_INFO!B12=0," ",COUNTRY_INFO!B12)) ->  | C12: =IF(INTRO!$E$37="Non-endemic"," ", IF(COUNTRY_INFO!C12=0," ",COUNTRY_INFO!C12)) ->  | D12: =IF(INTRO!$E$37="Non-endemic",0,IF(COUNTRY_INFO!$H12=1,COUNTRY_INFO!E12,0)) -> 0 | E12: =IF(INTRO!$E$37="Non-endemic",0,IF(COUNTRY_INFO!$H12=1,COUNTRY_INFO!F12,0)) -> 0 | F12: =IF(INTRO!$E$37="Non-endemic",0,IF(COUNTRY_INFO!$H12=1,COUNTRY_INFO!G12,0)) -> 0 | G12: 0 | H12: =IF(INTRO!$E$37="Non-endemic","Not required",COUNTRY_INFO!N12) -> Not required | I12: 0 | J12: 0 | L12: 0 | M12: 0
A13: =IF(INTRO!$E$37="Non-endemic"," ", IF(COUNTRY_INFO!A13=0," ",COUNTRY_INFO!A13)) ->  | B13: =IF(INTRO!$E$37="Non-endemic"," ", IF(COUNTRY_INFO!B13=0," ",COUNTRY_INFO!B13)) ->  | C13: =IF(INTRO!$E$37="Non-endemic"," ", IF(COUNTRY_INFO!C13=0," ",COUNTRY_INFO!C13)) ->  | D13: =IF(INTRO!$E$37="Non-endemic",0,IF(COUNTRY_INFO!$H13=1,COUNTRY_INFO!E13,0)) -> 0 | E13: =IF(INTRO!$E$37="Non-endemic",0,IF(COUNTRY_INFO!$H13=1,COUNTRY_INFO!F13,0)) -> 0 | F13: =IF(INTRO!$E$37="Non-endemic",0,IF(COUNTRY_INFO!$H13=1,COUNTRY_INFO!G13,0)) -> 0 | G13: 0 | H13: =IF(INTRO!$E$37="Non-endemic","Not required",COUNTRY_INFO!N13) -> Not required | I13: 0 | J13: 0 | L13: 0 | M13: 0
A14: =IF(INTRO!$E$37="Non-endemic"," ", IF(COUNTRY_INFO!A14=0," ",COUNTRY_INFO!A14)) ->  | B14: =IF(INTRO!$E$37="Non-endemic"," ", IF(COUNTRY_INFO!B14=0," ",COUNTRY_INFO!B14)) ->  | C14: =IF(INTRO!$E$37="Non-endemic"," ", IF(COUNTRY_INFO!C14=0," ",COUNTRY_INFO!C14)) ->  | D14: =IF(INTRO!$E$37="Non-endemic",0,IF(COUNTRY_INFO!$H14=1,COUNTRY_INFO!E14,0)) -> 0 | E14: =IF(INTRO!$E$37="Non-endemic",0,IF(COUNTRY_INFO!$H14=1,COUNTRY_INFO!F14,0)) -> 0 | F14: =IF(INTRO!$E$37="Non-endemic",0,IF(COUNTRY_INFO!$H14=1,COUNTRY_INFO!G14,0)) -> 0 | G14: 0 | H14: =IF(INTRO!$E$37="Non-endemic","Not required",COUNTRY_INFO!N14) -> Not required | I14: 0 | J14: 0 | L14: 0 | M14: 0
A15: =IF(INTRO!$E$37="Non-endemic"," ", IF(COUNTRY_INFO!A15=0," ",COUNTRY_INFO!A15)) ->  | B15: =IF(INTRO!$E$37="Non-endemic"," ", IF(COUNTRY_INFO!B15=0," ",COUNTRY_INFO!B15)) ->  | C15: =IF(INTRO!$E$37="Non-endemic"," ", IF(COUNTRY_INFO!C15=0," ",COUNTRY_INFO!C15)) ->  | D15: =IF(INTRO!$E$37="Non-endemic",0,IF(COUNTRY_INFO!$H15=1,COUNTRY_INFO!E15,0)) -> 0 | E15: =IF(INTRO!$E$37="Non-endemic",0,IF(COUNTRY_INFO!$H15=1,COUNTRY_INFO!F15,0)) -> 0 | F15: =IF(INTRO!$E$37="Non-endemic",0,IF(COUNTRY_INFO!$H15=1,COUNTRY_INFO!G15,0)) -> 0 | G15: 0 | H15: =IF(INTRO!$E$37="Non-endemic","Not required",COUNTRY_INFO!N15) -> Not required | I15: 0 | J15: 0 | L15: 0 | M15: 0
A16: =IF(INTRO!$E$37="Non-endemic"," ", IF(COUNTRY_INFO!A16=0," ",COUNTRY_INFO!A16)) ->  | B16: =IF(INTRO!$E$37="Non-endemic"," ", IF(COUNTRY_INFO!B16=0," ",COUNTRY_INFO!B16)) ->  | C16: =IF(INTRO!$E$37="Non-endemic"," ", IF(COUNTRY_INFO!C16=0," ",COUNTRY_INFO!C16)) ->  | D16: =IF(INTRO!$E$37="Non-endemic",0,IF(COUNTRY_INFO!$H16=1,COUNTRY_INFO!E16,0)) -> 0 | E16: =IF(INTRO!$E$37="Non-endemic",0,IF(COUNTRY_INFO!$H16=1,COUNTRY_INFO!F16,0)) -> 0 | F16: =IF(INTRO!$E$37="Non-endemic",0,IF(COUNTRY_INFO!$H16=1,COUNTRY_INFO!G16,0)) -> 0 | G16: 0 | H16: =IF(INTRO!$E$37="Non-endemic","Not required",COUNTRY_INFO!N16) -> Not required | I16: 0 | J16: 0 | L16: 0 | M16: 0
A17: =IF(INTRO!$E$37="Non-endemic"," ", IF(COUNTRY_INFO!A17=0," ",COUNTRY_INFO!A17)) ->  | B17: =IF(INTRO!$E$37="Non-endemic"," ", IF(COUNTRY_INFO!B17=0," ",COUNTRY_INFO!B17)) ->  | C17: =IF(INTRO!$E$37="Non-endemic"," ", IF(COUNTRY_INFO!C17=0," ",COUNTRY_INFO!C17)) ->  | D17: =IF(INTRO!$E$37="Non-endemic",0,IF(COUNTRY_INFO!$H17=1,COUNTRY_INFO!E17,0)) -> 0 | E17: =IF(INTRO!$E$37="Non-endemic",0,IF(COUNTRY_INFO!$H17=1,COUNTRY_INFO!F17,0)) -> 0 | F17: =IF(INTRO!$E$37="Non-endemic",0,IF(COUNTRY_INFO!$H17=1,COUNTRY_INFO!G17,0)) -> 0 | G17: 0 | H17: =IF(INTRO!$E$37="Non-endemic","Not required",COUNTRY_INFO!N17) -> Not required | I17: 0 | J17: 0 | L17: 0 | M17: 0
A18: =IF(INTRO!$E$37="Non-endemic"," ", IF(COUNTRY_INFO!A18=0," ",COUNTRY_INFO!A18)) ->  | B18: =IF(INTRO!$E$37="Non-endemic"," ", IF(COUNTRY_INFO!B18=0," ",COUNTRY_INFO!B18)) ->  | C18: =IF(INTRO!$E$37="Non-endemic"," ", IF(COUNTRY_INFO!C18=0," ",COUNTRY_INFO!C18)) ->  | D18: =IF(INTRO!$E$37="Non-endemic",0,IF(COUNTRY_INFO!$H18=1,COUNTRY_INFO!E18,0)) -> 0 | E18: =IF(INTRO!$E$37="Non-endemic",0,IF(COUNTRY_INFO!$H18=1,COUNTRY_INFO!F18,0)) -> 0 | F18: =IF(INTRO!$E$37="Non-endemic",0,IF(COUNTRY_INFO!$H18=1,COUNTRY_INFO!G18,0)) -> 0 | G18: 0 | H18: =IF(INTRO!$E$37="Non-endemic","Not required",COUNTRY_INFO!N18) -> Not required | I18: 0 | J18: 0 | L18: 0 | M18: 0
A19: =IF(INTRO!$E$37="Non-endemic"," ", IF(COUNTRY_INFO!A19=0," ",COUNTRY_INFO!A19)) ->  | B19: =IF(INTRO!$E$37="Non-endemic"," ", IF(COUNTRY_INFO!B19=0," ",COUNTRY_INFO!B19)) ->  | C19: =IF(INTRO!$E$37="Non-endemic"," ", IF(COUNTRY_INFO!C19=0," ",COUNTRY_INFO!C19)) ->  | D19: =IF(INTRO!$E$37="Non-endemic",0,IF(COUNTRY_INFO!$H19=1,COUNTRY_INFO!E19,0)) -> 0 | E19: =IF(INTRO!$E$37="Non-endemic",0,IF(COUNTRY_INFO!$H19=1,COUNTRY_INFO!F19,0)) -> 0 | F19: =IF(INTRO!$E$37="Non-endemic",0,IF(COUNTRY_INFO!$H19=1,COUNTRY_INFO!G19,0)) -> 0 | G19: 0 | H19: =IF(INTRO!$E$37="Non-endemic","Not required",COUNTRY_INFO!N19) -> Not required | I19: 0 | J19: 0 | L19: 0 | M19: 0
A20: =IF(INTRO!$E$37="Non-endemic"," ", IF(COUNTRY_INFO!A20=0," ",COUNTRY_INFO!A20)) ->  | B20: =IF(INTRO!$E$37="Non-endemic"," ", IF(COUNTRY_INFO!B20=0," ",COUNTRY_INFO!B20)) ->  | C20: =IF(INTRO!$E$37="Non-endemic"," ", IF(COUNTRY_INFO!C20=0," ",COUNTRY_INFO!C20)) ->  | D20: =IF(INTRO!$E$37="Non-endemic",0,IF(COUNTRY_INFO!$H20=1,COUNTRY_INFO!E20,0)) -> 0 | E20: =IF(INTRO!$E$37="Non-endemic",0,IF(COUNTRY_INFO!$H20=1,COUNTRY_INFO!F20,0)) -> 0 | F20: =IF(INTRO!$E$37="Non-endemic",0,IF(COUNTRY_INFO!$H20=1,COUNTRY_INFO!G20,0)) -> 0 | G20: 0 | H20: =IF(INTRO!$E$37="Non-endemic","Not required",COUNTRY_INFO!N20) -> Not required | I20: 0 | J20: 0 | L20: 0 | M20: 0
A21: =IF(INTRO!$E$37="Non-endemic"," ", IF(COUNTRY_INFO!A21=0," ",COUNTRY_INFO!A21)) ->  | B21: =IF(INTRO!$E$37="Non-endemic"," ", IF(COUNTRY_INFO!B21=0," ",COUNTRY_INFO!B21)) ->  | C21: =IF(INTRO!$E$37="Non-endemic"," ", IF(COUNTRY_INFO!C21=0," ",COUNTRY_INFO!C21)) ->  | D21: =IF(INTRO!$E$37="Non-endemic",0,IF(COUNTRY_INFO!$H21=1,COUNTRY_INFO!E21,0)) -> 0 | E21: =IF(INTRO!$E$37="Non-endemic",0,IF(COUNTRY_INFO!$H21=1,COUNTRY_INFO!F21,0)) -> 0 | F21: =IF(INTRO!$E$37="Non-endemic",0,IF(COUNTRY_INFO!$H21=1,COUNTRY_INFO!G21,0)) -> 0 | G21: 0 | H21: =IF(INTRO!$E$37="Non-endemic","Not required",COUNTRY_INFO!N21) -> Not required | I21: 0 | J21: 0 | L21: 0 | M21: 0
A22: =IF(INTRO!$E$37="Non-endemic"," ", IF(COUNTRY_INFO!A22=0," ",COUNTRY_INFO!A22)) ->  | B22: =IF(INTRO!$E$37="Non-endemic"," ", IF(COUNTRY_INFO!B22=0," ",COUNTRY_INFO!B22)) ->  | C22: =IF(INTRO!$E$37="Non-endemic"," ", IF(COUNTRY_INFO!C22=0," ",COUNTRY_INFO!C22)) ->  | D22: =IF(INTRO!$E$37="Non-endemic",0,IF(COUNTRY_INFO!$H22=1,COUNTRY_INFO!E22,0)) -> 0 | E22: =IF(INTRO!$E$37="Non-endemic",0,IF(COUNTRY_INFO!$H22=1,COUNTRY_INFO!F22,0)) -> 0 | F22: =IF(INTRO!$E$37="Non-endemic",0,IF(COUNTRY_INFO!$H22=1,COUNTRY_INFO!G22,0)) -> 0 | G22: 0 | H22: =IF(INTRO!$E$37="Non-endemic","Not required",COUNTRY_INFO!N22) -> Not required | I22: 0 | J22: 0 | L22: 0 | M22: 0
A23: =IF(INTRO!$E$37="Non-endemic"," ", IF(COUNTRY_INFO!A23=0," ",COUNTRY_INFO!A23)) ->  | B23: =IF(INTRO!$E$37="Non-endemic"," ", IF(COUNTRY_INFO!B23=0," ",COUNTRY_INFO!B23)) ->  | C23: =IF(INTRO!$E$37="Non-endemic"," ", IF(COUNTRY_INFO!C23=0," ",COUNTRY_INFO!C23)) ->  | D23: =IF(INTRO!$E$37="Non-endemic",0,IF(COUNTRY_INFO!$H23=1,COUNTRY_INFO!E23,0)) -> 0 | E23: =IF(INTRO!$E$37="Non-endemic",0,IF(COUNTRY_INFO!$H23=1,COUNTRY_INFO!F23,0)) -> 0 | F23: =IF(INTRO!$E$37="Non-endemic",0,IF(COUNTRY_INFO!$H23=1,COUNTRY_INFO!G23,0)) -> 0 | G23: 0 | H23: =IF(INTRO!$E$37="Non-endemic","Not required",COUNTRY_INFO!N23) -> Not required | I23: 0 | J23: 0 | L23: 0 | M23: 0
A24: =IF(INTRO!$E$37="Non-endemic"," ", IF(COUNTRY_INFO!A24=0," ",COUNTRY_INFO!A24)) ->  | B24: =IF(INTRO!$E$37="Non-endemic"," ", IF(COUNTRY_INFO!B24=0," ",COUNTRY_INFO!B24)) ->  | C24: =IF(INTRO!$E$37="Non-endemic"," ", IF(COUNTRY_INFO!C24=0," ",COUNTRY_INFO!C24)) ->  | D24: =IF(INTRO!$E$37="Non-endemic",0,IF(COUNTRY_INFO!$H24=1,COUNTRY_INFO!E24,0)) -> 0 | E24: =IF(INTRO!$E$37="Non-endemic",0,IF(COUNTRY_INFO!$H24=1,COUNTRY_INFO!F24,0)) -> 0 | F24: =IF(INTRO!$E$37="Non-endemic",0,IF(COUNTRY_INFO!$H24=1,COUNTRY_INFO!G24,0)) -> 0 | G24: 0 | H24: =IF(INTRO!$E$37="Non-endemic","Not required",COUNTRY_INFO!N24) -> Not required | I24: 0 | J24: 0 | L24: 0 | M24: 0
A25: =IF(INTRO!$E$37="Non-endemic"," ", IF(COUNTRY_INFO!A25=0," ",COUNTRY_INFO!A25)) ->  | B25: =IF(INTRO!$E$37="Non-endemic"," ", IF(COUNTRY_INFO!B25=0," ",COUNTRY_INFO!B25)) ->  | C25: =IF(INTRO!$E$37="Non-endemic"," ", IF(COUNTRY_INFO!C25=0," ",COUNTRY_INFO!C25)) ->  | D25: =IF(INTRO!$E$37="Non-endemic",0,IF(COUNTRY_INFO!$H25=1,COUNTRY_INFO!E25,0)) -> 0 | E25: =IF(INTRO!$E$37="Non-endemic",0,IF(COUNTRY_INFO!$H25=1,COUNTRY_INFO!F25,0)) -> 0 | F25: =IF(INTRO!$E$37="Non-endemic",0,IF(COUNTRY_INFO!$H25=1,COUNTRY_INFO!G25,0)) -> 0 | G25: 0 | H25: =IF(INTRO!$E$37="Non-endemic","Not required",COUNTRY_INFO!N25) -> Not required | I25: 0 | J25: 0 | L25: 0 | M25: 0
A26: =IF(INTRO!$E$37="Non-endemic"," ", IF(COUNTRY_INFO!A26=0," ",COUNTRY_INFO!A26)) ->  | B26: =IF(INTRO!$E$37="Non-endemic"," ", IF(COUNTRY_INFO!B26=0," ",COUNTRY_INFO!B26)) ->  | C26: =IF(INTRO!$E$37="Non-endemic"," ", IF(COUNTRY_INFO!C26=0," ",COUNTRY_INFO!C26)) ->  | D26: =IF(INTRO!$E$37="Non-endemic",0,IF(COUNTRY_INFO!$H26=1,COUNTRY_INFO!E26,0)) -> 0 | E26: =IF(INTRO!$E$37="Non-endemic",0,IF(COUNTRY_INFO!$H26=1,COUNTRY_INFO!F26,0)) -> 0 | F26: =IF(INTRO!$E$37="Non-endemic",0,IF(COUNTRY_INFO!$H26=1,COUNTRY_INFO!G26,0)) -> 0 | G26: 0 | H26: =IF(INTRO!$E$37="Non-endemic","Not required",COUNTRY_INFO!N26) -> Not required | I26: 0 | J26: 0 | L26: 0 | M26: 0
A27: =IF(INTRO!$E$37="Non-endemic"," ", IF(COUNTRY_INFO!A27=0," ",COUNTRY_INFO!A27)) ->  | B27: =IF(INTRO!$E$37="Non-endemic"," ", IF(COUNTRY_INFO!B27=0," ",COUNTRY_INFO!B27)) ->  | C27: =IF(INTRO!$E$37="Non-endemic"," ", IF(COUNTRY_INFO!C27=0," ",COUNTRY_INFO!C27)) ->  | D27: =IF(INTRO!$E$37="Non-endemic",0,IF(COUNTRY_INFO!$H27=1,COUNTRY_INFO!E27,0)) -> 0 | E27: =IF(INTRO!$E$37="Non-endemic",0,IF(COUNTRY_INFO!$H27=1,COUNTRY_INFO!F27,0)) -> 0 | F27: =IF(INTRO!$E$37="Non-endemic",0,IF(COUNTRY_INFO!$H27=1,COUNTRY_INFO!G27,0)) -> 0 | G27: 0 | H27: =IF(INTRO!$E$37="Non-endemic","Not required",COUNTRY_INFO!N27) -> Not required | I27: 0 | J27: 0 | L27: 0 | M27: 0
A28: =IF(INTRO!$E$37="Non-endemic"," ", IF(COUNTRY_INFO!A28=0," ",COUNTRY_INFO!A28)) ->  | B28: =IF(INTRO!$E$37="Non-endemic"," ", IF(COUNTRY_INFO!B28=0," ",COUNTRY_INFO!B28)) ->  | C28: =IF(INTRO!$E$37="Non-endemic"," ", IF(COUNTRY_INFO!C28=0," ",COUNTRY_INFO!C28)) ->  | D28: =IF(INTRO!$E$37="Non-endemic",0,IF(COUNTRY_INFO!$H28=1,COUNTRY_INFO!E28,0)) -> 0 | E28: =IF(INTRO!$E$37="Non-endemic",0,IF(COUNTRY_INFO!$H28=1,COUNTRY_INFO!F28,0)) -> 0 | F28: =IF(INTRO!$E$37="Non-endemic",0,IF(COUNTRY_INFO!$H28=1,COUNTRY_INFO!G28,0)) -> 0 | G28: 0 | H28: =IF(INTRO!$E$37="Non-endemic","Not required",COUNTRY_INFO!N28) -> Not required | I28: 0 | J28: 0 | L28: 0 | M28: 0
A29: =IF(INTRO!$E$37="Non-endemic"," ", IF(COUNTRY_INFO!A29=0," ",COUNTRY_INFO!A29)) ->  | B29: =IF(INTRO!$E$37="Non-endemic"," ", IF(COUNTRY_INFO!B29=0," ",COUNTRY_INFO!B29)) ->  | C29: =IF(INTRO!$E$37="Non-endemic"," ", IF(COUNTRY_INFO!C29=0," ",COUNTRY_INFO!C29)) ->  | D29: =IF(INTRO!$E$37="Non-endemic",0,IF(COUNTRY_INFO!$H29=1,COUNTRY_INFO!E29,0)) -> 0 | E29: =IF(INTRO!$E$37="Non-endemic",0,IF(COUNTRY_INFO!$H29=1,COUNTRY_INFO!F29,0)) -> 0 | F29: =IF(INTRO!$E$37="Non-endemic",0,IF(COUNTRY_INFO!$H29=1,COUNTRY_INFO!G29,0)) -> 0 | G29: 0 | H29: =IF(INTRO!$E$37="Non-endemic","Not required",COUNTRY_INFO!N29) -> Not required | I29: 0 | J29: 0 | L29: 0 | M29: 0
A30: =IF(INTRO!$E$37="Non-endemic"," ", IF(COUNTRY_INFO!A30=0," ",COUNTRY_INFO!A30)) ->  | B30: =IF(INTRO!$E$37="Non-endemic"," ", IF(COUNTRY_INFO!B30=0," ",COUNTRY_INFO!B30)) ->  | C30: =IF(INTRO!$E$37="Non-endemic"," ", IF(COUNTRY_INFO!C30=0," ",COUNTRY_INFO!C30)) ->  | D30: =IF(INTRO!$E$37="Non-endemic",0,IF(COUNTRY_INFO!$H30=1,COUNTRY_INFO!E30,0)) -> 0 | E30: =IF(INTRO!$E$37="Non-endemic",0,IF(COUNTRY_INFO!$H30=1,COUNTRY_INFO!F30,0)) -> 0 | F30: =IF(INTRO!$E$37="Non-endemic",0,IF(COUNTRY_INFO!$H30=1,COUNTRY_INFO!G30,0)) -> 0 | G30: 0 | H30: =IF(INTRO!$E$37="Non-endemic","Not required",COUNTRY_INFO!N30) -> Not required | I30: 0 | J30: 0 | L30: 0 | M30: 0
A31: =IF(INTRO!$E$37="Non-endemic"," ", IF(COUNTRY_INFO!A31=0," ",COUNTRY_INFO!A31)) ->  | B31: =IF(INTRO!$E$37="Non-endemic"," ", IF(COUNTRY_INFO!B31=0," ",COUNTRY_INFO!B31)) ->  | C31: =IF(INTRO!$E$37="Non-endemic"," ", IF(COUNTRY_INFO!C31=0," ",COUNTRY_INFO!C31)) ->  | D31: =IF(INTRO!$E$37="Non-endemic",0,IF(COUNTRY_INFO!$H31=1,COUNTRY_INFO!E31,0)) -> 0 | E31: =IF(INTRO!$E$37="Non-endemic",0,IF(COUNTRY_INFO!$H31=1,COUNTRY_INFO!F31,0)) -> 0 | F31: =IF(INTRO!$E$37="Non-endemic",0,IF(COUNTRY_INFO!$H31=1,COUNTRY_INFO!G31,0)) -> 0 | G31: 0 | H31: =IF(INTRO!$E$37="Non-endemic","Not required",COUNTRY_INFO!N31) -> Not required | I31: 0 | J31: 0 | L31: 0 | M31: 0
A32: =IF(INTRO!$E$37="Non-endemic"," ", IF(COUNTRY_INFO!A32=0," ",COUNTRY_INFO!A32)) ->  | B32: =IF(INTRO!$E$37="Non-endemic"," ", IF(COUNTRY_INFO!B32=0," ",COUNTRY_INFO!B32)) ->  | C32: =IF(INTRO!$E$37="Non-endemic"," ", IF(COUNTRY_INFO!C32=0," ",COUNTRY_INFO!C32)) ->  | D32: =IF(INTRO!$E$37="Non-endemic",0,IF(COUNTRY_INFO!$H32=1,COUNTRY_INFO!E32,0)) -> 0 | E32: =IF(INTRO!$E$37="Non-endemic",0,IF(COUNTRY_INFO!$H32=1,COUNTRY_INFO!F32,0)) -> 0 | F32: =IF(INTRO!$E$37="Non-endemic",0,IF(COUNTRY_INFO!$H32=1,COUNTRY_INFO!G32,0)) -> 0 | G32: 0 | H32: =IF(INTRO!$E$37="Non-endemic","Not required",COUNTRY_INFO!N32) -> Not required | I32: 0 | J32: 0 | L32: 0 | M32: 0
A33: =IF(INTRO!$E$37="Non-endemic"," ", IF(COUNTRY_INFO!A33=0," ",COUNTRY_INFO!A33)) ->  | B33: =IF(INTRO!$E$37="Non-endemic"," ", IF(COUNTRY_INFO!B33=0," ",COUNTRY_INFO!B33)) ->  | C33: =IF(INTRO!$E$37="Non-endemic"," ", IF(COUNTRY_INFO!C33=0," ",COUNTRY_INFO!C33)) ->  | D33: =IF(INTRO!$E$37="Non-endemic",0,IF(COUNTRY_INFO!$H33=1,COUNTRY_INFO!E33,0)) -> 0 | E33: =IF(INTRO!$E$37="Non-endemic",0,IF(COUNTRY_INFO!$H33=1,COUNTRY_INFO!F33,0)) -> 0 | F33: =IF(INTRO!$E$37="Non-endemic",0,IF(COUNTRY_INFO!$H33=1,COUNTRY_INFO!G33,0)) -> 0 | G33: 0 | H33: =IF(INTRO!$E$37="Non-endemic","Not required",COUNTRY_INFO!N33) -> Not required | I33: 0 | J33: 0 | L33: 0 | M33: 0
A34: =IF(INTRO!$E$37="Non-endemic"," ", IF(COUNTRY_INFO!A34=0," ",COUNTRY_INFO!A34)) ->  | B34: =IF(INTRO!$E$37="Non-endemic"," ", IF(COUNTRY_INFO!B34=0," ",COUNTRY_INFO!B34)) ->  | C34: =IF(INTRO!$E$37="Non-endemic"," ", IF(COUNTRY_INFO!C34=0," ",COUNTRY_INFO!C34)) ->  | D34: =IF(INTRO!$E$37="Non-endemic",0,IF(COUNTRY_INFO!$H34=1,COUNTRY_INFO!E34,0)) -> 0 | E34: =IF(INTRO!$E$37="Non-endemic",0,IF(COUNTRY_INFO!$H34=1,COUNTRY_INFO!F34,0)) -> 0 | F34: =IF(INTRO!$E$37="Non-endemic",0,IF(COUNTRY_INFO!$H34=1,COUNTRY_INFO!G34,0)) -> 0 | G34: 0 | H34: =IF(INTRO!$E$37="Non-endemic","Not required",COUNTRY_INFO!N34) -> Not required | I34: 0 | J34: 0 | L34: 0 | M34: 0
A35: =IF(INTRO!$E$37="Non-endemic"," ", IF(COUNTRY_INFO!A35=0," ",COUNTRY_INFO!A35)) ->  | B35: =IF(INTRO!$E$37="Non-endemic"," ", IF(COUNTRY_INFO!B35=0," ",COUNTRY_INFO!B35)) ->  | C35: =IF(INTRO!$E$37="Non-endemic"," ", IF(COUNTRY_INFO!C35=0," ",COUNTRY_INFO!C35)) ->  | D35: =IF(INTRO!$E$37="Non-endemic",0,IF(COUNTRY_INFO!$H35=1,COUNTRY_INFO!E35,0)) -> 0 | E35: =IF(INTRO!$E$37="Non-endemic",0,IF(COUNTRY_INFO!$H35=1,COUNTRY_INFO!F35,0)) -> 0 | F35: =IF(INTRO!$E$37="Non-endemic",0,IF(COUNTRY_INFO!$H35=1,COUNTRY_INFO!G35,0)) -> 0 | G35: 0 | H35: =IF(INTRO!$E$37="Non-endemic","Not required",COUNTRY_INFO!N35) -> Not required | I35: 0 | J35: 0 | L35: 0 | M35: 0
A36: =IF(INTRO!$E$37="Non-endemic"," ", IF(COUNTRY_INFO!A36=0," ",COUNTRY_INFO!A36)) ->  | B36: =IF(INTRO!$E$37="Non-endemic"," ", IF(COUNTRY_INFO!B36=0," ",COUNTRY_INFO!B36)) ->  | C36: =IF(INTRO!$E$37="Non-endemic"," ", IF(COUNTRY_INFO!C36=0," ",COUNTRY_INFO!C36)) ->  | D36: =IF(INTRO!$E$37="Non-endemic",0,IF(COUNTRY_INFO!$H36=1,COUNTRY_INFO!E36,0)) -> 0 | E36: =IF(INTRO!$E$37="Non-endemic",0,IF(COUNTRY_INFO!$H36=1,COUNTRY_INFO!F36,0)) -> 0 | F36: =IF(INTRO!$E$37="Non-endemic",0,IF(COUNTRY_INFO!$H36=1,COUNTRY_INFO!G36,0)) -> 0 | G36: 0 | H36: =IF(INTRO!$E$37="Non-endemic","Not required",COUNTRY_INFO!N36) -> Not required | I36: 0 | J36: 0 | L36: 0 | M36: 0
A37: =IF(INTRO!$E$37="Non-endemic"," ", IF(COUNTRY_INFO!A37=0," ",COUNTRY_INFO!A37)) ->  | B37: =IF(INTRO!$E$37="Non-endemic"," ", IF(COUNTRY_INFO!B37=0," ",COUNTRY_INFO!B37)) ->  | C37: =IF(INTRO!$E$37="Non-endemic"," ", IF(COUNTRY_INFO!C37=0," ",COUNTRY_INFO!C37)) ->  | D37: =IF(INTRO!$E$37="Non-endemic",0,IF(COUNTRY_INFO!$H37=1,COUNTRY_INFO!E37,0)) -> 0 | E37: =IF(INTRO!$E$37="Non-endemic",0,IF(COUNTRY_INFO!$H37=1,COUNTRY_INFO!F37,0)) -> 0 | F37: =IF(INTRO!$E$37="Non-endemic",0,IF(COUNTRY_INFO!$H37=1,COUNTRY_INFO!G37,0)) -> 0 | G37: 0 | H37: =IF(INTRO!$E$37="Non-endemic","Not required",COUNTRY_INFO!N37) -> Not required | I37: 0 | J37: 0 | L37: 0 | M37: 0
A38: =IF(INTRO!$E$37="Non-endemic"," ", IF(COUNTRY_INFO!A38=0," ",COUNTRY_INFO!A38)) ->  | B38: =IF(INTRO!$E$37="Non-endemic"," ", IF(COUNTRY_INFO!B38=0," ",COUNTRY_INFO!B38)) ->  | C38: =IF(INTRO!$E$37="Non-endemic"," ", IF(COUNTRY_INFO!C38=0," ",COUNTRY_INFO!C38)) ->  | D38: =IF(INTRO!$E$37="Non-endemic",0,IF(COUNTRY_INFO!$H38=1,COUNTRY_INFO!E38,0)) -> 0 | E38: =IF(INTRO!$E$37="Non-endemic",0,IF(COUNTRY_INFO!$H38=1,COUNTRY_INFO!F38,0)) -> 0 | F38: =IF(INTRO!$E$37="Non-endemic",0,IF(COUNTRY_INFO!$H38=1,COUNTRY_INFO!G38,0)) -> 0 | G38: 0 | H38: =IF(INTRO!$E$37="Non-endemic","Not required",COUNTRY_INFO!N38) -> Not required | I38: 0 | J38: 0 | L38: 0 | M38: 0

Sheet ALB_MBD
A1: Albendazole (ALB) and Mebendazole (MBD)
A2: Administrative structure, eligible population by age group, treatment plan and information about tablets
A4: TOTAL | D4: =SUM(D$9:D$1000) -> 1457145.122 | E4: =SUM(E$9:E$1000) -> 3523503.602 | F4: =SUM(F$9:F$1000) -> 4980648.724 | I4: =SUM(I$9:I$1000) -> 0 | K4: =SUM(K$9:K$1000) -> 2914290.244 | L4: =SUM(L$9:L$1000) -> 7047007.203 | M4: =SUM(M$9:M$1000) -> 0 | N4: =SUM(N$9:N$1000) -> 9961297.448 | O4: =SUM(O$9:O$1000) -> 0 | P4: =SUM(P$9:P$1000) -> 0 | Q4: 0 | R4: 0 | S4: 0 | T4: 0 | U4: 0 | V4: 0 | W4: 7047007.203 | X4: 35250 | Y4: 0 | Z4: 0 | AA4: 0
A6: Country administrative structure | D6: Population requiring treatment with ALB/MBD | G6: Treatment plan | I6: People covered by PELF with ALB | J6: Select medicine for treatment of STH | K6: Target population | S6: Albendazole (ALB) | Y6: Mebendazole (MBD)
A7: Country | B7: Province/State | C7: District | D7: PreSAC | E7: SAC | F7: Total | G7: LF | H7: STH | K7: STH (ALB) | O7: STH (MBD) | S7: Remaining in stock (LF) | T7: Tablets to be procured (LF) | U7: Bottle (400 mg) 200 tablets (LF) | V7: Remaining in stock (STH) | W7: Tablets to be procured for SAC (STH) | X7: Bottle (400 mg) 200 tablets (STH) | Y7: Remaining in stock | Z7: Tablets to be procured for SAC | AA7: Bottles (500 mg) 150 tablets
K8: PreSAC | L8: SAC | M8: Other | N8: Total | O8: PreSAC | P8: SAC | Q8: Other | R8: Total
A9: =IF(AND(INTRO!$E$37="Non-endemic",INTRO!$E$41="Non-endemic")," ",IF(COUNTRY_INFO!A9=0," ",COUNTRY_INFO!A9)) -> Rwanda | B9: =IF(AND(INTRO!$E$37="Non-endemic",INTRO!$E$41="Non-endemic")," ",IF(COUNTRY_INFO!B9=0," ",COUNTRY_INFO!B9)) -> East | C9: =IF(AND(INTRO!$E$37="Non-endemic",INTRO!$E$41="Non-endemic")," ",IF(COUNTRY_INFO!C9=0," ",COUNTRY_INFO!C9)) -> Bugesera | D9: =IF(AND(INTRO!$E$37="Non-endemic",INTRO!$E$41="Non-endemic"),0,IF(AND(OR(COUNTRY_INFO!$H9=0,COUNTRY_INFO!$H9=4,COUNTRY_INFO!$H9=99),OR(COUNTRY_INFO!$I9=0,COUNTRY_INFO!$I9=4)),0,COUNTRY_INFO!$E9)) -> 55835.34875 | E9: =IF(AND(INTRO!$E$37="Non-endemic",INTRO!$E$41="Non-endemic"),0,IF(AND(OR(COUNTRY_INFO!$H9=0,COUNTRY_INFO!$H9=4,COUNTRY_INFO!$H9=99),OR(COUNTRY_INFO!$I9=0,COUNTRY_INFO!$I9=4)),0,COUNTRY_INFO!$F9)) -> 119707.6038 | F9: =SUM(D9:E9) -> 175542.9525 | G9: =IF(AND(INTRO!$E$37="Non-endemic",INTRO!$E$41="Non-endemic"),0,COUNTRY_INFO!N9) -> 0 | H9: =IF(AND(INTRO!$E$37="Non-endemic",INTRO!$E$41="Non-endemic"),0,COUNTRY_INFO!O9) -> 2 | I9: =IF($G9=1,DEC!I9,0) -> 0 | J9: ALB | K9: =IF($J9="ALB", IF($H9<>0, IF($I9=0, $D9*$H9, $D9*($H9-$G9)),0),0) -> 111670.6975 | L9: =IF($J9="ALB", IF($H9<>0, IF($I9=0, $E9*$H9, $E9*($H9-$G9)),0), 0) -> 239415.2075 | N9: =SUM(K9:M9) -> 351085.905 | O9: =IF($J9="MBD", IF($H9<>0, IF($I9=0, $D9*$H9, $D9*($H9-$G9)),0),0) -> 0 | P9: =IF($J9="MBD", IF($H9<>0,IF($I9=0, $E9*$H9, $E9*($H9-$G9)),0), 0 ) -> 0 | R9: =SUM(O9:Q9) -> 0 | T9: =IF($I9>$S9, $I9-$S9,0) -> 0 | U9: =ROUNDUP($I9/200,0) -> 0 | W9: =IF($L9>$V9,$L9-$V9,0) -> 239415.2075 | X9: =ROUNDUP($L9/200,0) -> 1198 | Z9: =IF($P9>$Y9,$P9-$Y9,0) -> 0 | AA9: =ROUNDUP($P9/150,0) -> 0
A10: =IF(AND(INTRO!$E$37="Non-endemic",INTRO!$E$41="Non-endemic")," ",IF(COUNTRY_INFO!A10=0," ",COUNTRY_INFO!A10)) -> Rwanda | B10: =IF(AND(INTRO!$E$37="Non-endemic",INTRO!$E$41="Non-endemic")," ",IF(COUNTRY_INFO!B10=0," ",COUNTRY_INFO!B10)) -> North | C10: =IF(AND(INTRO!$E$37="Non-endemic",INTRO!$E$41="Non-endemic")," ",IF(COUNTRY_INFO!C10=0," ",COUNTRY_INFO!C10)) -> Burera | D10: =IF(AND(INTRO!$E$37="Non-endemic",INTRO!$E$41="Non-endemic"),0,IF(AND(OR(COUNTRY_INFO!$H10=0,COUNTRY_INFO!$H10=4,COUNTRY_INFO!$H10=99),OR(COUNTRY_INFO!$I10=0,COUNTRY_INFO!$I10=4)),0,COUNTRY_INFO!$E10)) -> 42485.87439 | E10: =IF(AND(INTRO!$E$37="Non-endemic",INTRO!$E$41="Non-endemic"),0,IF(AND(OR(COUNTRY_INFO!$H10=0,COUNTRY_INFO!$H10=4,COUNTRY_INFO!$H10=99),OR(COUNTRY_INFO!$I10=0,COUNTRY_INFO!$I10=4)),0,COUNTRY_INFO!$F10)) -> 127851.0109 | F10: =SUM(D10:E10) -> 170336.8853 | G10: =IF(AND(INTRO!$E$37="Non-endemic",INTRO!$E$41="Non-endemic"),0,COUNTRY_INFO!N10) -> 0 | H10: =IF(AND(INTRO!$E$37="Non-endemic",INTRO!$E$41="Non-endemic"),0,COUNTRY_INFO!O10) -> 2 | I10: =IF($G10=1,DEC!I10,0) -> 0 | J10: ALB | K10: 84971.74877 | L10: 255702.0218 | N10: =SUM(K10:M10) -> 340673.7705 | O10: 0 | P10: 0 | R10: =SUM(O10:Q10) -> 0 | T10: 0 | U10: 0 | W10: 255702.0218 | X10: 1279 | Z10: 0 | AA10: 0
A11: =IF(AND(INTRO!$E$37="Non-endemic",INTRO!$E$41="Non-endemic")," ",IF(COUNTRY_INFO!A11=0," ",COUNTRY_INFO!A11)) -> Rwanda | B11: =IF(AND(INTRO!$E$37="Non-endemic",INTRO!$E$41="Non-endemic")," ",IF(COUNTRY_INFO!B11=0," ",COUNTRY_INFO!B11)) -> North | C11: =IF(AND(INTRO!$E$37="Non-endemic",INTRO!$E$41="Non-endemic")," ",IF(COUNTRY_INFO!C11=0," ",COUNTRY_INFO!C11)) -> Gakenke | D11: =IF(AND(INTRO!$E$37="Non-endemic",INTRO!$E$41="Non-endemic"),0,IF(AND(OR(COUNTRY_INFO!$H11=0,COUNTRY_INFO!$H11=4,COUNTRY_INFO!$H11=99),OR(COUNTRY_INFO!$I11=0,COUNTRY_INFO!$I11=4)),0,COUNTRY_INFO!$E11)) -> 41508.44646 | E11: =IF(AND(INTRO!$E$37="Non-endemic",INTRO!$E$41="Non-endemic"),0,IF(AND(OR(COUNTRY_INFO!$H11=0,COUNTRY_INFO!$H11=4,COUNTRY_INFO!$H11=99),OR(COUNTRY_INFO!$I11=0,COUNTRY_INFO!$I11=4)),0,COUNTRY_INFO!$F11)) -> 116223.6501 | F11: 157732.0965 | G11: =IF(AND(INTRO!$E$37="Non-endemic",INTRO!$E$41="Non-endemic"),0,COUNTRY_INFO!N11) -> 0 | H11: =IF(AND(INTRO!$E$37="Non-endemic",INTRO!$E$41="Non-endemic"),0,COUNTRY_INFO!O11) -> 2 | I11: =IF($G11=1,DEC!I11,0) -> 0 | J11: ALB | K11: 83016.89291 | L11: 232447.3002 | N11: 315464.1931 | O11: 0 | P11: 0 | R11: 0 | T11: 0 | U11: 0 | W11: 232447.3002 | X11: 1163 | Z11: 0 | AA11: 0
A12: =IF(AND(INTRO!$E$37="Non-endemic",INTRO!$E$41="Non-endemic")," ",IF(COUNTRY_INFO!A12=0," ",COUNTRY_INFO!A12)) -> Rwanda | B12: =IF(AND(INTRO!$E$37="Non-endemic",INTRO!$E$41="Non-endemic")," ",IF(COUNTRY_INFO!B12=0," ",COUNTRY_INFO!B12)) -> Kigali | C12: =IF(AND(INTRO!$E$37="Non-endemic",INTRO!$E$41="Non-endemic")," ",IF(COUNTRY_INFO!C12=0," ",COUNTRY_INFO!C12)) -> Gasabo | D12: =IF(AND(INTRO!$E$37="Non-endemic",INTRO!$E$41="Non-endemic"),0,IF(AND(OR(COUNTRY_INFO!$H12=0,COUNTRY_INFO!$H12=4,COUNTRY_INFO!$H12=99),OR(COUNTRY_INFO!$I12=0,COUNTRY_INFO!$I12=4)),0,COUNTRY_INFO!$E12)) -> 69939.7951 | E12: =IF(AND(INTRO!$E$37="Non-endemic",INTRO!$E$41="Non-endemic"),0,IF(AND(OR(COUNTRY_INFO!$H12=0,COUNTRY_INFO!$H12=4,COUNTRY_INFO!$H12=99),OR(COUNTRY_INFO!$I12=0,COUNTRY_INFO!$I12=4)),0,COUNTRY_INFO!$F12)) -> 134928.1003 | F12: 204867.8954 | G12: =IF(AND(INTRO!$E$37="Non-endemic",INTRO!$E$41="Non-endemic"),0,COUNTRY_INFO!N12) -> 0 | H12: =IF(AND(INTRO!$E$37="Non-endemic",INTRO!$E$41="Non-endemic"),0,COUNTRY_INFO!O12) -> 2 | I12: =IF($G12=1,DEC!I12,0) -> 0 | J12: ALB | K12: 139879.5902 | L12: 269856.2006 | N12: 409735.7907 | O12: 0 | P12: 0 | R12: 0 | T12: 0 | U12: 0 | W12: 269856.2006 | X12: 1350 | Z12: 0 | AA12: 0
A13: =IF(AND(INTRO!$E$37="Non-endemic",INTRO!$E$41="Non-endemic")," ",IF(COUNTRY_INFO!A13=0," ",COUNTRY_INFO!A13)) -> Rwanda | B13: =IF(AND(INTRO!$E$37="Non-endemic",INTRO!$E$41="Non-endemic")," ",IF(COUNTRY_INFO!B13=0," ",COUNTRY_INFO!B13)) -> East | C13: =IF(AND(INTRO!$E$37="Non-endemic",INTRO!$E$41="Non-endemic")," ",IF(COUNTRY_INFO!C13=0," ",COUNTRY_INFO!C13)) -> Gatsibo | D13: =IF(AND(INTRO!$E$37="Non-endemic",INTRO!$E$41="Non-endemic"),0,IF(AND(OR(COUNTRY_INFO!$H13=0,COUNTRY_INFO!$H13=4,COUNTRY_INFO!$H13=99),OR(COUNTRY_INFO!$I13=0,COUNTRY_INFO!$I13=4)),0,COUNTRY_INFO!$E13)) -> 62756.62209 | E13: =IF(AND(INTRO!$E$37="Non-endemic",INTRO!$E$41="Non-endemic"),0,IF(AND(OR(COUNTRY_INFO!$H13=0,COUNTRY_INFO!$H13=4,COUNTRY_INFO!$H13=99),OR(COUNTRY_INFO!$I13=0,COUNTRY_INFO!$I13=4)),0,COUNTRY_INFO!$F13)) -> 155373.2498 | F13: 218129.8719 | G13: =IF(AND(INTRO!$E$37="Non-endemic",INTRO!$E$41="Non-endemic"),0,COUNTRY_INFO!N13) -> 0 | H13: =IF(AND(INTRO!$E$37="Non-endemic",INTRO!$E$41="Non-endemic"),0,COUNTRY_INFO!O13) -> 2 | I13: =IF($G13=1,DEC!I13,0) -> 0 | J13: ALB | K13: 125513.2442 | L13: 310746.4997 | N13: 436259.7439 | O13: 0 | P13: 0 | R13: 0 | T13: 0 | U13: 0 | W13: 310746.4997 | X13: 1554 | Z13: 0 | AA13: 0
A14: =IF(AND(INTRO!$E$37="Non-endemic",INTRO!$E$41="Non-endemic")," ",IF(COUNTRY_INFO!A14=0," ",COUNTRY_INFO!A14)) -> Rwanda | B14: =IF(AND(INTRO!$E$37="Non-endemic",INTRO!$E$41="Non-endemic")," ",IF(COUNTRY_INFO!B14=0," ",COUNTRY_INFO!B14)) -> North | C14: =IF(AND(INTRO!$E$37="Non-endemic",INTRO!$E$41="Non-endemic")," ",IF(COUNTRY_INFO!C14=0," ",COUNTRY_INFO!C14)) -> Gicumbi | D14: =IF(AND(INTRO!$E$37="Non-endemic",INTRO!$E$41="Non-endemic"),0,IF(AND(OR(COUNTRY_INFO!$H14=0,COUNTRY_INFO!$H14=4,COUNTRY_INFO!$H14=99),OR(COUNTRY_INFO!$I14=0,COUNTRY_INFO!$I14=4)),0,COUNTRY_INFO!$E14)) -> 48549.20105 | E14: =IF(AND(INTRO!$E$37="Non-endemic",INTRO!$E$41="Non-endemic"),0,IF(AND(OR(COUNTRY_INFO!$H14=0,COUNTRY_INFO!$H14=4,COUNTRY_INFO!$H14=99),OR(COUNTRY_INFO!$I14=0,COUNTRY_INFO!$I14=4)),0,COUNTRY_INFO!$F14)) -> 142873.3631 | F14: 191422.5641 | G14: =IF(AND(INTRO!$E$37="Non-endemic",INTRO!$E$41="Non-endemic"),0,COUNTRY_INFO!N14) -> 0 | H14: =IF(AND(INTRO!$E$37="Non-endemic",INTRO!$E$41="Non-endemic"),0,COUNTRY_INFO!O14) -> 2 | I14: =IF($G14=1,DEC!I14,0) -> 0 | J14: ALB | K14: 97098.4021 | L14: 285746.7262 | N14: 382845.1283 | O14: 0 | P14: 0 | R14: 0 | T14: 0 | U14: 0 | W14: 285746.7262 | X14: 1429 | Z14: 0 | AA14: 0
A15: =IF(AND(INTRO!$E$37="Non-endemic",INTRO!$E$41="Non-endemic")," ",IF(COUNTRY_INFO!A15=0," ",COUNTRY_INFO!A15)) -> Rwanda | B15: =IF(AND(INTRO!$E$37="Non-endemic",INTRO!$E$41="Non-endemic")," ",IF(COUNTRY_INFO!B15=0," ",COUNTRY_INFO!B15)) -> South | C15: =IF(AND(INTRO!$E$37="Non-endemic",INTRO!$E$41="Non-endemic")," ",IF(COUNTRY_INFO!C15=0," ",COUNTRY_INFO!C15)) -> Gisagara | D15: =IF(AND(INTRO!$E$37="Non-endemic",INTRO!$E$41="Non-endemic"),0,IF(AND(OR(COUNTRY_INFO!$H15=0,COUNTRY_INFO!$H15=4,COUNTRY_INFO!$H15=99),OR(COUNTRY_INFO!$I15=0,COUNTRY_INFO!$I15=4)),0,COUNTRY_INFO!$E15)) -> 49755.56343 | E15: =IF(AND(INTRO!$E$37="Non-endemic",INTRO!$E$41="Non-endemic"),0,IF(AND(OR(COUNTRY_INFO!$H15=0,COUNTRY_INFO!$H15=4,COUNTRY_INFO!$H15=99),OR(COUNTRY_INFO!$I15=0,COUNTRY_INFO!$I15=4)),0,COUNTRY_INFO!$F15)) -> 107803.7208 | F15: 157559.2842 | G15: =IF(AND(INTRO!$E$37="Non-endemic",INTRO!$E$41="Non-endemic"),0,COUNTRY_INFO!N15) -> 0 | H15: =IF(AND(INTRO!$E$37="Non-endemic",INTRO!$E$41="Non-endemic"),0,COUNTRY_INFO!O15) -> 2 | I15: =IF($G15=1,DEC!I15,0) -> 0 | J15: ALB | K15: 99511.12686 | L15: 215607.4415 | N15: 315118.5684 | O15: 0 | P15: 0 | R15: 0 | T15: 0 | U15: 0 | W15: 215607.4415 | X15: 1079 | Z15: 0 | AA15: 0
A16: =IF(AND(INTRO!$E$37="Non-endemic",INTRO!$E$41="Non-endemic")," ",IF(COUNTRY_INFO!A16=0," ",COUNTRY_INFO!A16)) -> Rwanda | B16: =IF(AND(INTRO!$E$37="Non-endemic",INTRO!$E$41="Non-endemic")," ",IF(COUNTRY_INFO!B16=0," ",COUNTRY_INFO!B16)) -> South | C16: =IF(AND(INTRO!$E$37="Non-endemic",INTRO!$E$41="Non-endemic")," ",IF(COUNTRY_INFO!C16=0," ",COUNTRY_INFO!C16)) -> Huye | D16: =IF(AND(INTRO!$E$37="Non-endemic",INTRO!$E$41="Non-endemic"),0,IF(AND(OR(COUNTRY_INFO!$H16=0,COUNTRY_INFO!$H16=4,COUNTRY_INFO!$H16=99),OR(COUNTRY_INFO!$I16=0,COUNTRY_INFO!$I16=4)),0,COUNTRY_INFO!$E16)) -> 43371.94172 | E16: =IF(AND(INTRO!$E$37="Non-endemic",INTRO!$E$41="Non-endemic"),0,IF(AND(OR(COUNTRY_INFO!$H16=0,COUNTRY_INFO!$H16=4,COUNTRY_INFO!$H16=99),OR(COUNTRY_INFO!$I16=0,COUNTRY_INFO!$I16=4)),0,COUNTRY_INFO!$F16)) -> 100945.3157 | F16: 144317.2574 | G16: =IF(AND(INTRO!$E$37="Non-endemic",INTRO!$E$41="Non-endemic"),0,COUNTRY_INFO!N16) -> 0 | H16: =IF(AND(INTRO!$E$37="Non-endemic",INTRO!$E$41="Non-endemic"),0,COUNTRY_INFO!O16) -> 2 | I16: =IF($G16=1,DEC!I16,0) -> 0 | J16: ALB | K16: 86743.88344 | L16: 201890.6314 | N16: 288634.5148 | O16: 0 | P16: 0 | R16: 0 | T16: 0 | U16: 0 | W16: 201890.6314 | X16: 1010 | Z16: 0 | AA16: 0
A17: =IF(AND(INTRO!$E$37="Non-endemic",INTRO!$E$41="Non-endemic")," ",IF(COUNTRY_INFO!A17=0," ",COUNTRY_INFO!A17)) -> Rwanda | B17: =IF(AND(INTRO!$E$37="Non-endemic",INTRO!$E$41="Non-endemic")," ",IF(COUNTRY_INFO!B17=0," ",COUNTRY_INFO!B17)) -> South | C17: =IF(AND(INTRO!$E$37="Non-endemic",INTRO!$E$41="Non-endemic")," ",IF(COUNTRY_INFO!C17=0," ",COUNTRY_INFO!C17)) -> Kamonyi | D17: =IF(AND(INTRO!$E$37="Non-endemic",INTRO!$E$41="Non-endemic"),0,IF(AND(OR(COUNTRY_INFO!$H17=0,COUNTRY_INFO!$H17=4,COUNTRY_INFO!$H17=99),OR(COUNTRY_INFO!$I17=0,COUNTRY_INFO!$I17=4)),0,COUNTRY_INFO!$E17)) -> 45368.36848 | E17: =IF(AND(INTRO!$E$37="Non-endemic",INTRO!$E$41="Non-endemic"),0,IF(AND(OR(COUNTRY_INFO!$H17=0,COUNTRY_INFO!$H17=4,COUNTRY_INFO!$H17=99),OR(COUNTRY_INFO!$I17=0,COUNTRY_INFO!$I17=4)),0,COUNTRY_INFO!$F17)) -> 111431.0805 | F17: 156799.4489 | G17: =IF(AND(INTRO!$E$37="Non-endemic",INTRO!$E$41="Non-endemic"),0,COUNTRY_INFO!N17) -> 0 | H17: =IF(AND(INTRO!$E$37="Non-endemic",INTRO!$E$41="Non-endemic"),0,COUNTRY_INFO!O17) -> 2 | I17: =IF($G17=1,DEC!I17,0) -> 0 | J17: ALB | K17: 90736.73695 | L17: 222862.1609 | N17: 313598.8979 | O17: 0 | P17: 0 | R17: 0 | T17: 0 | U17: 0 | W17: 222862.1609 | X17: 1115 | Z17: 0 | AA17: 0
A18: =IF(AND(INTRO!$E$37="Non-endemic",INTRO!$E$41="Non-endemic")," ",IF(COUNTRY_INFO!A18=0," ",COUNTRY_INFO!A18)) -> Rwanda | B18: =IF(AND(INTRO!$E$37="Non-endemic",INTRO!$E$41="Non-endemic")," ",IF(COUNTRY_INFO!B18=0," ",COUNTRY_INFO!B18)) -> West | C18: =IF(AND(INTRO!$E$37="Non-endemic",INTRO!$E$41="Non-endemic")," ",IF(COUNTRY_INFO!C18=0," ",COUNTRY_INFO!C18)) -> Karongi | D18: =IF(AND(INTRO!$E$37="Non-endemic",INTRO!$E$41="Non-endemic"),0,IF(AND(OR(COUNTRY_INFO!$H18=0,COUNTRY_INFO!$H18=4,COUNTRY_INFO!$H18=99),OR(COUNTRY_INFO!$I18=0,COUNTRY_INFO!$I18=4)),0,COUNTRY_INFO!$E18)) -> 44985.72878 | E18: =IF(AND(INTRO!$E$37="Non-endemic",INTRO!$E$41="Non-endemic"),0,IF(AND(OR(COUNTRY_INFO!$H18=0,COUNTRY_INFO!$H18=4,COUNTRY_INFO!$H18=99),OR(COUNTRY_INFO!$I18=0,COUNTRY_INFO!$I18=4)),0,COUNTRY_INFO!$F18)) -> 115178.978 | F18: 160164.7068 | G18: =IF(AND(INTRO!$E$37="Non-endemic",INTRO!$E$41="Non-endemic"),0,COUNTRY_INFO!N18) -> 0 | H18: =IF(AND(INTRO!$E$37="Non-endemic",INTRO!$E$41="Non-endemic"),0,COUNTRY_INFO!O18) -> 2 | I18: =IF($G18=1,DEC!I18,0) -> 0 | J18: ALB | K18: 89971.45756 | L18: 230357.956 | N18: 320329.4136 | O18: 0 | P18: 0 | R18: 0 | T18: 0 | U18: 0 | W18: 230357.956 | X18: 1152 | Z18: 0 | AA18: 0
A19: =IF(AND(INTRO!$E$37="Non-endemic",INTRO!$E$41="Non-endemic")," ",IF(COUNTRY_INFO!A19=0," ",COUNTRY_INFO!A19)) -> Rwanda | B19: =IF(AND(INTRO!$E$37="Non-endemic",INTRO!$E$41="Non-endemic")," ",IF(COUNTRY_INFO!B19=0," ",COUNTRY_INFO!B19)) -> East | C19: =IF(AND(INTRO!$E$37="Non-endemic",INTRO!$E$41="Non-endemic")," ",IF(COUNTRY_INFO!C19=0," ",COUNTRY_INFO!C19)) -> Kayonza | D19: =IF(AND(INTRO!$E$37="Non-endemic",INTRO!$E$41="Non-endemic"),0,IF(AND(OR(COUNTRY_INFO!$H19=0,COUNTRY_INFO!$H19=4,COUNTRY_INFO!$H19=99),OR(COUNTRY_INFO!$I19=0,COUNTRY_INFO!$I19=4)),0,COUNTRY_INFO!$E19)) -> 50280.14702 | E19: =IF(AND(INTRO!$E$37="Non-endemic",INTRO!$E$41="Non-endemic"),0,IF(AND(OR(COUNTRY_INFO!$H19=0,COUNTRY_INFO!$H19=4,COUNTRY_INFO!$H19=99),OR(COUNTRY_INFO!$I19=0,COUNTRY_INFO!$I19=4)),0,COUNTRY_INFO!$F19)) -> 120672.3528 | F19: 170952.4999 | G19: =IF(AND(INTRO!$E$37="Non-endemic",INTRO!$E$41="Non-endemic"),0,COUNTRY_INFO!N19) -> 0 | H19: =IF(AND(INTRO!$E$37="Non-endemic",INTRO!$E$41="Non-endemic"),0,COUNTRY_INFO!O19) -> 2 | I19: =IF($G19=1,DEC!I19,0) -> 0 | J19: ALB | K19: 100560.294 | L19: 241344.7057 | N19: 341904.9997 | O19: 0 | P19: 0 | R19: 0 | T19: 0 | U19: 0 | W19: 241344.7057 | X19: 1207 | Z19: 0 | AA19: 0
A20: =IF(AND(INTRO!$E$37="Non-endemic",INTRO!$E$41="Non-endemic")," ",IF(COUNTRY_INFO!A20=0," ",COUNTRY_INFO!A20)) -> Rwanda | B20: =IF(AND(INTRO!$E$37="Non-endemic",INTRO!$E$41="Non-endemic")," ",IF(COUNTRY_INFO!B20=0," ",COUNTRY_INFO!B20)) -> Kigali | C20: =IF(AND(INTRO!$E$37="Non-endemic",INTRO!$E$41="Non-endemic")," ",IF(COUNTRY_INFO!C20=0," ",COUNTRY_INFO!C20)) -> Kicukiro | D20: =IF(AND(INTRO!$E$37="Non-endemic",INTRO!$E$41="Non-endemic"),0,IF(AND(OR(COUNTRY_INFO!$H20=0,COUNTRY_INFO!$H20=4,COUNTRY_INFO!$H20=99),OR(COUNTRY_INFO!$I20=0,COUNTRY_INFO!$I20=4)),0,COUNTRY_INFO!$E20)) -> 43562.46797 | E20: =IF(AND(INTRO!$E$37="Non-endemic",INTRO!$E$41="Non-endemic"),0,IF(AND(OR(COUNTRY_INFO!$H20=0,COUNTRY_INFO!$H20=4,COUNTRY_INFO!$H20=99),OR(COUNTRY_INFO!$I20=0,COUNTRY_INFO!$I20=4)),0,COUNTRY_INFO!$F20)) -> 106858.3616 | F20: 150420.8296 | G20: =IF(AND(INTRO!$E$37="Non-endemic",INTRO!$E$41="Non-endemic"),0,COUNTRY_INFO!N20) -> 0 | H20: =IF(AND(INTRO!$E$37="Non-endemic",INTRO!$E$41="Non-endemic"),0,COUNTRY_INFO!O20) -> 2 | I20: =IF($G20=1,DEC!I20,0) -> 0 | J20: ALB | K20: 87124.93595 | L20: 213716.7232 | N20: 300841.6592 | O20: 0 | P20: 0 | R20: 0 | T20: 0 | U20: 0 | W20: 213716.7232 | X20: 1069 | Z20: 0 | AA20: 0
A21: =IF(AND(INTRO!$E$37="Non-endemic",INTRO!$E$41="Non-endemic")," ",IF(COUNTRY_INFO!A21=0," ",COUNTRY_INFO!A21)) -> Rwanda | B21: =IF(AND(INTRO!$E$37="Non-endemic",INTRO!$E$41="Non-endemic")," ",IF(COUNTRY_INFO!B21=0," ",COUNTRY_INFO!B21)) -> East | C21: =IF(AND(INTRO!$E$37="Non-endemic",INTRO!$E$41="Non-endemic")," ",IF(COUNTRY_INFO!C21=0," ",COUNTRY_INFO!C21)) -> Kirehe | D21: =IF(AND(INTRO!$E$37="Non-endemic",INTRO!$E$41="Non-endemic"),0,IF(AND(OR(COUNTRY_INFO!$H21=0,COUNTRY_INFO!$H21=4,COUNTRY_INFO!$H21=99),OR(COUNTRY_INFO!$I21=0,COUNTRY_INFO!$I21=4)),0,COUNTRY_INFO!$E21)) -> 49726.58723 | E21: =IF(AND(INTRO!$E$37="Non-endemic",INTRO!$E$41="Non-endemic"),0,IF(AND(OR(COUNTRY_INFO!$H21=0,COUNTRY_INFO!$H21=4,COUNTRY_INFO!$H21=99),OR(COUNTRY_INFO!$I21=0,COUNTRY_INFO!$I21=4)),0,COUNTRY_INFO!$F21)) -> 120139.4347 | F21: 169866.022 | G21: =IF(AND(INTRO!$E$37="Non-endemic",INTRO!$E$41="Non-endemic"),0,COUNTRY_INFO!N21) -> 0 | H21: =IF(AND(INTRO!$E$37="Non-endemic",INTRO!$E$41="Non-endemic"),0,COUNTRY_INFO!O21) -> 2 | I21: =IF($G21=1,DEC!I21,0) -> 0 | J21: ALB | K21: 99453.17445 | L21: 240278.8695 | N21: 339732.0439 | O21: 0 | P21: 0 | R21: 0 | T21: 0 | U21: 0 | W21: 240278.8695 | X21: 1202 | Z21: 0 | AA21: 0
A22: =IF(AND(INTRO!$E$37="Non-endemic",INTRO!$E$41="Non-endemic")," ",IF(COUNTRY_INFO!A22=0," ",COUNTRY_INFO!A22)) -> Rwanda | B22: =IF(AND(INTRO!$E$37="Non-endemic",INTRO!$E$41="Non-endemic")," ",IF(COUNTRY_INFO!B22=0," ",COUNTRY_INFO!B22)) -> South | C22: =IF(AND(INTRO!$E$37="Non-endemic",INTRO!$E$41="Non-endemic")," ",IF(COUNTRY_INFO!C22=0," ",COUNTRY_INFO!C22)) -> Muhanga | D22: =IF(AND(INTRO!$E$37="Non-endemic",INTRO!$E$41="Non-endemic"),0,IF(AND(OR(COUNTRY_INFO!$H22=0,COUNTRY_INFO!$H22=4,COUNTRY_INFO!$H22=99),OR(COUNTRY_INFO!$I22=0,COUNTRY_INFO!$I22=4)),0,COUNTRY_INFO!$E22)) -> 38419.32628 | E22: =IF(AND(INTRO!$E$37="Non-endemic",INTRO!$E$41="Non-endemic"),0,IF(AND(OR(COUNTRY_INFO!$H22=0,COUNTRY_INFO!$H22=4,COUNTRY_INFO!$H22=99),OR(COUNTRY_INFO!$I22=0,COUNTRY_INFO!$I22=4)),0,COUNTRY_INFO!$F22)) -> 104067.8838 | F22: 142487.2101 | G22: =IF(AND(INTRO!$E$37="Non-endemic",INTRO!$E$41="Non-endemic"),0,COUNTRY_INFO!N22) -> 0 | H22: =IF(AND(INTRO!$E$37="Non-endemic",INTRO!$E$41="Non-endemic"),0,COUNTRY_INFO!O22) -> 2 | I22: =IF($G22=1,DEC!I22,0) -> 0 | J22: ALB | K22: 76838.65255 | L22: 208135.7676 | N22: 284974.4201 | O22: 0 | P22: 0 | R22: 0 | T22: 0 | U22: 0 | W22: 208135.7676 | X22: 1041 | Z22: 0 | AA22: 0
A23: =IF(AND(INTRO!$E$37="Non-endemic",INTRO!$E$41="Non-endemic")," ",IF(COUNTRY_INFO!A23=0," ",COUNTRY_INFO!A23)) -> Rwanda | B23: =IF(AND(INTRO!$E$37="Non-endemic",INTRO!$E$41="Non-endemic")," ",IF(COUNTRY_INFO!B23=0," ",COUNTRY_INFO!B23)) -> North | C23: =IF(AND(INTRO!$E$37="Non-endemic",INTRO!$E$41="Non-endemic")," ",IF(COUNTRY_INFO!C23=0," ",COUNTRY_INFO!C23)) -> Musanze | D23: =IF(AND(INTRO!$E$37="Non-endemic",INTRO!$E$41="Non-endemic"),0,IF(AND(OR(COUNTRY_INFO!$H23=0,COUNTRY_INFO!$H23=4,COUNTRY_INFO!$H23=99),OR(COUNTRY_INFO!$I23=0,COUNTRY_INFO!$I23=4)),0,COUNTRY_INFO!$E23)) -> 47346.23045 | E23: =IF(AND(INTRO!$E$37="Non-endemic",INTRO!$E$41="Non-endemic"),0,IF(AND(OR(COUNTRY_INFO!$H23=0,COUNTRY_INFO!$H23=4,COUNTRY_INFO!$H23=99),OR(COUNTRY_INFO!$I23=0,COUNTRY_INFO!$I23=4)),0,COUNTRY_INFO!$F23)) -> 126973.9817 | F23: 174320.2121 | G23: =IF(AND(INTRO!$E$37="Non-endemic",INTRO!$E$41="Non-endemic"),0,COUNTRY_INFO!N23) -> 0 | H23: =IF(AND(INTRO!$E$37="Non-endemic",INTRO!$E$41="Non-endemic"),0,COUNTRY_INFO!O23) -> 2 | I23: =IF($G23=1,DEC!I23,0) -> 0 | J23: ALB | K23: 94692.4609 | L23: 253947.9633 | N23: 348640.4242 | O23: 0 | P23: 0 | R23: 0 | T23: 0 | U23: 0 | W23: 253947.9633 | X23: 1270 | Z23: 0 | AA23: 0
A24: =IF(AND(INTRO!$E$37="Non-endemic",INTRO!$E$41="Non-endemic")," ",IF(COUNTRY_INFO!A24=0," ",COUNTRY_INFO!A24)) -> Rwanda | B24: =IF(AND(INTRO!$E$37="Non-endemic",INTRO!$E$41="Non-endemic")," ",IF(COUNTRY_INFO!B24=0," ",COUNTRY_INFO!B24)) -> East | C24: =IF(AND(INTRO!$E$37="Non-endemic",INTRO!$E$41="Non-endemic")," ",IF(COUNTRY_INFO!C24=0," ",COUNTRY_INFO!C24)) -> Ngoma | D24: =IF(AND(INTRO!$E$37="Non-endemic",INTRO!$E$41="Non-endemic"),0,IF(AND(OR(COUNTRY_INFO!$H24=0,COUNTRY_INFO!$H24=4,COUNTRY_INFO!$H24=99),OR(COUNTRY_INFO!$I24=0,COUNTRY_INFO!$I24=4)),0,COUNTRY_INFO!$E24)) -> 63400.53149 | E24: =IF(AND(INTRO!$E$37="Non-endemic",INTRO!$E$41="Non-endemic"),0,IF(AND(OR(COUNTRY_INFO!$H24=0,COUNTRY_INFO!$H24=4,COUNTRY_INFO!$H24=99),OR(COUNTRY_INFO!$I24=0,COUNTRY_INFO!$I24=4)),0,COUNTRY_INFO!$F24)) -> 111049.3781 | F24: 174449.9096 | G24: =IF(AND(INTRO!$E$37="Non-endemic",INTRO!$E$41="Non-endemic"),0,COUNTRY_INFO!N24) -> 0 | H24: =IF(AND(INTRO!$E$37="Non-endemic",INTRO!$E$41="Non-endemic"),0,COUNTRY_INFO!O24) -> 2 | I24: =IF($G24=1,DEC!I24,0) -> 0 | J24: ALB | K24: 126801.063 | L24: 222098.7563 | N24: 348899.8192 | O24: 0 | P24: 0 | R24: 0 | T24: 0 | U24: 0 | W24: 222098.7563 | X24: 1111 | Z24: 0 | AA24: 0
A25: =IF(AND(INTRO!$E$37="Non-endemic",INTRO!$E$41="Non-endemic")," ",IF(COUNTRY_INFO!A25=0," ",COUNTRY_INFO!A25)) -> Rwanda | B25: =IF(AND(INTRO!$E$37="Non-endemic",INTRO!$E$41="Non-endemic")," ",IF(COUNTRY_INFO!B25=0," ",COUNTRY_INFO!B25)) -> West | C25: =IF(AND(INTRO!$E$37="Non-endemic",INTRO!$E$41="Non-endemic")," ",IF(COUNTRY_INFO!C25=0," ",COUNTRY_INFO!C25)) -> Ngororero | D25: =IF(AND(INTRO!$E$37="Non-endemic",INTRO!$E$41="Non-endemic"),0,IF(AND(OR(COUNTRY_INFO!$H25=0,COUNTRY_INFO!$H25=4,COUNTRY_INFO!$H25=99),OR(COUNTRY_INFO!$I25=0,COUNTRY_INFO!$I25=4)),0,COUNTRY_INFO!$E25)) -> 46804.14216 | E25: =IF(AND(INTRO!$E$37="Non-endemic",INTRO!$E$41="Non-endemic"),0,IF(AND(OR(COUNTRY_INFO!$H25=0,COUNTRY_INFO!$H25=4,COUNTRY_INFO!$H25=99),OR(COUNTRY_INFO!$I25=0,COUNTRY_INFO!$I25=4)),0,COUNTRY_INFO!$F25)) -> 120130.6315 | F25: 166934.7737 | G25: =IF(AND(INTRO!$E$37="Non-endemic",INTRO!$E$41="Non-endemic"),0,COUNTRY_INFO!N25) -> 0 | H25: =IF(AND(INTRO!$E$37="Non-endemic",INTRO!$E$41="Non-endemic"),0,COUNTRY_INFO!O25) -> 2 | I25: =IF($G25=1,DEC!I25,0) -> 0 | J25: ALB | K25: 93608.28432 | L25: 240261.2631 | N25: 333869.5474 | O25: 0 | P25: 0 | R25: 0 | T25: 0 | U25: 0 | W25: 240261.2631 | X25: 1202 | Z25: 0 | AA25: 0
A26: =IF(AND(INTRO!$E$37="Non-endemic",INTRO!$E$41="Non-endemic")," ",IF(COUNTRY_INFO!A26=0," ",COUNTRY_INFO!A26)) -> Rwanda | B26: =IF(AND(INTRO!$E$37="Non-endemic",INTRO!$E$41="Non-endemic")," ",IF(COUNTRY_INFO!B26=0," ",COUNTRY_INFO!B26)) -> West | C26: =IF(AND(INTRO!$E$37="Non-endemic",INTRO!$E$41="Non-endemic")," ",IF(COUNTRY_INFO!C26=0," ",COUNTRY_INFO!C26)) -> Nyabihu | D26: =IF(AND(INTRO!$E$37="Non-endemic",INTRO!$E$41="Non-endemic"),0,IF(AND(OR(COUNTRY_INFO!$H26=0,COUNTRY_INFO!$H26=4,COUNTRY_INFO!$H26=99),OR(COUNTRY_INFO!$I26=0,COUNTRY_INFO!$I26=4)),0,COUNTRY_INFO!$E26)) -> 40649.10661 | E26: =IF(AND(INTRO!$E$37="Non-endemic",INTRO!$E$41="Non-endemic"),0,IF(AND(OR(COUNTRY_INFO!$H26=0,COUNTRY_INFO!$H26=4,COUNTRY_INFO!$H26=99),OR(COUNTRY_INFO!$I26=0,COUNTRY_INFO!$I26=4)),0,COUNTRY_INFO!$F26)) -> 108512.4456 | F26: 149161.5522 | G26: =IF(AND(INTRO!$E$37="Non-endemic",INTRO!$E$41="Non-endemic"),0,COUNTRY_INFO!N26) -> 0 | H26: =IF(AND(INTRO!$E$37="Non-endemic",INTRO!$E$41="Non-endemic"),0,COUNTRY_INFO!O26) -> 2 | I26: =IF($G26=1,DEC!I26,0) -> 0 | J26: ALB | K26: 81298.21321 | L26: 217024.8912 | N26: 298323.1044 | O26: 0 | P26: 0 | R26: 0 | T26: 0 | U26: 0 | W26: 217024.8912 | X26: 1086 | Z26: 0 | AA26: 0
A27: =IF(AND(INTRO!$E$37="Non-endemic",INTRO!$E$41="Non-endemic")," ",IF(COUNTRY_INFO!A27=0," ",COUNTRY_INFO!A27)) -> Rwanda | B27: =IF(AND(INTRO!$E$37="Non-endemic",INTRO!$E$41="Non-endemic")," ",IF(COUNTRY_INFO!B27=0," ",COUNTRY_INFO!B27)) -> East | C27: =IF(AND(INTRO!$E$37="Non-endemic",INTRO!$E$41="Non-endemic")," ",IF(COUNTRY_INFO!C27=0," ",COUNTRY_INFO!C27)) -> Nyagatare | D27: =IF(AND(INTRO!$E$37="Non-endemic",INTRO!$E$41="Non-endemic"),0,IF(AND(OR(COUNTRY_INFO!$H27=0,COUNTRY_INFO!$H27=4,COUNTRY_INFO!$H27=99),OR(COUNTRY_INFO!$I27=0,COUNTRY_INFO!$I27=4)),0,COUNTRY_INFO!$E27)) -> 68059.80378 | E27: =IF(AND(INTRO!$E$37="Non-endemic",INTRO!$E$41="Non-endemic"),0,IF(AND(OR(COUNTRY_INFO!$H27=0,COUNTRY_INFO!$H27=4,COUNTRY_INFO!$H27=99),OR(COUNTRY_INFO!$I27=0,COUNTRY_INFO!$I27=4)),0,COUNTRY_INFO!$F27)) -> 167699.3565 | F27: 235759.1603 | G27: =IF(AND(INTRO!$E$37="Non-endemic",INTRO!$E$41="Non-endemic"),0,COUNTRY_INFO!N27) -> 0 | H27: =IF(AND(INTRO!$E$37="Non-endemic",INTRO!$E$41="Non-endemic"),0,COUNTRY_INFO!O27) -> 2 | I27: =IF($G27=1,DEC!I27,0) -> 0 | J27: ALB | K27: 136119.6076 | L27: 335398.713 | N27: 471518.3206 | O27: 0 | P27: 0 | R27: 0 | T27: 0 | U27: 0 | W27: 335398.713 | X27: 1677 | Z27: 0 | AA27: 0
A28: =IF(AND(INTRO!$E$37="Non-endemic",INTRO!$E$41="Non-endemic")," ",IF(COUNTRY_INFO!A28=0," ",COUNTRY_INFO!A28)) -> Rwanda | B28: =IF(AND(INTRO!$E$37="Non-endemic",INTRO!$E$41="Non-endemic")," ",IF(COUNTRY_INFO!B28=0," ",COUNTRY_INFO!B28)) -> South | C28: =IF(AND(INTRO!$E$37="Non-endemic",INTRO!$E$41="Non-endemic")," ",IF(COUNTRY_INFO!C28=0," ",COUNTRY_INFO!C28)) -> Nyamagabe | D28: =IF(AND(INTRO!$E$37="Non-endemic",INTRO!$E$41="Non-endemic"),0,IF(AND(OR(COUNTRY_INFO!$H28=0,COUNTRY_INFO!$H28=4,COUNTRY_INFO!$H28=99),OR(COUNTRY_INFO!$I28=0,COUNTRY_INFO!$I28=4)),0,COUNTRY_INFO!$E28)) -> 53995.27568 | E28: =IF(AND(INTRO!$E$37="Non-endemic",INTRO!$E$41="Non-endemic"),0,IF(AND(OR(COUNTRY_INFO!$H28=0,COUNTRY_INFO!$H28=4,COUNTRY_INFO!$H28=99),OR(COUNTRY_INFO!$I28=0,COUNTRY_INFO!$I28=4)),0,COUNTRY_INFO!$F28)) -> 116915.3903 | F28: 170910.666 | G28: =IF(AND(INTRO!$E$37="Non-endemic",INTRO!$E$41="Non-endemic"),0,COUNTRY_INFO!N28) -> 0 | H28: =IF(AND(INTRO!$E$37="Non-endemic",INTRO!$E$41="Non-endemic"),0,COUNTRY_INFO!O28) -> 2 | I28: =IF($G28=1,DEC!I28,0) -> 0 | J28: ALB | K28: 107990.5514 | L28: 233830.7806 | N28: 341821.332 | O28: 0 | P28: 0 | R28: 0 | T28: 0 | U28: 0 | W28: 233830.7806 | X28: 1170 | Z28: 0 | AA28: 0
A29: =IF(AND(INTRO!$E$37="Non-endemic",INTRO!$E$41="Non-endemic")," ",IF(COUNTRY_INFO!A29=0," ",COUNTRY_INFO!A29)) -> Rwanda | B29: =IF(AND(INTRO!$E$37="Non-endemic",INTRO!$E$41="Non-endemic")," ",IF(COUNTRY_INFO!B29=0," ",COUNTRY_INFO!B29)) -> West | C29: =IF(AND(INTRO!$E$37="Non-endemic",INTRO!$E$41="Non-endemic")," ",IF(COUNTRY_INFO!C29=0," ",COUNTRY_INFO!C29)) -> Nyamasheke | D29: =IF(AND(INTRO!$E$37="Non-endemic",INTRO!$E$41="Non-endemic"),0,IF(AND(OR(COUNTRY_INFO!$H29=0,COUNTRY_INFO!$H29=4,COUNTRY_INFO!$H29=99),OR(COUNTRY_INFO!$I29=0,COUNTRY_INFO!$I29=4)),0,COUNTRY_INFO!$E29)) -> 44702.02566 | E29: =IF(AND(INTRO!$E$37="Non-endemic",INTRO!$E$41="Non-endemic"),0,IF(AND(OR(COUNTRY_INFO!$H29=0,COUNTRY_INFO!$H29=4,COUNTRY_INFO!$H29=99),OR(COUNTRY_INFO!$I29=0,COUNTRY_INFO!$I29=4)),0,COUNTRY_INFO!$F29)) -> 122531.4453 | F29: 167233.471 | G29: =IF(AND(INTRO!$E$37="Non-endemic",INTRO!$E$41="Non-endemic"),0,COUNTRY_INFO!N29) -> 0 | H29: =IF(AND(INTRO!$E$37="Non-endemic",INTRO!$E$41="Non-endemic"),0,COUNTRY_INFO!O29) -> 2 | I29: =IF($G29=1,DEC!I29,0) -> 0 | J29: ALB | K29: 89404.05133 | L29: 245062.8907 | N29: 334466.942 | O29: 0 | P29: 0 | R29: 0 | T29: 0 | U29: 0 | W29: 245062.8907 | X29: 1226 | Z29: 0 | AA29: 0
A30: =IF(AND(INTRO!$E$37="Non-endemic",INTRO!$E$41="Non-endemic")," ",IF(COUNTRY_INFO!A30=0," ",COUNTRY_INFO!A30)) -> Rwanda | B30: =IF(AND(INTRO!$E$37="Non-endemic",INTRO!$E$41="Non-endemic")," ",IF(COUNTRY_INFO!B30=0," ",COUNTRY_INFO!B30)) -> South | C30: =IF(AND(INTRO!$E$37="Non-endemic",INTRO!$E$41="Non-endemic")," ",IF(COUNTRY_INFO!C30=0," ",COUNTRY_INFO!C30)) -> Nyanza | D30: =IF(AND(INTRO!$E$37="Non-endemic",INTRO!$E$41="Non-endemic"),0,IF(AND(OR(COUNTRY_INFO!$H30=0,COUNTRY_INFO!$H30=4,COUNTRY_INFO!$H30=99),OR(COUNTRY_INFO!$I30=0,COUNTRY_INFO!$I30=4)),0,COUNTRY_INFO!$E30)) -> 45402.45689 | E30: =IF(AND(INTRO!$E$37="Non-endemic",INTRO!$E$41="Non-endemic"),0,IF(AND(OR(COUNTRY_INFO!$H30=0,COUNTRY_INFO!$H30=4,COUNTRY_INFO!$H30=99),OR(COUNTRY_INFO!$I30=0,COUNTRY_INFO!$I30=4)),0,COUNTRY_INFO!$F30)) -> 100263.759 | F30: 145666.2159 | G30: =IF(AND(INTRO!$E$37="Non-endemic",INTRO!$E$41="Non-endemic"),0,COUNTRY_INFO!N30) -> 0 | H30: =IF(AND(INTRO!$E$37="Non-endemic",INTRO!$E$41="Non-endemic"),0,COUNTRY_INFO!O30) -> 2 | I30: =IF($G30=1,DEC!I30,0) -> 0 | J30: ALB | K30: 90804.91378 | L30: 200527.5179 | N30: 291332.4317 | O30: 0 | P30: 0 | R30: 0 | T30: 0 | U30: 0 | W30: 200527.5179 | X30: 1003 | Z30: 0 | AA30: 0
A31: =IF(AND(INTRO!$E$37="Non-endemic",INTRO!$E$41="Non-endemic")," ",IF(COUNTRY_INFO!A31=0," ",COUNTRY_INFO!A31)) -> Rwanda | B31: =IF(AND(INTRO!$E$37="Non-endemic",INTRO!$E$41="Non-endemic")," ",IF(COUNTRY_INFO!B31=0," ",COUNTRY_INFO!B31)) -> Kigali | C31: =IF(AND(INTRO!$E$37="Non-endemic",INTRO!$E$41="Non-endemic")," ",IF(COUNTRY_INFO!C31=0," ",COUNTRY_INFO!C31)) -> Nyarugenge | D31: =IF(AND(INTRO!$E$37="Non-endemic",INTRO!$E$41="Non-endemic"),0,IF(AND(OR(COUNTRY_INFO!$H31=0,COUNTRY_INFO!$H31=4,COUNTRY_INFO!$H31=99),OR(COUNTRY_INFO!$I31=0,COUNTRY_INFO!$I31=4)),0,COUNTRY_INFO!$E31)) -> 34589.05017 | E31: =IF(AND(INTRO!$E$37="Non-endemic",INTRO!$E$41="Non-endemic"),0,IF(AND(OR(COUNTRY_INFO!$H31=0,COUNTRY_INFO!$H31=4,COUNTRY_INFO!$H31=99),OR(COUNTRY_INFO!$I31=0,COUNTRY_INFO!$I31=4)),0,COUNTRY_INFO!$F31)) -> 72836.55756 | F31: 107425.6077 | G31: =IF(AND(INTRO!$E$37="Non-endemic",INTRO!$E$41="Non-endemic"),0,COUNTRY_INFO!N31) -> 0 | H31: =IF(AND(INTRO!$E$37="Non-endemic",INTRO!$E$41="Non-endemic"),0,COUNTRY_INFO!O31) -> 2 | I31: =IF($G31=1,DEC!I31,0) -> 0 | J31: ALB | K31: 69178.10033 | L31: 145673.1151 | N31: 214851.2155 | O31: 0 | P31: 0 | R31: 0 | T31: 0 | U31: 0 | W31: 145673.1151 | X31: 729 | Z31: 0 | AA31: 0
A32: =IF(AND(INTRO!$E$37="Non-endemic",INTRO!$E$41="Non-endemic")," ",IF(COUNTRY_INFO!A32=0," ",COUNTRY_INFO!A32)) -> Rwanda | B32: =IF(AND(INTRO!$E$37="Non-endemic",INTRO!$E$41="Non-endemic")," ",IF(COUNTRY_INFO!B32=0," ",COUNTRY_INFO!B32)) -> South | C32: =IF(AND(INTRO!$E$37="Non-endemic",INTRO!$E$41="Non-endemic")," ",IF(COUNTRY_INFO!C32=0," ",COUNTRY_INFO!C32)) -> Nyaruguru | D32: =IF(AND(INTRO!$E$37="Non-endemic",INTRO!$E$41="Non-endemic"),0,IF(AND(OR(COUNTRY_INFO!$H32=0,COUNTRY_INFO!$H32=4,COUNTRY_INFO!$H32=99),OR(COUNTRY_INFO!$I32=0,COUNTRY_INFO!$I32=4)),0,COUNTRY_INFO!$E32)) -> 40249.10363 | E32: =IF(AND(INTRO!$E$37="Non-endemic",INTRO!$E$41="Non-endemic"),0,IF(AND(OR(COUNTRY_INFO!$H32=0,COUNTRY_INFO!$H32=4,COUNTRY_INFO!$H32=99),OR(COUNTRY_INFO!$I32=0,COUNTRY_INFO!$I32=4)),0,COUNTRY_INFO!$F32)) -> 110083.0185 | F32: 150332.1221 | G32: =IF(AND(INTRO!$E$37="Non-endemic",INTRO!$E$41="Non-endemic"),0,COUNTRY_INFO!N32) -> 0 | H32: =IF(AND(INTRO!$E$37="Non-endemic",INTRO!$E$41="Non-endemic"),0,COUNTRY_INFO!O32) -> 2 | I32: =IF($G32=1,DEC!I32,0) -> 0 | J32: ALB | K32: 80498.20726 | L32: 220166.0369 | N32: 300664.2442 | O32: 0 | P32: 0 | R32: 0 | T32: 0 | U32: 0 | W32: 220166.0369 | X32: 1101 | Z32: 0 | AA32: 0
A33: =IF(AND(INTRO!$E$37="Non-endemic",INTRO!$E$41="Non-endemic")," ",IF(COUNTRY_INFO!A33=0," ",COUNTRY_INFO!A33)) -> Rwanda | B33: =IF(AND(INTRO!$E$37="Non-endemic",INTRO!$E$41="Non-endemic")," ",IF(COUNTRY_INFO!B33=0," ",COUNTRY_INFO!B33)) -> West | C33: =IF(AND(INTRO!$E$37="Non-endemic",INTRO!$E$41="Non-endemic")," ",IF(COUNTRY_INFO!C33=0," ",COUNTRY_INFO!C33)) -> Rubavu | D33: =IF(AND(INTRO!$E$37="Non-endemic",INTRO!$E$41="Non-endemic"),0,IF(AND(OR(COUNTRY_INFO!$H33=0,COUNTRY_INFO!$H33=4,COUNTRY_INFO!$H33=99),OR(COUNTRY_INFO!$I33=0,COUNTRY_INFO!$I33=4)),0,COUNTRY_INFO!$E33)) -> 60388.98857 | E33: =IF(AND(INTRO!$E$37="Non-endemic",INTRO!$E$41="Non-endemic"),0,IF(AND(OR(COUNTRY_INFO!$H33=0,COUNTRY_INFO!$H33=4,COUNTRY_INFO!$H33=99),OR(COUNTRY_INFO!$I33=0,COUNTRY_INFO!$I33=4)),0,COUNTRY_INFO!$F33)) -> 127383.0228 | F33: 187772.0113 | G33: =IF(AND(INTRO!$E$37="Non-endemic",INTRO!$E$41="Non-endemic"),0,COUNTRY_INFO!N33) -> 0 | H33: =IF(AND(INTRO!$E$37="Non-endemic",INTRO!$E$41="Non-endemic"),0,COUNTRY_INFO!O33) -> 2 | I33: =IF($G33=1,DEC!I33,0) -> 0 | J33: ALB | K33: 120777.9771 | L33: 254766.0455 | N33: 375544.0227 | O33: 0 | P33: 0 | R33: 0 | T33: 0 | U33: 0 | W33: 254766.0455 | X33: 1274 | Z33: 0 | AA33: 0
A34: =IF(AND(INTRO!$E$37="Non-endemic",INTRO!$E$41="Non-endemic")," ",IF(COUNTRY_INFO!A34=0," ",COUNTRY_INFO!A34)) -> Rwanda | B34: =IF(AND(INTRO!$E$37="Non-endemic",INTRO!$E$41="Non-endemic")," ",IF(COUNTRY_INFO!B34=0," ",COUNTRY_INFO!B34)) -> South | C34: =IF(AND(INTRO!$E$37="Non-endemic",INTRO!$E$41="Non-endemic")," ",IF(COUNTRY_INFO!C34=0," ",COUNTRY_INFO!C34)) -> Ruhango | D34: =IF(AND(INTRO!$E$37="Non-endemic",INTRO!$E$41="Non-endemic"),0,IF(AND(OR(COUNTRY_INFO!$H34=0,COUNTRY_INFO!$H34=4,COUNTRY_INFO!$H34=99),OR(COUNTRY_INFO!$I34=0,COUNTRY_INFO!$I34=4)),0,COUNTRY_INFO!$E34)) -> 43369.23718 | E34: =IF(AND(INTRO!$E$37="Non-endemic",INTRO!$E$41="Non-endemic"),0,IF(AND(OR(COUNTRY_INFO!$H34=0,COUNTRY_INFO!$H34=4,COUNTRY_INFO!$H34=99),OR(COUNTRY_INFO!$I34=0,COUNTRY_INFO!$I34=4)),0,COUNTRY_INFO!$F34)) -> 107301.4748 | F34: 150670.7119 | G34: =IF(AND(INTRO!$E$37="Non-endemic",INTRO!$E$41="Non-endemic"),0,COUNTRY_INFO!N34) -> 0 | H34: =IF(AND(INTRO!$E$37="Non-endemic",INTRO!$E$41="Non-endemic"),0,COUNTRY_INFO!O34) -> 2 | I34: =IF($G34=1,DEC!I34,0) -> 0 | J34: ALB | K34: 86738.47437 | L34: 214602.9495 | N34: 301341.4239 | O34: 0 | P34: 0 | R34: 0 | T34: 0 | U34: 0 | W34: 214602.9495 | X34: 1074 | Z34: 0 | AA34: 0
A35: =IF(AND(INTRO!$E$37="Non-endemic",INTRO!$E$41="Non-endemic")," ",IF(COUNTRY_INFO!A35=0," ",COUNTRY_INFO!A35)) -> Rwanda | B35: =IF(AND(INTRO!$E$37="Non-endemic",INTRO!$E$41="Non-endemic")," ",IF(COUNTRY_INFO!B35=0," ",COUNTRY_INFO!B35)) -> North | C35: =IF(AND(INTRO!$E$37="Non-endemic",INTRO!$E$41="Non-endemic")," ",IF(COUNTRY_INFO!C35=0," ",COUNTRY_INFO!C35)) -> Rulindo | D35: =IF(AND(INTRO!$E$37="Non-endemic",INTRO!$E$41="Non-endemic"),0,IF(AND(OR(COUNTRY_INFO!$H35=0,COUNTRY_INFO!$H35=4,COUNTRY_INFO!$H35=99),OR(COUNTRY_INFO!$I35=0,COUNTRY_INFO!$I35=4)),0,COUNTRY_INFO!$E35)) -> 35304.527 | E35: =IF(AND(INTRO!$E$37="Non-endemic",INTRO!$E$41="Non-endemic"),0,IF(AND(OR(COUNTRY_INFO!$H35=0,COUNTRY_INFO!$H35=4,COUNTRY_INFO!$H35=99),OR(COUNTRY_INFO!$I35=0,COUNTRY_INFO!$I35=4)),0,COUNTRY_INFO!$F35)) -> 96835.27405 | F35: 132139.8011 | G35: =IF(AND(INTRO!$E$37="Non-endemic",INTRO!$E$41="Non-endemic"),0,COUNTRY_INFO!N35) -> 0 | H35: =IF(AND(INTRO!$E$37="Non-endemic",INTRO!$E$41="Non-endemic"),0,COUNTRY_INFO!O35) -> 2 | I35: =IF($G35=1,DEC!I35,0) -> 0 | J35: ALB | K35: 70609.054 | L35: 193670.5481 | N35: 264279.6021 | O35: 0 | P35: 0 | R35: 0 | T35: 0 | U35: 0 | W35: 193670.5481 | X35: 969 | Z35: 0 | AA35: 0
A36: =IF(AND(INTRO!$E$37="Non-endemic",INTRO!$E$41="Non-endemic")," ",IF(COUNTRY_INFO!A36=0," ",COUNTRY_INFO!A36)) -> Rwanda | B36: =IF(AND(INTRO!$E$37="Non-endemic",INTRO!$E$41="Non-endemic")," ",IF(COUNTRY_INFO!B36=0," ",COUNTRY_INFO!B36)) -> West | C36: =IF(AND(INTRO!$E$37="Non-endemic",INTRO!$E$41="Non-endemic")," ",IF(COUNTRY_INFO!C36=0," ",COUNTRY_INFO!C36)) -> Rusizi | D36: =IF(AND(INTRO!$E$37="Non-endemic",INTRO!$E$41="Non-endemic"),0,IF(AND(OR(COUNTRY_INFO!$H36=0,COUNTRY_INFO!$H36=4,COUNTRY_INFO!$H36=99),OR(COUNTRY_INFO!$I36=0,COUNTRY_INFO!$I36=4)),0,COUNTRY_INFO!$E36)) -> 57626.94348 | E36: =IF(AND(INTRO!$E$37="Non-endemic",INTRO!$E$41="Non-endemic"),0,IF(AND(OR(COUNTRY_INFO!$H36=0,COUNTRY_INFO!$H36=4,COUNTRY_INFO!$H36=99),OR(COUNTRY_INFO!$I36=0,COUNTRY_INFO!$I36=4)),0,COUNTRY_INFO!$F36)) -> 133994.3564 | F36: 191621.2999 | G36: =IF(AND(INTRO!$E$37="Non-endemic",INTRO!$E$41="Non-endemic"),0,COUNTRY_INFO!N36) -> 0 | H36: =IF(AND(INTRO!$E$37="Non-endemic",INTRO!$E$41="Non-endemic"),0,COUNTRY_INFO!O36) -> 2 | I36: =IF($G36=1,DEC!I36,0) -> 0 | J36: ALB | K36: 115253.887 | L36: 267988.7128 | N36: 383242.5997 | O36: 0 | P36: 0 | R36: 0 | T36: 0 | U36: 0 | W36: 267988.7128 | X36: 1340 | Z36: 0 | AA36: 0
A37: =IF(AND(INTRO!$E$37="Non-endemic",INTRO!$E$41="Non-endemic")," ",IF(COUNTRY_INFO!A37=0," ",COUNTRY_INFO!A37)) -> Rwanda | B37: =IF(AND(INTRO!$E$37="Non-endemic",INTRO!$E$41="Non-endemic")," ",IF(COUNTRY_INFO!B37=0," ",COUNTRY_INFO!B37)) -> West | C37: =IF(AND(INTRO!$E$37="Non-endemic",INTRO!$E$41="Non-endemic")," ",IF(COUNTRY_INFO!C37=0," ",COUNTRY_INFO!C37)) -> Rutsiro | D37: =IF(AND(INTRO!$E$37="Non-endemic",INTRO!$E$41="Non-endemic"),0,IF(AND(OR(COUNTRY_INFO!$H37=0,COUNTRY_INFO!$H37=4,COUNTRY_INFO!$H37=99),OR(COUNTRY_INFO!$I37=0,COUNTRY_INFO!$I37=4)),0,COUNTRY_INFO!$E37)) -> 44015.80671 | E37: =IF(AND(INTRO!$E$37="Non-endemic",INTRO!$E$41="Non-endemic"),0,IF(AND(OR(COUNTRY_INFO!$H37=0,COUNTRY_INFO!$H37=4,COUNTRY_INFO!$H37=99),OR(COUNTRY_INFO!$I37=0,COUNTRY_INFO!$I37=4)),0,COUNTRY_INFO!$F37)) -> 118387.3422 | F37: 162403.1489 | G37: =IF(AND(INTRO!$E$37="Non-endemic",INTRO!$E$41="Non-endemic"),0,COUNTRY_INFO!N37) -> 0 | H37: =IF(AND(INTRO!$E$37="Non-endemic",INTRO!$E$41="Non-endemic"),0,COUNTRY_INFO!O37) -> 2 | I37: =IF($G37=1,DEC!I37,0) -> 0 | J37: ALB | K37: 88031.61341 | L37: 236774.6844 | N37: 324806.2978 | O37: 0 | P37: 0 | R37: 0 | T37: 0 | U37: 0 | W37: 236774.6844 | X37: 1184 | Z37: 0 | AA37: 0
A38: =IF(AND(INTRO!$E$37="Non-endemic",INTRO!$E$41="Non-endemic")," ",IF(COUNTRY_INFO!A38=0," ",COUNTRY_INFO!A38)) -> Rwanda | B38: =IF(AND(INTRO!$E$37="Non-endemic",INTRO!$E$41="Non-endemic")," ",IF(COUNTRY_INFO!B38=0," ",COUNTRY_INFO!B38)) -> East | C38: =IF(AND(INTRO!$E$37="Non-endemic",INTRO!$E$41="Non-endemic")," ",IF(COUNTRY_INFO!C38=0," ",COUNTRY_INFO!C38)) -> Rwamagana | D38: =IF(AND(INTRO!$E$37="Non-endemic",INTRO!$E$41="Non-endemic"),0,IF(AND(OR(COUNTRY_INFO!$H38=0,COUNTRY_INFO!$H38=4,COUNTRY_INFO!$H38=99),OR(COUNTRY_INFO!$I38=0,COUNTRY_INFO!$I38=4)),0,COUNTRY_INFO!$E38)) -> 44696.47399 | E38: =IF(AND(INTRO!$E$37="Non-endemic",INTRO!$E$41="Non-endemic"),0,IF(AND(OR(COUNTRY_INFO!$H38=0,COUNTRY_INFO!$H38=4,COUNTRY_INFO!$H38=99),OR(COUNTRY_INFO!$I38=0,COUNTRY_INFO!$I38=4)),0,COUNTRY_INFO!$F38)) -> 98552.06151 | F38: 143248.5355 | G38: =IF(AND(INTRO!$E$37="Non-endemic",INTRO!$E$41="Non-endemic"),0,COUNTRY_INFO!N38) -> 0 | H38: =IF(AND(INTRO!$E$37="Non-endemic",INTRO!$E$41="Non-endemic"),0,COUNTRY_INFO!O38) -> 2 | I38: =IF($G38=1,DEC!I38,0) -> 0 | J38: ALB | K38: 89392.94799 | L38: 197104.123 | N38: 286497.071 | O38: 0 | P38: 0 | R38: 0 | T38: 0 | U38: 0 | W38: 197104.123 | X38: 986 | Z38: 0 | AA38: 0

Sheet PZQ
A1: Praziquantel (PZQ)
A2: Administrative structure, eligible population by age group, treatment plan and information about tablets
A4: TOTAL | D4: =SUM(D$9:D$1000) -> 1558131.417 | E4: =SUM(E$9:E$1000) -> 875730.4225 | F4: =SUM(F$9:F$1000) -> 2433861.84 | I4: =SUM(I$9:I$1000) -> 1289311.049 | J4: 1062090 | K4: 875730.4225 | L4: 1961856.486 | M4: 2715315.16 | N4: 2627191.268 | O4: 2715315.16 | P4: 0 | Q4: 2715315.16 | R4: 2729
A6: Country administrative structure | D6: Population requiring treatment with PZQ | G6: Treatment plan | I6: Target population | M6: Praziquantel (PZQ)
A7: Country | B7: Province/State | C7: District | D7: SAC | E7: Adults | F7: Total | G7: SCH | H7: All SAC targeted? | I7: SAC | J7: SAC at lower level | K7: Adults | L7: Total | M7: SAC | N7: Adults | O7: Total required for SAC | P7: Remaining in stock | Q7: Tablets to be procured | R7: Bottle (600 mg) 1000 tablets
A9: =IF(INTRO!$E$43="Non-endemic"," ", IF(COUNTRY_INFO!A9=0," ",COUNTRY_INFO!A9)) -> Rwanda | B9: =IF(INTRO!$E$43="Non-endemic"," ", IF(COUNTRY_INFO!B9=0," ",COUNTRY_INFO!B9)) -> East | C9: =IF(INTRO!$E$43="Non-endemic"," ", IF(COUNTRY_INFO!C9=0," ",COUNTRY_INFO!C9)) -> Bugesera | D9: =IF(INTRO!$E$43="Non-endemic", 0, IF(COUNTRY_INFO!$J9>0, IF(COUNTRY_INFO!$J9=4, 0, IF(COUNTRY_INFO!$J9=1, COUNTRY_INFO!$F9*0.33, IF(COUNTRY_INFO!$J9=2, COUNTRY_INFO!$F9*0.5, COUNTRY_INFO!$F9))), 0)) -> 59853.80188 | E9: =IF(INTRO!$E$43="Non-endemic", 0, IF(COUNTRY_INFO!$J9>0, IF(COUNTRY_INFO!$J9=4, 0, IF(COUNTRY_INFO!$J9=1, 0, IF(COUNTRY_INFO!$J9=2, COUNTRY_INFO!$G9*0.2, COUNTRY_INFO!$G9))), 0)) -> 46614.0563 | F9: =SUM(D9:E9) -> 106467.8582 | G9: =IF(INTRO!$E$43="Non-endemic", "Not required", COUNTRY_INFO!P9) -> 1 | I9: =IF($D9=0,0,IF(AND($G9>0,$H9<>"Yes"),D9,IF(AND($G9>0,$H9="Yes"),COUNTRY_INFO!$F9,0))) -> 59853.80188 | J9: 64242 | K9: =IF($G9>0,E9, 0) -> 46614.0563 | L9: =IF($J9=0,SUM(I9,K9),SUM(J9,K9)) -> 110856.0563 | M9: =IF($J9=0,$I9*2.5,$J9*2.5) -> 160605 | N9: =$K9*3 -> 139842.1689 | O9: =M9 -> 160605 | Q9: =IF($O9>$P9,O9-P9,0) -> 160605 | R9: =ROUNDUP($O9/1000,0) -> 161
A10: =IF(INTRO!$E$43="Non-endemic"," ", IF(COUNTRY_INFO!A10=0," ",COUNTRY_INFO!A10)) -> Rwanda | B10: =IF(INTRO!$E$43="Non-endemic"," ", IF(COUNTRY_INFO!B10=0," ",COUNTRY_INFO!B10)) -> North | C10: =IF(INTRO!$E$43="Non-endemic"," ", IF(COUNTRY_INFO!C10=0," ",COUNTRY_INFO!C10)) -> Burera | D10: =IF(INTRO!$E$43="Non-endemic", 0, IF(COUNTRY_INFO!$J10>0, IF(COUNTRY_INFO!$J10=4, 0, IF(COUNTRY_INFO!$J10=1, COUNTRY_INFO!$F10*0.33, IF(COUNTRY_INFO!$J10=2, COUNTRY_INFO!$F10*0.5, COUNTRY_INFO!$F10))), 0)) -> 63925.50544 | E10: =IF(INTRO!$E$43="Non-endemic", 0, IF(COUNTRY_INFO!$J10>0, IF(COUNTRY_INFO!$J10=4, 0, IF(COUNTRY_INFO!$J10=1, 0, IF(COUNTRY_INFO!$J10=2, COUNTRY_INFO!$G10*0.2, COUNTRY_INFO!$G10))), 0)) -> 42407.19684 | F10: =SUM(D10:E10) -> 106332.7023 | G10: =IF(INTRO!$E$43="Non-endemic", "Not required", COUNTRY_INFO!P10) -> 1 | I10: =IF($D10=0,0,IF(AND($G10>0,$H10<>"Yes"),D10,IF(AND($G10>0,$H10="Yes"),COUNTRY_INFO!$F10,0))) -> 63925.50544 | J10: 81432 | K10: =IF($G10>0,E10, 0) -> 42407.19684 | L10: =IF($J10=0,SUM(I10,K10),SUM(J10,K10)) -> 123839.1968 | M10: 203580 | N10: 127221.5905 | O10: =M10 -> 203580 | Q10: =IF($O10>$P10,O10-P10,0) -> 203580 | R10: 204
A11: =IF(INTRO!$E$43="Non-endemic"," ", IF(COUNTRY_INFO!A11=0," ",COUNTRY_INFO!A11)) -> Rwanda | B11: =IF(INTRO!$E$43="Non-endemic"," ", IF(COUNTRY_INFO!B11=0," ",COUNTRY_INFO!B11)) -> North | C11: =IF(INTRO!$E$43="Non-endemic"," ", IF(COUNTRY_INFO!C11=0," ",COUNTRY_INFO!C11)) -> Gakenke | D11: =IF(INTRO!$E$43="Non-endemic", 0, IF(COUNTRY_INFO!$J11>0, IF(COUNTRY_INFO!$J11=4, 0, IF(COUNTRY_INFO!$J11=1, COUNTRY_INFO!$F11*0.33, IF(COUNTRY_INFO!$J11=2, COUNTRY_INFO!$F11*0.5, COUNTRY_INFO!$F11))), 0)) -> 58111.82504 | E11: =IF(INTRO!$E$43="Non-endemic", 0, IF(COUNTRY_INFO!$J11>0, IF(COUNTRY_INFO!$J11=4, 0, IF(COUNTRY_INFO!$J11=1, 0, IF(COUNTRY_INFO!$J11=2, COUNTRY_INFO!$G11*0.2, COUNTRY_INFO!$G11))), 0)) -> 45540.69554 | F11: 103652.5206 | G11: =IF(INTRO!$E$43="Non-endemic", "Not required", COUNTRY_INFO!P11) -> 1 | I11: =IF($D11=0,0,IF(AND($G11>0,$H11<>"Yes"),D11,IF(AND($G11>0,$H11="Yes"),COUNTRY_INFO!$F11,0))) -> 58111.82504 | J11: 51204 | K11: 45540.69554 | L11: 96744.69554 | M11: 128010 | N11: 136622.0866 | O11: 128010 | Q11: 128010 | R11: 129
A12: =IF(INTRO!$E$43="Non-endemic"," ", IF(COUNTRY_INFO!A12=0," ",COUNTRY_INFO!A12)) -> Rwanda | B12: =IF(INTRO!$E$43="Non-endemic"," ", IF(COUNTRY_INFO!B12=0," ",COUNTRY_INFO!B12)) -> Kigali | C12: =IF(INTRO!$E$43="Non-endemic"," ", IF(COUNTRY_INFO!C12=0," ",COUNTRY_INFO!C12)) -> Gasabo | D12: =IF(INTRO!$E$43="Non-endemic", 0, IF(COUNTRY_INFO!$J12>0, IF(COUNTRY_INFO!$J12=4, 0, IF(COUNTRY_INFO!$J12=1, COUNTRY_INFO!$F12*0.33, IF(COUNTRY_INFO!$J12=2, COUNTRY_INFO!$F12*0.5, COUNTRY_INFO!$F12))), 0)) -> 44526.27309 | E12: =IF(INTRO!$E$43="Non-endemic", 0, IF(COUNTRY_INFO!$J12>0, IF(COUNTRY_INFO!$J12=4, 0, IF(COUNTRY_INFO!$J12=1, 0, IF(COUNTRY_INFO!$J12=2, COUNTRY_INFO!$G12*0.2, COUNTRY_INFO!$G12))), 0)) -> 0 | F12: 44526.27309 | G12: =IF(INTRO!$E$43="Non-endemic", "Not required", COUNTRY_INFO!P12) -> 0 | I12: =IF($D12=0,0,IF(AND($G12>0,$H12<>"Yes"),D12,IF(AND($G12>0,$H12="Yes"),COUNTRY_INFO!$F12,0))) -> 0 | K12: 0 | L12: 0 | M12: 0 | N12: 0 | O12: 0 | Q12: 0 | R12: 0
A13: =IF(INTRO!$E$43="Non-endemic"," ", IF(COUNTRY_INFO!A13=0," ",COUNTRY_INFO!A13)) -> Rwanda | B13: =IF(INTRO!$E$43="Non-endemic"," ", IF(COUNTRY_INFO!B13=0," ",COUNTRY_INFO!B13)) -> East | C13: =IF(INTRO!$E$43="Non-endemic"," ", IF(COUNTRY_INFO!C13=0," ",COUNTRY_INFO!C13)) -> Gatsibo | D13: =IF(INTRO!$E$43="Non-endemic", 0, IF(COUNTRY_INFO!$J13>0, IF(COUNTRY_INFO!$J13=4, 0, IF(COUNTRY_INFO!$J13=1, COUNTRY_INFO!$F13*0.33, IF(COUNTRY_INFO!$J13=2, COUNTRY_INFO!$F13*0.5, COUNTRY_INFO!$F13))), 0)) -> 77686.62492 | E13: =IF(INTRO!$E$43="Non-endemic", 0, IF(COUNTRY_INFO!$J13>0, IF(COUNTRY_INFO!$J13=4, 0, IF(COUNTRY_INFO!$J13=1, 0, IF(COUNTRY_INFO!$J13=2, COUNTRY_INFO!$G13*0.2, COUNTRY_INFO!$G13))), 0)) -> 54658.99343 | F13: 132345.6184 | G13: =IF(INTRO!$E$43="Non-endemic", "Not required", COUNTRY_INFO!P13) -> 1 | I13: =IF($D13=0,0,IF(AND($G13>0,$H13<>"Yes"),D13,IF(AND($G13>0,$H13="Yes"),COUNTRY_INFO!$F13,0))) -> 77686.62492 | J13: 42018 | K13: 54658.99343 | L13: 96676.99343 | M13: 105045 | N13: 163976.9803 | O13: 105045 | Q13: 105045 | R13: 106
A14: =IF(INTRO!$E$43="Non-endemic"," ", IF(COUNTRY_INFO!A14=0," ",COUNTRY_INFO!A14)) -> Rwanda | B14: =IF(INTRO!$E$43="Non-endemic"," ", IF(COUNTRY_INFO!B14=0," ",COUNTRY_INFO!B14)) -> North | C14: =IF(INTRO!$E$43="Non-endemic"," ", IF(COUNTRY_INFO!C14=0," ",COUNTRY_INFO!C14)) -> Gicumbi | D14: =IF(INTRO!$E$43="Non-endemic", 0, IF(COUNTRY_INFO!$J14>0, IF(COUNTRY_INFO!$J14=4, 0, IF(COUNTRY_INFO!$J14=1, COUNTRY_INFO!$F14*0.33, IF(COUNTRY_INFO!$J14=2, COUNTRY_INFO!$F14*0.5, COUNTRY_INFO!$F14))), 0)) -> 71436.68155 | E14: =IF(INTRO!$E$43="Non-endemic", 0, IF(COUNTRY_INFO!$J14>0, IF(COUNTRY_INFO!$J14=4, 0, IF(COUNTRY_INFO!$J14=1, 0, IF(COUNTRY_INFO!$J14=2, COUNTRY_INFO!$G14*0.2, COUNTRY_INFO!$G14))), 0)) -> 51693.33979 | F14: 123130.0213 | G14: =IF(INTRO!$E$43="Non-endemic", "Not required", COUNTRY_INFO!P14) -> 1 | I14: =IF($D14=0,0,IF(AND($G14>0,$H14<>"Yes"),D14,IF(AND($G14>0,$H14="Yes"),COUNTRY_INFO!$F14,0))) -> 71436.68155 | J14: 18025 | K14: 51693.33979 | L14: 69718.33979 | M14: 45062.5 | N14: 155080.0194 | O14: 45062.5 | Q14: 45062.5 | R14: 46
A15: =IF(INTRO!$E$43="Non-endemic"," ", IF(COUNTRY_INFO!A15=0," ",COUNTRY_INFO!A15)) -> Rwanda | B15: =IF(INTRO!$E$43="Non-endemic"," ", IF(COUNTRY_INFO!B15=0," ",COUNTRY_INFO!B15)) -> South | C15: =IF(INTRO!$E$43="Non-endemic"," ", IF(COUNTRY_INFO!C15=0," ",COUNTRY_INFO!C15)) -> Gisagara | D15: =IF(INTRO!$E$43="Non-endemic", 0, IF(COUNTRY_INFO!$J15>0, IF(COUNTRY_INFO!$J15=4, 0, IF(COUNTRY_INFO!$J15=1, COUNTRY_INFO!$F15*0.33, IF(COUNTRY_INFO!$J15=2, COUNTRY_INFO!$F15*0.5, COUNTRY_INFO!$F15))), 0)) -> 53901.86038 | E15: =IF(INTRO!$E$43="Non-endemic", 0, IF(COUNTRY_INFO!$J15>0, IF(COUNTRY_INFO!$J15=4, 0, IF(COUNTRY_INFO!$J15=1, 0, IF(COUNTRY_INFO!$J15=2, COUNTRY_INFO!$G15*0.2, COUNTRY_INFO!$G15))), 0)) -> 41538.35674 | F15: 95440.21713 | G15: =IF(INTRO!$E$43="Non-endemic", "Not required", COUNTRY_INFO!P15) -> 1 | I15: =IF($D15=0,0,IF(AND($G15>0,$H15<>"Yes"),D15,IF(AND($G15>0,$H15="Yes"),COUNTRY_INFO!$F15,0))) -> 53901.86038 | J15: 72181 | K15: 41538.35674 | L15: 113719.3567 | M15: 180452.5 | N15: 124615.0702 | O15: 180452.5 | Q15: 180452.5 | R15: 181
A16: =IF(INTRO!$E$43="Non-endemic"," ", IF(COUNTRY_INFO!A16=0," ",COUNTRY_INFO!A16)) -> Rwanda | B16: =IF(INTRO!$E$43="Non-endemic"," ", IF(COUNTRY_INFO!B16=0," ",COUNTRY_INFO!B16)) -> South | C16: =IF(INTRO!$E$43="Non-endemic"," ", IF(COUNTRY_INFO!C16=0," ",COUNTRY_INFO!C16)) -> Huye | D16: =IF(INTRO!$E$43="Non-endemic", 0, IF(COUNTRY_INFO!$J16>0, IF(COUNTRY_INFO!$J16=4, 0, IF(COUNTRY_INFO!$J16=1, COUNTRY_INFO!$F16*0.33, IF(COUNTRY_INFO!$J16=2, COUNTRY_INFO!$F16*0.5, COUNTRY_INFO!$F16))), 0)) -> 33311.95418 | E16: =IF(INTRO!$E$43="Non-endemic", 0, IF(COUNTRY_INFO!$J16>0, IF(COUNTRY_INFO!$J16=4, 0, IF(COUNTRY_INFO!$J16=1, 0, IF(COUNTRY_INFO!$J16=2, COUNTRY_INFO!$G16*0.2, COUNTRY_INFO!$G16))), 0)) -> 0 | F16: 33311.95418 | G16: =IF(INTRO!$E$43="Non-endemic", "Not required", COUNTRY_INFO!P16) -> 0 | I16: =IF($D16=0,0,IF(AND($G16>0,$H16<>"Yes"),D16,IF(AND($G16>0,$H16="Yes"),COUNTRY_INFO!$F16,0))) -> 0 | K16: 0 | L16: 0 | M16: 0 | N16: 0 | O16: 0 | Q16: 0 | R16: 0
A17: =IF(INTRO!$E$43="Non-endemic"," ", IF(COUNTRY_INFO!A17=0," ",COUNTRY_INFO!A17)) -> Rwanda | B17: =IF(INTRO!$E$43="Non-endemic"," ", IF(COUNTRY_INFO!B17=0," ",COUNTRY_INFO!B17)) -> South | C17: =IF(INTRO!$E$43="Non-endemic"," ", IF(COUNTRY_INFO!C17=0," ",COUNTRY_INFO!C17)) -> Kamonyi | D17: =IF(INTRO!$E$43="Non-endemic", 0, IF(COUNTRY_INFO!$J17>0, IF(COUNTRY_INFO!$J17=4, 0, IF(COUNTRY_INFO!$J17=1, COUNTRY_INFO!$F17*0.33, IF(COUNTRY_INFO!$J17=2, COUNTRY_INFO!$F17*0.5, COUNTRY_INFO!$F17))), 0)) -> 55715.54023 | E17: =IF(INTRO!$E$43="Non-endemic", 0, IF(COUNTRY_INFO!$J17>0, IF(COUNTRY_INFO!$J17=4, 0, IF(COUNTRY_INFO!$J17=1, 0, IF(COUNTRY_INFO!$J17=2, COUNTRY_INFO!$G17*0.2, COUNTRY_INFO!$G17))), 0)) -> 43935.68316 | F17: 99651.22339 | G17: =IF(INTRO!$E$43="Non-endemic", "Not required", COUNTRY_INFO!P17) -> 1 | I17: =IF($D17=0,0,IF(AND($G17>0,$H17<>"Yes"),D17,IF(AND($G17>0,$H17="Yes"),COUNTRY_INFO!$F17,0))) -> 55715.54023 | J17: 38949 | K17: 43935.68316 | L17: 82884.68316 | M17: 97372.5 | N17: 131807.0495 | O17: 97372.5 | Q17: 97372.5 | R17: 98
A18: =IF(INTRO!$E$43="Non-endemic"," ", IF(COUNTRY_INFO!A18=0," ",COUNTRY_INFO!A18)) -> Rwanda | B18: =IF(INTRO!$E$43="Non-endemic"," ", IF(COUNTRY_INFO!B18=0," ",COUNTRY_INFO!B18)) -> West | C18: =IF(INTRO!$E$43="Non-endemic"," ", IF(COUNTRY_INFO!C18=0," ",COUNTRY_INFO!C18)) -> Karongi | D18: =IF(INTRO!$E$43="Non-endemic", 0, IF(COUNTRY_INFO!$J18>0, IF(COUNTRY_INFO!$J18=4, 0, IF(COUNTRY_INFO!$J18=1, COUNTRY_INFO!$F18*0.33, IF(COUNTRY_INFO!$J18=2, COUNTRY_INFO!$F18*0.5, COUNTRY_INFO!$F18))), 0)) -> 38009.06274 | E18: =IF(INTRO!$E$43="Non-endemic", 0, IF(COUNTRY_INFO!$J18>0, IF(COUNTRY_INFO!$J18=4, 0, IF(COUNTRY_INFO!$J18=1, 0, IF(COUNTRY_INFO!$J18=2, COUNTRY_INFO!$G18*0.2, COUNTRY_INFO!$G18))), 0)) -> 0 | F18: 38009.06274 | G18: =IF(INTRO!$E$43="Non-endemic", "Not required", COUNTRY_INFO!P18) -> 0 | I18: =IF($D18=0,0,IF(AND($G18>0,$H18<>"Yes"),D18,IF(AND($G18>0,$H18="Yes"),COUNTRY_INFO!$F18,0))) -> 0 | K18: 0 | L18: 0 | M18: 0 | N18: 0 | O18: 0 | Q18: 0 | R18: 0
A19: =IF(INTRO!$E$43="Non-endemic"," ", IF(COUNTRY_INFO!A19=0," ",COUNTRY_INFO!A19)) -> Rwanda | B19: =IF(INTRO!$E$43="Non-endemic"," ", IF(COUNTRY_INFO!B19=0," ",COUNTRY_INFO!B19)) -> East | C19: =IF(INTRO!$E$43="Non-endemic"," ", IF(COUNTRY_INFO!C19=0," ",COUNTRY_INFO!C19)) -> Kayonza | D19: =IF(INTRO!$E$43="Non-endemic", 0, IF(COUNTRY_INFO!$J19>0, IF(COUNTRY_INFO!$J19=4, 0, IF(COUNTRY_INFO!$J19=1, COUNTRY_INFO!$F19*0.33, IF(COUNTRY_INFO!$J19=2, COUNTRY_INFO!$F19*0.5, COUNTRY_INFO!$F19))), 0)) -> 60336.17642 | E19: =IF(INTRO!$E$43="Non-endemic", 0, IF(COUNTRY_INFO!$J19>0, IF(COUNTRY_INFO!$J19=4, 0, IF(COUNTRY_INFO!$J19=1, 0, IF(COUNTRY_INFO!$J19=2, COUNTRY_INFO!$G19*0.2, COUNTRY_INFO!$G19))), 0)) -> 43683.39173 | F19: 104019.5682 | G19: =IF(INTRO!$E$43="Non-endemic", "Not required", COUNTRY_INFO!P19) -> 1 | I19: =IF($D19=0,0,IF(AND($G19>0,$H19<>"Yes"),D19,IF(AND($G19>0,$H19="Yes"),COUNTRY_INFO!$F19,0))) -> 60336.17642 | J19: 49009 | K19: 43683.39173 | L19: 92692.39173 | M19: 122522.5 | N19: 131050.1752 | O19: 122522.5 | Q19: 122522.5 | R19: 123
A20: =IF(INTRO!$E$43="Non-endemic"," ", IF(COUNTRY_INFO!A20=0," ",COUNTRY_INFO!A20)) -> Rwanda | B20: =IF(INTRO!$E$43="Non-endemic"," ", IF(COUNTRY_INFO!B20=0," ",COUNTRY_INFO!B20)) -> Kigali | C20: =IF(INTRO!$E$43="Non-endemic"," ", IF(COUNTRY_INFO!C20=0," ",COUNTRY_INFO!C20)) -> Kicukiro | D20: =IF(INTRO!$E$43="Non-endemic", 0, IF(COUNTRY_INFO!$J20>0, IF(COUNTRY_INFO!$J20=4, 0, IF(COUNTRY_INFO!$J20=1, COUNTRY_INFO!$F20*0.33, IF(COUNTRY_INFO!$J20=2, COUNTRY_INFO!$F20*0.5, COUNTRY_INFO!$F20))), 0)) -> 35263.25933 | E20: =IF(INTRO!$E$43="Non-endemic", 0, IF(COUNTRY_INFO!$J20>0, IF(COUNTRY_INFO!$J20=4, 0, IF(COUNTRY_INFO!$J20=1, 0, IF(COUNTRY_INFO!$J20=2, COUNTRY_INFO!$G20*0.2, COUNTRY_INFO!$G20))), 0)) -> 0 | F20: 35263.25933 | G20: =IF(INTRO!$E$43="Non-endemic", "Not required", COUNTRY_INFO!P20) -> 0 | I20: =IF($D20=0,0,IF(AND($G20>0,$H20<>"Yes"),D20,IF(AND($G20>0,$H20="Yes"),COUNTRY_INFO!$F20,0))) -> 0 | K20: 0 | L20: 0 | M20: 0 | N20: 0 | O20: 0 | Q20: 0 | R20: 0
A21: =IF(INTRO!$E$43="Non-endemic"," ", IF(COUNTRY_INFO!A21=0," ",COUNTRY_INFO!A21)) -> Rwanda | B21: =IF(INTRO!$E$43="Non-endemic"," ", IF(COUNTRY_INFO!B21=0," ",COUNTRY_INFO!B21)) -> East | C21: =IF(INTRO!$E$43="Non-endemic"," ", IF(COUNTRY_INFO!C21=0," ",COUNTRY_INFO!C21)) -> Kirehe | D21: =IF(INTRO!$E$43="Non-endemic", 0, IF(COUNTRY_INFO!$J21>0, IF(COUNTRY_INFO!$J21=4, 0, IF(COUNTRY_INFO!$J21=1, COUNTRY_INFO!$F21*0.33, IF(COUNTRY_INFO!$J21=2, COUNTRY_INFO!$F21*0.5, COUNTRY_INFO!$F21))), 0)) -> 39646.01346 | E21: =IF(INTRO!$E$43="Non-endemic", 0, IF(COUNTRY_INFO!$J21>0, IF(COUNTRY_INFO!$J21=4, 0, IF(COUNTRY_INFO!$J21=1, 0, IF(COUNTRY_INFO!$J21=2, COUNTRY_INFO!$G21*0.2, COUNTRY_INFO!$G21))), 0)) -> 0 | F21: 39646.01346 | G21: =IF(INTRO!$E$43="Non-endemic", "Not required", COUNTRY_INFO!P21) -> 0 | I21: =IF($D21=0,0,IF(AND($G21>0,$H21<>"Yes"),D21,IF(AND($G21>0,$H21="Yes"),COUNTRY_INFO!$F21,0))) -> 0 | K21: 0 | L21: 0 | M21: 0 | N21: 0 | O21: 0 | Q21: 0 | R21: 0
A22: =IF(INTRO!$E$43="Non-endemic"," ", IF(COUNTRY_INFO!A22=0," ",COUNTRY_INFO!A22)) -> Rwanda | B22: =IF(INTRO!$E$43="Non-endemic"," ", IF(COUNTRY_INFO!B22=0," ",COUNTRY_INFO!B22)) -> South | C22: =IF(INTRO!$E$43="Non-endemic"," ", IF(COUNTRY_INFO!C22=0," ",COUNTRY_INFO!C22)) -> Muhanga | D22: =IF(INTRO!$E$43="Non-endemic", 0, IF(COUNTRY_INFO!$J22>0, IF(COUNTRY_INFO!$J22=4, 0, IF(COUNTRY_INFO!$J22=1, COUNTRY_INFO!$F22*0.33, IF(COUNTRY_INFO!$J22=2, COUNTRY_INFO!$F22*0.5, COUNTRY_INFO!$F22))), 0)) -> 34342.40165 | E22: =IF(INTRO!$E$43="Non-endemic", 0, IF(COUNTRY_INFO!$J22>0, IF(COUNTRY_INFO!$J22=4, 0, IF(COUNTRY_INFO!$J22=1, 0, IF(COUNTRY_INFO!$J22=2, COUNTRY_INFO!$G22*0.2, COUNTRY_INFO!$G22))), 0)) -> 0 | F22: 34342.40165 | G22: =IF(INTRO!$E$43="Non-endemic", "Not required", COUNTRY_INFO!P22) -> 0 | I22: =IF($D22=0,0,IF(AND($G22>0,$H22<>"Yes"),D22,IF(AND($G22>0,$H22="Yes"),COUNTRY_INFO!$F22,0))) -> 0 | J22: 20597 | K22: 0 | L22: 20597 | M22: 51492.5 | N22: 0 | O22: 51492.5 | Q22: 51492.5 | R22: 52
A23: =IF(INTRO!$E$43="Non-endemic"," ", IF(COUNTRY_INFO!A23=0," ",COUNTRY_INFO!A23)) -> Rwanda | B23: =IF(INTRO!$E$43="Non-endemic"," ", IF(COUNTRY_INFO!B23=0," ",COUNTRY_INFO!B23)) -> North | C23: =IF(INTRO!$E$43="Non-endemic"," ", IF(COUNTRY_INFO!C23=0," ",COUNTRY_INFO!C23)) -> Musanze | D23: =IF(INTRO!$E$43="Non-endemic", 0, IF(COUNTRY_INFO!$J23>0, IF(COUNTRY_INFO!$J23=4, 0, IF(COUNTRY_INFO!$J23=1, COUNTRY_INFO!$F23*0.33, IF(COUNTRY_INFO!$J23=2, COUNTRY_INFO!$F23*0.5, COUNTRY_INFO!$F23))), 0)) -> 63486.99083 | E23: =IF(INTRO!$E$43="Non-endemic", 0, IF(COUNTRY_INFO!$J23>0, IF(COUNTRY_INFO!$J23=4, 0, IF(COUNTRY_INFO!$J23=1, 0, IF(COUNTRY_INFO!$J23=2, COUNTRY_INFO!$G23*0.2, COUNTRY_INFO!$G23))), 0)) -> 48809.65939 | F23: 112296.6502 | G23: =IF(INTRO!$E$43="Non-endemic", "Not required", COUNTRY_INFO!P23) -> 1 | I23: =IF($D23=0,0,IF(AND($G23>0,$H23<>"Yes"),D23,IF(AND($G23>0,$H23="Yes"),COUNTRY_INFO!$F23,0))) -> 63486.99083 | J23: 17752 | K23: 48809.65939 | L23: 66561.65939 | M23: 44380 | N23: 146428.9782 | O23: 44380 | Q23: 44380 | R23: 45
A24: =IF(INTRO!$E$43="Non-endemic"," ", IF(COUNTRY_INFO!A24=0," ",COUNTRY_INFO!A24)) -> Rwanda | B24: =IF(INTRO!$E$43="Non-endemic"," ", IF(COUNTRY_INFO!B24=0," ",COUNTRY_INFO!B24)) -> East | C24: =IF(INTRO!$E$43="Non-endemic"," ", IF(COUNTRY_INFO!C24=0," ",COUNTRY_INFO!C24)) -> Ngoma | D24: =IF(INTRO!$E$43="Non-endemic", 0, IF(COUNTRY_INFO!$J24>0, IF(COUNTRY_INFO!$J24=4, 0, IF(COUNTRY_INFO!$J24=1, COUNTRY_INFO!$F24*0.33, IF(COUNTRY_INFO!$J24=2, COUNTRY_INFO!$F24*0.5, COUNTRY_INFO!$F24))), 0)) -> 55524.68906 | E24: =IF(INTRO!$E$43="Non-endemic", 0, IF(COUNTRY_INFO!$J24>0, IF(COUNTRY_INFO!$J24=4, 0, IF(COUNTRY_INFO!$J24=1, 0, IF(COUNTRY_INFO!$J24=2, COUNTRY_INFO!$G24*0.2, COUNTRY_INFO!$G24))), 0)) -> 41426.93113 | F24: 96951.6202 | G24: =IF(INTRO!$E$43="Non-endemic", "Not required", COUNTRY_INFO!P24) -> 1 | I24: =IF($D24=0,0,IF(AND($G24>0,$H24<>"Yes"),D24,IF(AND($G24>0,$H24="Yes"),COUNTRY_INFO!$F24,0))) -> 55524.68906 | J24: 39392 | K24: 41426.93113 | L24: 80818.93113 | M24: 98480 | N24: 124280.7934 | O24: 98480 | Q24: 98480 | R24: 99
A25: =IF(INTRO!$E$43="Non-endemic"," ", IF(COUNTRY_INFO!A25=0," ",COUNTRY_INFO!A25)) -> Rwanda | B25: =IF(INTRO!$E$43="Non-endemic"," ", IF(COUNTRY_INFO!B25=0," ",COUNTRY_INFO!B25)) -> West | C25: =IF(INTRO!$E$43="Non-endemic"," ", IF(COUNTRY_INFO!C25=0," ",COUNTRY_INFO!C25)) -> Ngororero | D25: =IF(INTRO!$E$43="Non-endemic", 0, IF(COUNTRY_INFO!$J25>0, IF(COUNTRY_INFO!$J25=4, 0, IF(COUNTRY_INFO!$J25=1, COUNTRY_INFO!$F25*0.33, IF(COUNTRY_INFO!$J25=2, COUNTRY_INFO!$F25*0.5, COUNTRY_INFO!$F25))), 0)) -> 60065.31577 | E25: =IF(INTRO!$E$43="Non-endemic", 0, IF(COUNTRY_INFO!$J25>0, IF(COUNTRY_INFO!$J25=4, 0, IF(COUNTRY_INFO!$J25=1, 0, IF(COUNTRY_INFO!$J25=2, COUNTRY_INFO!$G25*0.2, COUNTRY_INFO!$G25))), 0)) -> 42201.73485 | F25: 102267.0506 | G25: =IF(INTRO!$E$43="Non-endemic", "Not required", COUNTRY_INFO!P25) -> 1 | I25: =IF($D25=0,0,IF(AND($G25>0,$H25<>"Yes"),D25,IF(AND($G25>0,$H25="Yes"),COUNTRY_INFO!$F25,0))) -> 60065.31577 | J25: 8162 | K25: 42201.73485 | L25: 50363.73485 | M25: 20405 | N25: 126605.2045 | O25: 20405 | Q25: 20405 | R25: 21
A26: =IF(INTRO!$E$43="Non-endemic"," ", IF(COUNTRY_INFO!A26=0," ",COUNTRY_INFO!A26)) -> Rwanda | B26: =IF(INTRO!$E$43="Non-endemic"," ", IF(COUNTRY_INFO!B26=0," ",COUNTRY_INFO!B26)) -> West | C26: =IF(INTRO!$E$43="Non-endemic"," ", IF(COUNTRY_INFO!C26=0," ",COUNTRY_INFO!C26)) -> Nyabihu | D26: =IF(INTRO!$E$43="Non-endemic", 0, IF(COUNTRY_INFO!$J26>0, IF(COUNTRY_INFO!$J26=4, 0, IF(COUNTRY_INFO!$J26=1, COUNTRY_INFO!$F26*0.33, IF(COUNTRY_INFO!$J26=2, COUNTRY_INFO!$F26*0.5, COUNTRY_INFO!$F26))), 0)) -> 35809.10705 | E26: =IF(INTRO!$E$43="Non-endemic", 0, IF(COUNTRY_INFO!$J26>0, IF(COUNTRY_INFO!$J26=4, 0, IF(COUNTRY_INFO!$J26=1, 0, IF(COUNTRY_INFO!$J26=2, COUNTRY_INFO!$G26*0.2, COUNTRY_INFO!$G26))), 0)) -> 0 | F26: 35809.10705 | G26: =IF(INTRO!$E$43="Non-endemic", "Not required", COUNTRY_INFO!P26) -> 0 | I26: =IF($D26=0,0,IF(AND($G26>0,$H26<>"Yes"),D26,IF(AND($G26>0,$H26="Yes"),COUNTRY_INFO!$F26,0))) -> 0 | K26: 0 | L26: 0 | M26: 0 | N26: 0 | O26: 0 | Q26: 0 | R26: 0
A27: =IF(INTRO!$E$43="Non-endemic"," ", IF(COUNTRY_INFO!A27=0," ",COUNTRY_INFO!A27)) -> Rwanda | B27: =IF(INTRO!$E$43="Non-endemic"," ", IF(COUNTRY_INFO!B27=0," ",COUNTRY_INFO!B27)) -> East | C27: =IF(INTRO!$E$43="Non-endemic"," ", IF(COUNTRY_INFO!C27=0," ",COUNTRY_INFO!C27)) -> Nyagatare | D27: =IF(INTRO!$E$43="Non-endemic", 0, IF(COUNTRY_INFO!$J27>0, IF(COUNTRY_INFO!$J27=4, 0, IF(COUNTRY_INFO!$J27=1, COUNTRY_INFO!$F27*0.33, IF(COUNTRY_INFO!$J27=2, COUNTRY_INFO!$F27*0.5, COUNTRY_INFO!$F27))), 0)) -> 83849.67826 | E27: =IF(INTRO!$E$43="Non-endemic", 0, IF(COUNTRY_INFO!$J27>0, IF(COUNTRY_INFO!$J27=4, 0, IF(COUNTRY_INFO!$J27=1, 0, IF(COUNTRY_INFO!$J27=2, COUNTRY_INFO!$G27*0.2, COUNTRY_INFO!$G27))), 0)) -> 58368.08772 | F27: 142217.766 | G27: =IF(INTRO!$E$43="Non-endemic", "Not required", COUNTRY_INFO!P27) -> 1 | I27: =IF($D27=0,0,IF(AND($G27>0,$H27<>"Yes"),D27,IF(AND($G27>0,$H27="Yes"),COUNTRY_INFO!$F27,0))) -> 83849.67826 | J27: 143442 | K27: 58368.08772 | L27: 201810.0877 | M27: 358605 | N27: 175104.2632 | O27: 358605 | Q27: 358605 | R27: 359
A28: =IF(INTRO!$E$43="Non-endemic"," ", IF(COUNTRY_INFO!A28=0," ",COUNTRY_INFO!A28)) -> Rwanda | B28: =IF(INTRO!$E$43="Non-endemic"," ", IF(COUNTRY_INFO!B28=0," ",COUNTRY_INFO!B28)) -> South | C28: =IF(INTRO!$E$43="Non-endemic"," ", IF(COUNTRY_INFO!C28=0," ",COUNTRY_INFO!C28)) -> Nyamagabe | D28: =IF(INTRO!$E$43="Non-endemic", 0, IF(COUNTRY_INFO!$J28>0, IF(COUNTRY_INFO!$J28=4, 0, IF(COUNTRY_INFO!$J28=1, COUNTRY_INFO!$F28*0.33, IF(COUNTRY_INFO!$J28=2, COUNTRY_INFO!$F28*0.5, COUNTRY_INFO!$F28))), 0)) -> 38582.0788 | E28: =IF(INTRO!$E$43="Non-endemic", 0, IF(COUNTRY_INFO!$J28>0, IF(COUNTRY_INFO!$J28=4, 0, IF(COUNTRY_INFO!$J28=1, 0, IF(COUNTRY_INFO!$J28=2, COUNTRY_INFO!$G28*0.2, COUNTRY_INFO!$G28))), 0)) -> 0 | F28: 38582.0788 | G28: =IF(INTRO!$E$43="Non-endemic", "Not required", COUNTRY_INFO!P28) -> 0 | I28: =IF($D28=0,0,IF(AND($G28>0,$H28<>"Yes"),D28,IF(AND($G28>0,$H28="Yes"),COUNTRY_INFO!$F28,0))) -> 0 | K28: 0 | L28: 0 | M28: 0 | N28: 0 | O28: 0 | Q28: 0 | R28: 0
A29: =IF(INTRO!$E$43="Non-endemic"," ", IF(COUNTRY_INFO!A29=0," ",COUNTRY_INFO!A29)) -> Rwanda | B29: =IF(INTRO!$E$43="Non-endemic"," ", IF(COUNTRY_INFO!B29=0," ",COUNTRY_INFO!B29)) -> West | C29: =IF(INTRO!$E$43="Non-endemic"," ", IF(COUNTRY_INFO!C29=0," ",COUNTRY_INFO!C29)) -> Nyamasheke | D29: =IF(INTRO!$E$43="Non-endemic", 0, IF(COUNTRY_INFO!$J29>0, IF(COUNTRY_INFO!$J29=4, 0, IF(COUNTRY_INFO!$J29=1, COUNTRY_INFO!$F29*0.33, IF(COUNTRY_INFO!$J29=2, COUNTRY_INFO!$F29*0.5, COUNTRY_INFO!$F29))), 0)) -> 61265.72267 | E29: =IF(INTRO!$E$43="Non-endemic", 0, IF(COUNTRY_INFO!$J29>0, IF(COUNTRY_INFO!$J29=4, 0, IF(COUNTRY_INFO!$J29=1, 0, IF(COUNTRY_INFO!$J29=2, COUNTRY_INFO!$G29*0.2, COUNTRY_INFO!$G29))), 0)) -> 42227.44924 | F29: 103493.1719 | G29: =IF(INTRO!$E$43="Non-endemic", "Not required", COUNTRY_INFO!P29) -> 1 | I29: =IF($D29=0,0,IF(AND($G29>0,$H29<>"Yes"),D29,IF(AND($G29>0,$H29="Yes"),COUNTRY_INFO!$F29,0))) -> 61265.72267 | J29: 72815 | K29: 42227.44924 | L29: 115042.4492 | M29: 182037.5 | N29: 126682.3477 | O29: 182037.5 | Q29: 182037.5 | R29: 183
A30: =IF(INTRO!$E$43="Non-endemic"," ", IF(COUNTRY_INFO!A30=0," ",COUNTRY_INFO!A30)) -> Rwanda | B30: =IF(INTRO!$E$43="Non-endemic"," ", IF(COUNTRY_INFO!B30=0," ",COUNTRY_INFO!B30)) -> South | C30: =IF(INTRO!$E$43="Non-endemic"," ", IF(COUNTRY_INFO!C30=0," ",COUNTRY_INFO!C30)) -> Nyanza | D30: =IF(INTRO!$E$43="Non-endemic", 0, IF(COUNTRY_INFO!$J30>0, IF(COUNTRY_INFO!$J30=4, 0, IF(COUNTRY_INFO!$J30=1, COUNTRY_INFO!$F30*0.33, IF(COUNTRY_INFO!$J30=2, COUNTRY_INFO!$F30*0.5, COUNTRY_INFO!$F30))), 0)) -> 50131.87948 | E30: =IF(INTRO!$E$43="Non-endemic", 0, IF(COUNTRY_INFO!$J30>0, IF(COUNTRY_INFO!$J30=4, 0, IF(COUNTRY_INFO!$J30=1, 0, IF(COUNTRY_INFO!$J30=2, COUNTRY_INFO!$G30*0.2, COUNTRY_INFO!$G30))), 0)) -> 44267.39547 | F30: 94399.27495 | G30: =IF(INTRO!$E$43="Non-endemic", "Not required", COUNTRY_INFO!P30) -> 1 | I30: =IF($D30=0,0,IF(AND($G30>0,$H30<>"Yes"),D30,IF(AND($G30>0,$H30="Yes"),COUNTRY_INFO!$F30,0))) -> 50131.87948 | J30: 46191 | K30: 44267.39547 | L30: 90458.39547 | M30: 115477.5 | N30: 132802.1864 | O30: 115477.5 | Q30: 115477.5 | R30: 116
A31: =IF(INTRO!$E$43="Non-endemic"," ", IF(COUNTRY_INFO!A31=0," ",COUNTRY_INFO!A31)) -> Rwanda | B31: =IF(INTRO!$E$43="Non-endemic"," ", IF(COUNTRY_INFO!B31=0," ",COUNTRY_INFO!B31)) -> Kigali | C31: =IF(INTRO!$E$43="Non-endemic"," ", IF(COUNTRY_INFO!C31=0," ",COUNTRY_INFO!C31)) -> Nyarugenge | D31: =IF(INTRO!$E$43="Non-endemic", 0, IF(COUNTRY_INFO!$J31>0, IF(COUNTRY_INFO!$J31=4, 0, IF(COUNTRY_INFO!$J31=1, COUNTRY_INFO!$F31*0.33, IF(COUNTRY_INFO!$J31=2, COUNTRY_INFO!$F31*0.5, COUNTRY_INFO!$F31))), 0)) -> 24036.06399 | E31: =IF(INTRO!$E$43="Non-endemic", 0, IF(COUNTRY_INFO!$J31>0, IF(COUNTRY_INFO!$J31=4, 0, IF(COUNTRY_INFO!$J31=1, 0, IF(COUNTRY_INFO!$J31=2, COUNTRY_INFO!$G31*0.2, COUNTRY_INFO!$G31))), 0)) -> 0 | F31: 24036.06399 | G31: =IF(INTRO!$E$43="Non-endemic", "Not required", COUNTRY_INFO!P31) -> 1 | I31: =IF($D31=0,0,IF(AND($G31>0,$H31<>"Yes"),D31,IF(AND($G31>0,$H31="Yes"),COUNTRY_INFO!$F31,0))) -> 24036.06399 | K31: 0 | L31: 24036.06399 | M31: 60090.15999 | N31: 0 | O31: 60090.15999 | Q31: 60090.15999 | R31: 61
A32: =IF(INTRO!$E$43="Non-endemic"," ", IF(COUNTRY_INFO!A32=0," ",COUNTRY_INFO!A32)) -> Rwanda | B32: =IF(INTRO!$E$43="Non-endemic"," ", IF(COUNTRY_INFO!B32=0," ",COUNTRY_INFO!B32)) -> South | C32: =IF(INTRO!$E$43="Non-endemic"," ", IF(COUNTRY_INFO!C32=0," ",COUNTRY_INFO!C32)) -> Nyaruguru | D32: =IF(INTRO!$E$43="Non-endemic", 0, IF(COUNTRY_INFO!$J32>0, IF(COUNTRY_INFO!$J32=4, 0, IF(COUNTRY_INFO!$J32=1, COUNTRY_INFO!$F32*0.33, IF(COUNTRY_INFO!$J32=2, COUNTRY_INFO!$F32*0.5, COUNTRY_INFO!$F32))), 0)) -> 36327.3961 | E32: =IF(INTRO!$E$43="Non-endemic", 0, IF(COUNTRY_INFO!$J32>0, IF(COUNTRY_INFO!$J32=4, 0, IF(COUNTRY_INFO!$J32=1, 0, IF(COUNTRY_INFO!$J32=2, COUNTRY_INFO!$G32*0.2, COUNTRY_INFO!$G32))), 0)) -> 0 | F32: 36327.3961 | G32: =IF(INTRO!$E$43="Non-endemic", "Not required", COUNTRY_INFO!P32) -> 0 | I32: =IF($D32=0,0,IF(AND($G32>0,$H32<>"Yes"),D32,IF(AND($G32>0,$H32="Yes"),COUNTRY_INFO!$F32,0))) -> 0 | K32: 0 | L32: 0 | M32: 0 | N32: 0 | O32: 0 | Q32: 0 | R32: 0
A33: =IF(INTRO!$E$43="Non-endemic"," ", IF(COUNTRY_INFO!A33=0," ",COUNTRY_INFO!A33)) -> Rwanda | B33: =IF(INTRO!$E$43="Non-endemic"," ", IF(COUNTRY_INFO!B33=0," ",COUNTRY_INFO!B33)) -> West | C33: =IF(INTRO!$E$43="Non-endemic"," ", IF(COUNTRY_INFO!C33=0," ",COUNTRY_INFO!C33)) -> Rubavu | D33: =IF(INTRO!$E$43="Non-endemic", 0, IF(COUNTRY_INFO!$J33>0, IF(COUNTRY_INFO!$J33=4, 0, IF(COUNTRY_INFO!$J33=1, COUNTRY_INFO!$F33*0.33, IF(COUNTRY_INFO!$J33=2, COUNTRY_INFO!$F33*0.5, COUNTRY_INFO!$F33))), 0)) -> 63691.51138 | E33: =IF(INTRO!$E$43="Non-endemic", 0, IF(COUNTRY_INFO!$J33>0, IF(COUNTRY_INFO!$J33=4, 0, IF(COUNTRY_INFO!$J33=1, 0, IF(COUNTRY_INFO!$J33=2, COUNTRY_INFO!$G33*0.2, COUNTRY_INFO!$G33))), 0)) -> 53689.58515 | F33: 117381.0965 | G33: =IF(INTRO!$E$43="Non-endemic", "Not required", COUNTRY_INFO!P33) -> 1 | I33: =IF($D33=0,0,IF(AND($G33>0,$H33<>"Yes"),D33,IF(AND($G33>0,$H33="Yes"),COUNTRY_INFO!$F33,0))) -> 63691.51138 | J33: 42099 | K33: 53689.58515 | L33: 95788.58515 | M33: 105247.5 | N33: 161068.7554 | O33: 105247.5 | Q33: 105247.5 | R33: 106
A34: =IF(INTRO!$E$43="Non-endemic"," ", IF(COUNTRY_INFO!A34=0," ",COUNTRY_INFO!A34)) -> Rwanda | B34: =IF(INTRO!$E$43="Non-endemic"," ", IF(COUNTRY_INFO!B34=0," ",COUNTRY_INFO!B34)) -> South | C34: =IF(INTRO!$E$43="Non-endemic"," ", IF(COUNTRY_INFO!C34=0," ",COUNTRY_INFO!C34)) -> Ruhango | D34: =IF(INTRO!$E$43="Non-endemic", 0, IF(COUNTRY_INFO!$J34>0, IF(COUNTRY_INFO!$J34=4, 0, IF(COUNTRY_INFO!$J34=1, COUNTRY_INFO!$F34*0.33, IF(COUNTRY_INFO!$J34=2, COUNTRY_INFO!$F34*0.5, COUNTRY_INFO!$F34))), 0)) -> 35409.48667 | E34: =IF(INTRO!$E$43="Non-endemic", 0, IF(COUNTRY_INFO!$J34>0, IF(COUNTRY_INFO!$J34=4, 0, IF(COUNTRY_INFO!$J34=1, 0, IF(COUNTRY_INFO!$J34=2, COUNTRY_INFO!$G34*0.2, COUNTRY_INFO!$G34))), 0)) -> 0 | F34: 35409.48667 | G34: =IF(INTRO!$E$43="Non-endemic", "Not required", COUNTRY_INFO!P34) -> 1 | I34: =IF($D34=0,0,IF(AND($G34>0,$H34<>"Yes"),D34,IF(AND($G34>0,$H34="Yes"),COUNTRY_INFO!$F34,0))) -> 35409.48667 | J34: 15686 | K34: 0 | L34: 15686 | M34: 39215 | N34: 0 | O34: 39215 | Q34: 39215 | R34: 40
A35: =IF(INTRO!$E$43="Non-endemic"," ", IF(COUNTRY_INFO!A35=0," ",COUNTRY_INFO!A35)) -> Rwanda | B35: =IF(INTRO!$E$43="Non-endemic"," ", IF(COUNTRY_INFO!B35=0," ",COUNTRY_INFO!B35)) -> North | C35: =IF(INTRO!$E$43="Non-endemic"," ", IF(COUNTRY_INFO!C35=0," ",COUNTRY_INFO!C35)) -> Rulindo | D35: =IF(INTRO!$E$43="Non-endemic", 0, IF(COUNTRY_INFO!$J35>0, IF(COUNTRY_INFO!$J35=4, 0, IF(COUNTRY_INFO!$J35=1, COUNTRY_INFO!$F35*0.33, IF(COUNTRY_INFO!$J35=2, COUNTRY_INFO!$F35*0.5, COUNTRY_INFO!$F35))), 0)) -> 48417.63703 | E35: =IF(INTRO!$E$43="Non-endemic", 0, IF(COUNTRY_INFO!$J35>0, IF(COUNTRY_INFO!$J35=4, 0, IF(COUNTRY_INFO!$J35=1, 0, IF(COUNTRY_INFO!$J35=2, COUNTRY_INFO!$G35*0.2, COUNTRY_INFO!$G35))), 0)) -> 38935.84978 | F35: 87353.4868 | G35: =IF(INTRO!$E$43="Non-endemic", "Not required", COUNTRY_INFO!P35) -> 1 | I35: =IF($D35=0,0,IF(AND($G35>0,$H35<>"Yes"),D35,IF(AND($G35>0,$H35="Yes"),COUNTRY_INFO!$F35,0))) -> 48417.63703 | J35: 11092 | K35: 38935.84978 | L35: 50027.84978 | M35: 27730 | N35: 116807.5493 | O35: 27730 | Q35: 27730 | R35: 28
A36: =IF(INTRO!$E$43="Non-endemic"," ", IF(COUNTRY_INFO!A36=0," ",COUNTRY_INFO!A36)) -> Rwanda | B36: =IF(INTRO!$E$43="Non-endemic"," ", IF(COUNTRY_INFO!B36=0," ",COUNTRY_INFO!B36)) -> West | C36: =IF(INTRO!$E$43="Non-endemic"," ", IF(COUNTRY_INFO!C36=0," ",COUNTRY_INFO!C36)) -> Rusizi | D36: =IF(INTRO!$E$43="Non-endemic", 0, IF(COUNTRY_INFO!$J36>0, IF(COUNTRY_INFO!$J36=4, 0, IF(COUNTRY_INFO!$J36=1, COUNTRY_INFO!$F36*0.33, IF(COUNTRY_INFO!$J36=2, COUNTRY_INFO!$F36*0.5, COUNTRY_INFO!$F36))), 0)) -> 66997.17819 | E36: =IF(INTRO!$E$43="Non-endemic", 0, IF(COUNTRY_INFO!$J36>0, IF(COUNTRY_INFO!$J36=4, 0, IF(COUNTRY_INFO!$J36=1, 0, IF(COUNTRY_INFO!$J36=2, COUNTRY_INFO!$G36*0.2, COUNTRY_INFO!$G36))), 0)) -> 52473.31439 | F36: 119470.4926 | G36: =IF(INTRO!$E$43="Non-endemic", "Not required", COUNTRY_INFO!P36) -> 1 | H36: Yes | I36: =IF($D36=0,0,IF(AND($G36>0,$H36<>"Yes"),D36,IF(AND($G36>0,$H36="Yes"),COUNTRY_INFO!$F36,0))) -> 133994.3564 | J36: 122538 | K36: 52473.31439 | L36: 175011.3144 | M36: 306345 | N36: 157419.9432 | O36: 306345 | Q36: 306345 | R36: 307
A37: =IF(INTRO!$E$43="Non-endemic"," ", IF(COUNTRY_INFO!A37=0," ",COUNTRY_INFO!A37)) -> Rwanda | B37: =IF(INTRO!$E$43="Non-endemic"," ", IF(COUNTRY_INFO!B37=0," ",COUNTRY_INFO!B37)) -> West | C37: =IF(INTRO!$E$43="Non-endemic"," ", IF(COUNTRY_INFO!C37=0," ",COUNTRY_INFO!C37)) -> Rutsiro | D37: =IF(INTRO!$E$43="Non-endemic", 0, IF(COUNTRY_INFO!$J37>0, IF(COUNTRY_INFO!$J37=4, 0, IF(COUNTRY_INFO!$J37=1, COUNTRY_INFO!$F37*0.33, IF(COUNTRY_INFO!$J37=2, COUNTRY_INFO!$F37*0.5, COUNTRY_INFO!$F37))), 0)) -> 59193.67109 | E37: =IF(INTRO!$E$43="Non-endemic", 0, IF(COUNTRY_INFO!$J37>0, IF(COUNTRY_INFO!$J37=4, 0, IF(COUNTRY_INFO!$J37=1, 0, IF(COUNTRY_INFO!$J37=2, COUNTRY_INFO!$G37*0.2, COUNTRY_INFO!$G37))), 0)) -> 40980.23383 | F37: 100173.9049 | G37: =IF(INTRO!$E$43="Non-endemic", "Not required", COUNTRY_INFO!P37) -> 1 | I37: =IF($D37=0,0,IF(AND($G37>0,$H37<>"Yes"),D37,IF(AND($G37>0,$H37="Yes"),COUNTRY_INFO!$F37,0))) -> 59193.67109 | J37: 46751 | K37: 40980.23383 | L37: 87731.23383 | M37: 116877.5 | N37: 122940.7015 | O37: 116877.5 | Q37: 116877.5 | R37: 117
A38: =IF(INTRO!$E$43="Non-endemic"," ", IF(COUNTRY_INFO!A38=0," ",COUNTRY_INFO!A38)) -> Rwanda | B38: =IF(INTRO!$E$43="Non-endemic"," ", IF(COUNTRY_INFO!B38=0," ",COUNTRY_INFO!B38)) -> East | C38: =IF(INTRO!$E$43="Non-endemic"," ", IF(COUNTRY_INFO!C38=0," ",COUNTRY_INFO!C38)) -> Rwamagana | D38: =IF(INTRO!$E$43="Non-endemic", 0, IF(COUNTRY_INFO!$J38>0, IF(COUNTRY_INFO!$J38=4, 0, IF(COUNTRY_INFO!$J38=1, COUNTRY_INFO!$F38*0.33, IF(COUNTRY_INFO!$J38=2, COUNTRY_INFO!$F38*0.5, COUNTRY_INFO!$F38))), 0)) -> 49276.03076 | E38: =IF(INTRO!$E$43="Non-endemic", 0, IF(COUNTRY_INFO!$J38>0, IF(COUNTRY_INFO!$J38=4, 0, IF(COUNTRY_INFO!$J38=1, 0, IF(COUNTRY_INFO!$J38=2, COUNTRY_INFO!$G38*0.2, COUNTRY_INFO!$G38))), 0)) -> 42278.46802 | F38: 91554.49878 | G38: =IF(INTRO!$E$43="Non-endemic", "Not required", COUNTRY_INFO!P38) -> 1 | I38: =IF($D38=0,0,IF(AND($G38>0,$H38<>"Yes"),D38,IF(AND($G38>0,$H38="Yes"),COUNTRY_INFO!$F38,0))) -> 49276.03076 | J38: 58513 | K38: 42278.46802 | L38: 100791.468 | M38: 146282.5 | N38: 126835.4041 | O38: 146282.5 | Q38: 146282.5 | R38: 147

Sheet SUMMARY
B1: The current version should be used in countries non-endemic for onchocerciasis
B2: Joint request for selected PC medicines
B4: This form constitutes an official government request to WHO for the supply of the PC medicines. It can be submitted any time before 15 August of the current year for distribution of medicines during the following year, but at least 6-8 months before the planned PC intervention(s) to allow time for reviewing and approval of the request, placing order, manufacturing PC medicines and shipment to the country.
B6: Country | C6: =IF(INTRO!$E$33<>0,INTRO!$E$33," ") -> Rwanda | G6: Year | H6: =IF(INTRO!$E$35<>0,INTRO!$E$35," ") -> 2018
B8: Information on PC medicines requested to WHO
B10: PC medicine | C10: Number of tablets | G10: Total number of bottles
C11: Required | D11: In stock | E11: In pipeline | F11: Requested | G11: Required | H11: Requested
B12: Albendazole for STH (SAC) | C12: 7047007.203 | D12: 4389600 | E12: 0 | F12: =IF(C12>(D12+E12),C12-D12-E12, 0) -> 2657407.203 | G12: =IF($C12=0,0, IF($B12="Albendazole for LF", IF($C12=ALB_MBD!$I$4,ALB_MBD!$U$4,ROUNDUP($C12/200,0)), IF($B12="Albendazole for STH (SAC)", IF($C12=ALB_MBD!$L$4,ALB_MBD!$X$4,ROUNDUP($C12/200,0)), IF($B12="Mebendazole (SAC)", IF($C12=ALB_MBD!$P$4,ALB_MBD!$AA$4,ROUNDUP($C12/150,0)), IF($B12="Diethylcarbamazine citrate", IF($C12=DEC!$J$4,DEC!$M$4,ROUNDUP($C12/1000,0)), IF($B12="Praziquantel (SAC)", IF($C12=PZQ!$O$4,PZQ!$R$4,ROUNDUP($C12/1000,0)))))))) -> 35250 | H12: =IF($F12=0,0,IF(OR($B12="Albendazole for LF",$B12="Albendazole for STH (SAC)"),$G12-ROUNDUP(($E12+$D12)/200,0),IF($B12="Mebendazole (SAC)",$G12-ROUNDUP(($E12+$D12)/150,0),$G12-ROUNDUP(($E12+$D12)/1000,0)))) -> 13302
B13: Praziquantel (SAC) | C13: 2715315.16 | D13: 641000 | E13: 0 | F13: 2074315.16 | G13: =IF($C13=0,0, IF($B13="Albendazole for LF", IF($C13=ALB_MBD!$I$4,ALB_MBD!$U$4,ROUNDUP($C13/200,0)), IF($B13="Albendazole for STH (SAC)", IF($C13=ALB_MBD!$L$4,ALB_MBD!$X$4,ROUNDUP($C13/200,0)), IF($B13="Mebendazole (SAC)", IF($C13=ALB_MBD!$P$4,ALB_MBD!$AA$4,ROUNDUP($C13/150,0)), IF($B13="Diethylcarbamazine citrate", IF($C13=DEC!$J$4,DEC!$M$4,ROUNDUP($C13/1000,0)), IF($B13="Praziquantel (SAC)", IF($C13=PZQ!$O$4,PZQ!$R$4,ROUNDUP($C13/1000,0)))))))) -> 2729 | H13: 2088
C14: 0 | D14: 0 | E14: 0 | F14: 0 | G14: =IF($C14=0,0, IF($B14="Albendazole for LF", IF($C14=ALB_MBD!$I$4,ALB_MBD!$U$4,ROUNDUP($C14/200,0)), IF($B14="Albendazole for STH (SAC)", IF($C14=ALB_MBD!$L$4,ALB_MBD!$X$4,ROUNDUP($C14/200,0)), IF($B14="Mebendazole (SAC)", IF($C14=ALB_MBD!$P$4,ALB_MBD!$AA$4,ROUNDUP($C14/150,0)), IF($B14="Diethylcarbamazine citrate", IF($C14=DEC!$J$4,DEC!$M$4,ROUNDUP($C14/1000,0)), IF($B14="Praziquantel (SAC)", IF($C14=PZQ!$O$4,PZQ!$R$4,ROUNDUP($C14/1000,0)))))))) -> 0 | H14: 0
C15: 0 | D15: 0 | E15: 0 | F15: 0 | G15: =IF($C15=0,0, IF($B15="Albendazole for LF", IF($C15=ALB_MBD!$I$4,ALB_MBD!$U$4,ROUNDUP($C15/200,0)), IF($B15="Albendazole for STH (SAC)", IF($C15=ALB_MBD!$L$4,ALB_MBD!$X$4,ROUNDUP($C15/200,0)), IF($B15="Mebendazole (SAC)", IF($C15=ALB_MBD!$P$4,ALB_MBD!$AA$4,ROUNDUP($C15/150,0)), IF($B15="Diethylcarbamazine citrate", IF($C15=DEC!$J$4,DEC!$M$4,ROUNDUP($C15/1000,0)), IF($B15="Praziquantel (SAC)", IF($C15=PZQ!$O$4,PZQ!$R$4,ROUNDUP($C15/1000,0)))))))) -> 0 | H15: 0
C16: 0 | D16: 0 | E16: 0 | F16: 0 | G16: =IF($C16=0,0, IF($B16="Albendazole for LF", IF($C16=ALB_MBD!$I$4,ALB_MBD!$U$4,ROUNDUP($C16/200,0)), IF($B16="Albendazole for STH (SAC)", IF($C16=ALB_MBD!$L$4,ALB_MBD!$X$4,ROUNDUP($C16/200,0)), IF($B16="Mebendazole (SAC)", IF($C16=ALB_MBD!$P$4,ALB_MBD!$AA$4,ROUNDUP($C16/150,0)), IF($B16="Diethylcarbamazine citrate", IF($C16=DEC!$J$4,DEC!$M$4,ROUNDUP($C16/1000,0)), IF($B16="Praziquantel (SAC)", IF($C16=PZQ!$O$4,PZQ!$R$4,ROUNDUP($C16/1000,0)))))))) -> 0 | H16: 0
C17: 0 | D17: 0 | E17: 0 | F17: 0 | G17: =IF($C17=0,0, IF($B17="Albendazole for LF", IF($C17=ALB_MBD!$I$4,ALB_MBD!$U$4,ROUNDUP($C17/200,0)), IF($B17="Albendazole for STH (SAC)", IF($C17=ALB_MBD!$L$4,ALB_MBD!$X$4,ROUNDUP($C17/200,0)), IF($B17="Mebendazole (SAC)", IF($C17=ALB_MBD!$P$4,ALB_MBD!$AA$4,ROUNDUP($C17/150,0)), IF($B17="Diethylcarbamazine citrate", IF($C17=DEC!$J$4,DEC!$M$4,ROUNDUP($C17/1000,0)), IF($B17="Praziquantel (SAC)", IF($C17=PZQ!$O$4,PZQ!$R$4,ROUNDUP($C17/1000,0)))))))) -> 0 | H17: 0
B19: Number of people to be treated with donated medicine ( see User Guide for details )
B21: Disease | G21: Round 1 | H21: Round 2
B22: Soil-transmitted helminthiases | C22: These figures are estimated only for targeted age groups to be treated with donated medicines in areas where treatment for specific disease is required | G22: 3523500 | H22: 3523500
B23: Schistosomiasis | G23: 1086126.064
B29: Information on planned PC interventions
B31: PC medicine | C31: Planned date of the 1st round of PC | E31: Planned date of the 2nd round of PC | G31: Date by which the medicine should arrive to the national warehouse
B32: Albendazole for STH | C32: March | D32: 2018 | E32: September | F32: 2018 | G32: January | H32: 2018
B33: Praziquantel | E33: September | F33: 2018 | G33: January | H33: 2018
B39: Information on PC medicines for treatment of population not targeted with current donation through WHO
B41: PC medicine | C41: Age group | D41: # of people | E41: # of tablets | F41: Specify source | H41: Status
B42: Mebendazole | C42: PreSAC | D42: =COUNTRY_INFO!E4 -> 1457145.122 | E42: =D42*2 -> 2914290.244 | F42: UNICEF | H42: Required
B53: Checklist
B54: Submission
B55: What should be submitted?
B56: The supply of the requested medicines should be based on up-to-date epidemiological data, specific usage plans, and capacity for implementation. The following checklist ensures that all necessary forms and information are provided to WHO (in electronic format).
B57: Joint request for selected PC medicines
B58: Joint reporting form
B59: PC epidemiological data reporting form
B61: Availability of funding for implementation
B63: Financial resources secured for the implementation in the year for which the medicines are requested
B64: Resources are secured from The END Fund Grant
B68: Who should fill in the form?
B69: National NTD coordinator should compile all required information needed to complete the request form. In the absence of such a coordinator, specific programme managers should coordinate their respective part. The final single request must be approved by the Ministry of Health.
B71: Information on person(s) who has filled in the form
B73: Title | C73: Name | E73: Phone | G73: Email | H73: Date
B74: Other | C74: Mr. Jean Bosco MBONIGABA | E74: 00250738609068 | G74: jbosco.mbonigaba@rbc.gov.rw | H74: 2017-10-30
E75: 00250788609068
B79: The WHO recommends that all serious adverse events suspected to be associated with use of PC medicines should be reported in accordance with national Pharmacovigilance guidelines. In the absence of a national Pharmacovigilance system, contact the WHO Neglected Tropical Disease department for guidance.
B80: The WHO is committed to facilitate PC medicines donation with a free-of-charge supply of a) albendazole, mebendazole and praziquantel to the MoH’s national warehouse; and b) diethylcarbamazine citrate to the entry port/airport of recipient countries.
B81: The institution submitting the present request is responsible for a) arranging the offloading of the medicines from the truck and storing it in the national warehouse and subsequent shipment to the final distribution centres; b) for registering the donated medicine, if required, by the relevant national regulatory authorities; and c) for informing about any changes of their PC campaigns (e.g. postpone of the planned MDA date, replacement of NTD coordinator, etc.).
B82: Name and signature of NTD coordinator or Ministry of Health representative
B83: Date:
B85: Please complete information on shipment and consignee in the workshsheet SHIPMENT
B86: Please send the national request (signed and in electronic format) to the concerned WR with copy to:
B88: WHO headquarters | C88: PC_JointForms@who.int
B89: WHO Regional Office | C89: Regional Advisor for NTD
B91: Please note that your request will be reviewed by an independent panel before approval. The information in this form, joint reporting form and PC epidemiological data reporting form are essential for WHO to ensure efficient usage of medicines. As part of its ongoing monitoring and evaluation activities, and to meet its contractual obligations to donors and other partners, WHO and its appointed agents reserve the right to periodically inspect stocks of the medicines at country level.

Sheet SHIPMENT
B2: Joint request for selected PC medicines
B4: Country | C4: =IF(INTRO!$E$33<>0,INTRO!$E$33," ") -> Rwanda | G4: Year | H4: =IF(INTRO!$E$35<>0,INTRO!$E$35," ") -> 2018
B6: Information on shipment and consignee
B8: Albendazole for STH | C8: Consignee | F8: Delivery point / Final recipient if different from the consignee
B9: Name | C9: Dr Michel GASANA | F9: N/A
B10: Department/Unit | C10: DPC Malaria and NTDs
B11: Organization | C11: World Health Organization/ Rwanda
B12: Phone | C12: 00250 280300507/00250 788307870
B13: Fax | C13: 250280300508
B14: E-mail | C14: whorw@rw,afro.who.int
B15: Mailing address | C15: P.O Box 1324 Kigali, Rwanda
B17: Praziquantel | C17: Consignee | F17: Delivery point / Final recipient if different from the consignee
B18: Name | C18: Dr Michel GASANA | F18: N/A
B19: Department/Unit | C19: DPC Malaria and NTDs
B20: Organization | C20: World Health Organization/ Rwanda
B21: Phone | C21: 00250 280300507/00250 788307870
B22: Fax | C22: 250280300508
B23: E-mail | C23: whorw@rw,afro.who.int
B24: Mailing address | C24: P.O Box 1324 Kigali, Rwanda
C26: Consignee | F26: Delivery point / Final recipient if different from the consignee
B27: Name
B28: Department/Unit
B29: Organization
B30: Phone
B31: Fax
B32: E-mail
B33: Mailing address
B35: Information on import requirements
B37: Is the Import Permit required? | H37: Yes
B38: How long does it take to obtain the Import Permit? | G38: 7 | H38: Days
B39: Do you require any documents to be submitted together with the Import Permit application? | H39: Yes
B40: Parking list, commercial invoice and certificate of analysis
B41: Does the consignee have to get customs clearance before the shipment can proceed? | H41: No
B42: Is there any additional information may be helpful in ensuring timely clearance and delivery of medicines to your country? | H42: No
B45: Additional information
